Body,BodyName,InvoiceDate,ClearanceDate,UniqueReference,SupplierName,SupplierRefNo,Amount,DepartmentExpenseArea,ExpenseType,ExpenseCode,ExtendedDescription,AccountHolder,MerchantCategory
http://statistics.data.gov.uk/id/local-authority/43UM,WOKING BOROUGH COUNCIL,01/04/2018,01/04/2018,GPC/00002456,FACEBK 5VW8VESLD2,PROCUREMENT CARD,6.38,CORPORATE STRATEGY - ELECTION ID PILOT,ADVERTISING,H400,FACEBOOK BOOSTED POST VOTER ID,DEBBIE HICKMAN,ADVERTISING SERVICES
http://statistics.data.gov.uk/id/local-authority/43UM,WOKING BOROUGH COUNCIL,01/04/2018,01/04/2018,GPC/00002455,FACEBK 6VW8VESLD2,PROCUREMENT CARD,3.44,CORPORATE STRATEGY - ELECTION ID PILOT,ADVERTISING,H400,FACEBOOK BOOSTED POST VOTER ID,DEBBIE HICKMAN,ADVERTISING SERVICES
http://statistics.data.gov.uk/id/local-authority/43UM,WOKING BOROUGH COUNCIL,02/04/2018,02/04/2018,GPC/00002452,AMAZON SVCS EU-UK AMAZON.,PROCUREMENT CARD,11.93,CORPORATE STRATEGY - BOROUGH ELECTIONS,EQUIPMENT,G100,3 X TORCHES,AMINA SAAD,BOOK STORES
http://statistics.data.gov.uk/id/local-authority/43UM,WOKING BOROUGH COUNCIL,03/04/2018,03/04/2018,GPC/00002463,PLUMBERS MATE LTD,PROCUREMENT CARD,15.61,ASSET MANAGEMENT - FACILITIES MANAGEMENT,FACILITIES MANAGEMENT REPAIRS,D908,WASTE PIPES FOR CAR PARKS,MR C NORTON,PLUMBING/HEATING EQUIPMENT
http://statistics.data.gov.uk/id/local-authority/43UM,WOKING BOROUGH COUNCIL,03/04/2018,03/04/2018,GPC/00002464,TP WOKING,PROCUREMENT CARD,15.10,ASSET MANAGEMENT - FACILITIES MANAGEMENT,FACILITIES MANAGEMENT REPAIRS,D908,HANDYMAN MATERIALS,MR C NORTON,LUMBER/BUILD SUPPLY STORES
http://statistics.data.gov.uk/id/local-authority/43UM,WOKING BOROUGH COUNCIL,03/04/2018,03/04/2018,GPC/00002464,TP WOKING,PROCUREMENT CARD,29.24,ASSET MANAGEMENT - FACILITIES MANAGEMENT,FACILITIES MANAGEMENT REPAIRS,D908,HANDYMAN MATERIALS,MR C NORTON,LUMBER/BUILD SUPPLY STORES
http://statistics.data.gov.uk/id/local-authority/43UM,WOKING BOROUGH COUNCIL,03/04/2018,03/04/2018,GPC/00002465,WICKES,PROCUREMENT CARD,53.42,HOUSING SERVICES - HOME IMPS & BEN AGENCY,HANDYPERSON MATERIALS,G201,HANDYPERSON MATERIALS,GARY COCKBURN,HOME SUPPLY WAREHOUSE STORES
http://statistics.data.gov.uk/id/local-authority/43UM,WOKING BOROUGH COUNCIL,03/04/2018,03/04/2018,GPC/00002466,COSTA COFFEE 43037185,PROCUREMENT CARD,5.45,INDEPENDENT LIVING SERVICES - FAMILY SUPPORT PROGRAMME,FAMILY ENABLING (FSP PROJECT),H137,REFRESHMENTS FOR FAMILY,SARAH WRIGHT,FAST FOOD RESTAURANTS
http://statistics.data.gov.uk/id/local-authority/43UM,WOKING BOROUGH COUNCIL,03/04/2018,03/04/2018,GPC/00002460,SURREY HEATH BOROUGH C,PROCUREMENT CARD,1.50,NEIGHBOURHOOD SERVICES - REGULATION AND ENFORCEMENT,TRAVEL EXPENSES-OFFICERS,F600,PARTNERSHIP MEETING,G D MCMANUS,GOV'T SERV - DEFAULT
http://statistics.data.gov.uk/id/local-authority/43UM,WOKING BOROUGH COUNCIL,03/04/2018,03/04/2018,GPC/00002462,WWW.CUTPLASTICSHEETING,PROCUREMENT CARD,42.21,NEIGHBOURHOOD SERVICES - CAR PARKS ADMIN&OPERATIONAL EX,VANDALISM REPAIRS,D130,REPLACEMENT GLAZING FOR HEATHSIDE CP,MR R D SMITH,HARDWARE EQUIPMENT/SUPPLIES
http://statistics.data.gov.uk/id/local-authority/43UM,WOKING BOROUGH COUNCIL,03/04/2018,03/04/2018,GPC/00002467,LATINO,PROCUREMENT CARD,43.86,CORPORATE STRATEGY - CORPORATE STRATEGY GENERAL EXP,OFFICIAL HOSPITALITY,H310,BUSINESS LUNCH,RAY MORGAN,RESTAURANTS
http://statistics.data.gov.uk/id/local-authority/43UM,WOKING BOROUGH COUNCIL,03/04/2018,03/04/2018,GPC/00002461,HOMEBASE LTD 084,PROCUREMENT CARD,1.42,CORPORATE STRATEGY - CELEBRATE WOKING - SUPPORT PROJECTS 14,MAIN CONTRACTOR,Q200,WOOD FOR BLUE PLAQUE,RIETTE THOMAS,LUMBER/BUILD SUPPLY STORES
http://statistics.data.gov.uk/id/local-authority/43UM,WOKING BOROUGH COUNCIL,04/04/2018,04/04/2018,GPC/00002506,AMAZON EU AMAZON.CO.UK,PROCUREMENT CARD,17.80,CORPORATE STRATEGY - BOROUGH ELECTIONS,EQUIPMENT,G100,PV SESSION - LETTER OPENERS,BECKY CAPON,MISC SPECIALITY RETAIL
http://statistics.data.gov.uk/id/local-authority/43UM,WOKING BOROUGH COUNCIL,04/04/2018,04/04/2018,GPC/00002491,AMAZON UK MARKETPLACE,PROCUREMENT CARD,1678.20,CORPORATE STRATEGY - ELECTION ID PILOT,EQUIPMENT,G100,MAY ELECTION EQUIPMENT,RAY MORGAN,BOOK STORES
http://statistics.data.gov.uk/id/local-authority/43UM,WOKING BOROUGH COUNCIL,04/04/2018,04/04/2018,GPC/00002486,BR3628 GIBBS AND D,PROCUREMENT CARD,26.34,ASSET MANAGEMENT - FACILITIES MANAGEMENT,FACILITIES MANAGEMENT REPAIRS,D908,HANDYMAN MATERIALS,MR C NORTON,LUMBER/BUILD SUPPLY STORES
http://statistics.data.gov.uk/id/local-authority/43UM,WOKING BOROUGH COUNCIL,04/04/2018,04/04/2018,GPC/00002483,PAYPAL,PROCUREMENT CARD,33.00,ASSET MANAGEMENT - FACILITIES MANAGEMENT,FACILITIES MANAGEMENT REPAIRS,D908,STEVE - TELL TALES SURVEY EQUIP,MR R D SMITH,DURABLE GOODS - DEFAULT
http://statistics.data.gov.uk/id/local-authority/43UM,WOKING BOROUGH COUNCIL,04/04/2018,04/04/2018,GPC/00002489,RSS KNAPHILL,PROCUREMENT CARD,72.04,HOUSING SERVICES - HOME IMPS & BEN AGENCY,TRAVEL EXPENSES-OFFICERS,F600,FUEL FOR HANDYPERSON VAN,GARY COCKBURN,SERVICE STATIONS
http://statistics.data.gov.uk/id/local-authority/43UM,WOKING BOROUGH COUNCIL,04/04/2018,04/04/2018,GPC/00002487,PLUMBERS MATE LTD,PROCUREMENT CARD,81.24,HOUSING SERVICES - HOME IMPS & BEN AGENCY,HANDYPERSON MATERIALS,G201,HANDYMAN MATERIALS TAPS,GARY COCKBURN,PLUMBING/HEATING EQUIPMENT
http://statistics.data.gov.uk/id/local-authority/43UM,WOKING BOROUGH COUNCIL,04/04/2018,04/04/2018,GPC/00002488,WICKES,PROCUREMENT CARD,22.40,HOUSING SERVICES - HOME IMPS & BEN AGENCY,HANDYPERSON MATERIALS,G201,HANDYPERSON MATERIALS,GARY COCKBURN,HOME SUPPLY WAREHOUSE STORES
http://statistics.data.gov.uk/id/local-authority/43UM,WOKING BOROUGH COUNCIL,04/04/2018,04/04/2018,GPC/00002490,ASDA STORES 4823,PROCUREMENT CARD,3.85,INDEPENDENT LIVING SERVICES - FAMILY SUPPORT PROGRAMME,FAMILY ENABLING (FSP PROJECT),H137,REFRESHMENTS FOR FAMILY,SARAH WRIGHT,GROCERY STORES
http://statistics.data.gov.uk/id/local-authority/43UM,WOKING BOROUGH COUNCIL,04/04/2018,04/04/2018,GPC/00002485,SAINSBURYS S/MKTS,PROCUREMENT CARD,17.13,HOUSING SERVICES - HOUSING OPTIONS,EQUIPMENT,G100,EMERGENCY FOOD,JANET COURTNEY,GROCERY STORES
http://statistics.data.gov.uk/id/local-authority/43UM,WOKING BOROUGH COUNCIL,04/04/2018,04/04/2018,GPC/00002484,TICKETOFFICESALE,PROCUREMENT CARD,30.20,PLANNING SERVICES - PLANNING SERVICES GENERAL EXPE,TRAVEL EXPENSES-OFFICERS,F600,TRAIN TICKETS,MRS CHRISTINE DUPLOCK,PASSENGER RAILWAYS
http://statistics.data.gov.uk/id/local-authority/43UM,WOKING BOROUGH COUNCIL,04/04/2018,04/04/2018,GPC/00002492,PAYPAL,PROCUREMENT CARD,150.00,CORPORATE MANAGEMENT GROUP - CORPORATE MANAGEMENT GROUP,PROFESSIONAL FEES,A750,CCLOA PROFESSIONAL MEMBERSHIP,MISS S M BARHAM,CIVIC/SOCIAL/FRATERNAL ASSC
http://statistics.data.gov.uk/id/local-authority/43UM,WOKING BOROUGH COUNCIL,04/04/2018,04/04/2018,GPC/00002482,BRITISH HEART FOUNDATI,PROCUREMENT CARD,1643.00,HOUSING SERVICES - SYRIAN REFUGEE FAMILES,PURCHASE OF FURNITURE,Q500,HOUSEHOLD FURNITURE - VPR,JULIE COOK,CHARITABLE/SOC SERVICE ORGS
http://statistics.data.gov.uk/id/local-authority/43UM,WOKING BOROUGH COUNCIL,04/04/2018,04/04/2018,GPC/00002481,WILKO WOKING,PROCUREMENT CARD,26.05,HOUSING SERVICES - SYRIAN REFUGEE FAMILES,MISCELLANEOUS EXPENSES,Q660,HOUSEHOLD ITEMS - VPR,JULIE COOK,HOUSEHOLD APPLIANCE STORES
http://statistics.data.gov.uk/id/local-authority/43UM,WOKING BOROUGH COUNCIL,04/04/2018,04/04/2018,GPC/00002516,THE SURREY WILDLIF,PROCUREMENT CARD,103.50,ASSET MANAGEMENT - HOE VALLEY SCHOOL,OTHER CONSULTANTS,Q430,SURREY WILDLIFE TRUST SITE VISIT,IAN M TOMES,CHARITABLE/SOC SERVICE ORGS
http://statistics.data.gov.uk/id/local-authority/43UM,WOKING BOROUGH COUNCIL,05/04/2018,05/04/2018,GPC/00002502,ROBERT DYAS HOLDNG LTD,PROCUREMENT CARD,2.07,ASSET MANAGEMENT - FACILITIES MANAGEMENT,FACILITIES MANAGEMENT REPAIRS,D908,BOLTS FOR CAR PARKS,MR C NORTON,HARDWARE STORES
http://statistics.data.gov.uk/id/local-authority/43UM,WOKING BOROUGH COUNCIL,05/04/2018,05/04/2018,GPC/00002503,HORACE SMITH LOCKSMITH,PROCUREMENT CARD,12.17,ASSET MANAGEMENT - VALUATION SERVICES,EQUIPMENT,G100,HORACE SMITH - KEY CUTTING,H C PEARSON,HARDWARE STORES
http://statistics.data.gov.uk/id/local-authority/43UM,WOKING BOROUGH COUNCIL,05/04/2018,05/04/2018,GPC/00002497,BANNER GROUP LTD,PROCUREMENT CARD,0.18,ASSET MANAGEMENT - CIVIC OFFICES,STATIONERY,G620,CIVIC OFFICES STATIONERY,MR R D SMITH,STATIONERY STORES
http://statistics.data.gov.uk/id/local-authority/43UM,WOKING BOROUGH COUNCIL,05/04/2018,05/04/2018,GPC/00002497,BANNER GROUP LTD,PROCUREMENT CARD,0.24,ASSET MANAGEMENT - CIVIC OFFICES,STATIONERY,G620,CIVIC OFFICES STATIONERY,MR R D SMITH,STATIONERY STORES
http://statistics.data.gov.uk/id/local-authority/43UM,WOKING BOROUGH COUNCIL,05/04/2018,05/04/2018,GPC/00002497,BANNER GROUP LTD,PROCUREMENT CARD,0.34,ASSET MANAGEMENT - CIVIC OFFICES,STATIONERY,G620,CIVIC OFFICES STATIONERY,MR R D SMITH,STATIONERY STORES
http://statistics.data.gov.uk/id/local-authority/43UM,WOKING BOROUGH COUNCIL,05/04/2018,05/04/2018,GPC/00002497,BANNER GROUP LTD,PROCUREMENT CARD,0.60,ASSET MANAGEMENT - CIVIC OFFICES,STATIONERY,G620,CIVIC OFFICES STATIONERY,MR R D SMITH,STATIONERY STORES
http://statistics.data.gov.uk/id/local-authority/43UM,WOKING BOROUGH COUNCIL,05/04/2018,05/04/2018,GPC/00002497,BANNER GROUP LTD,PROCUREMENT CARD,1.06,ASSET MANAGEMENT - CIVIC OFFICES,STATIONERY,G620,CIVIC OFFICES STATIONERY,MR R D SMITH,STATIONERY STORES
http://statistics.data.gov.uk/id/local-authority/43UM,WOKING BOROUGH COUNCIL,05/04/2018,05/04/2018,GPC/00002497,BANNER GROUP LTD,PROCUREMENT CARD,1.08,ASSET MANAGEMENT - CIVIC OFFICES,STATIONERY,G620,CIVIC OFFICES STATIONERY,MR R D SMITH,STATIONERY STORES
http://statistics.data.gov.uk/id/local-authority/43UM,WOKING BOROUGH COUNCIL,05/04/2018,05/04/2018,GPC/00002497,BANNER GROUP LTD,PROCUREMENT CARD,1.12,ASSET MANAGEMENT - CIVIC OFFICES,STATIONERY,G620,CIVIC OFFICES STATIONERY,MR R D SMITH,STATIONERY STORES
http://statistics.data.gov.uk/id/local-authority/43UM,WOKING BOROUGH COUNCIL,05/04/2018,05/04/2018,GPC/00002497,BANNER GROUP LTD,PROCUREMENT CARD,1.26,ASSET MANAGEMENT - CIVIC OFFICES,STATIONERY,G620,CIVIC OFFICES STATIONERY,MR R D SMITH,STATIONERY STORES
http://statistics.data.gov.uk/id/local-authority/43UM,WOKING BOROUGH COUNCIL,05/04/2018,05/04/2018,GPC/00002497,BANNER GROUP LTD,PROCUREMENT CARD,1.29,ASSET MANAGEMENT - CIVIC OFFICES,STATIONERY,G620,CIVIC OFFICES STATIONERY,MR R D SMITH,STATIONERY STORES
http://statistics.data.gov.uk/id/local-authority/43UM,WOKING BOROUGH COUNCIL,05/04/2018,05/04/2018,GPC/00002497,BANNER GROUP LTD,PROCUREMENT CARD,1.35,ASSET MANAGEMENT - CIVIC OFFICES,STATIONERY,G620,CIVIC OFFICES STATIONERY,MR R D SMITH,STATIONERY STORES
http://statistics.data.gov.uk/id/local-authority/43UM,WOKING BOROUGH COUNCIL,05/04/2018,05/04/2018,GPC/00002497,BANNER GROUP LTD,PROCUREMENT CARD,1.54,ASSET MANAGEMENT - CIVIC OFFICES,STATIONERY,G620,CIVIC OFFICES STATIONERY,MR R D SMITH,STATIONERY STORES
http://statistics.data.gov.uk/id/local-authority/43UM,WOKING BOROUGH COUNCIL,05/04/2018,05/04/2018,GPC/00002497,BANNER GROUP LTD,PROCUREMENT CARD,1.55,ASSET MANAGEMENT - CIVIC OFFICES,STATIONERY,G620,CIVIC OFFICES STATIONERY,MR R D SMITH,STATIONERY STORES
http://statistics.data.gov.uk/id/local-authority/43UM,WOKING BOROUGH COUNCIL,05/04/2018,05/04/2018,GPC/00002497,BANNER GROUP LTD,PROCUREMENT CARD,1.60,ASSET MANAGEMENT - CIVIC OFFICES,STATIONERY,G620,CIVIC OFFICES STATIONERY,MR R D SMITH,STATIONERY STORES
http://statistics.data.gov.uk/id/local-authority/43UM,WOKING BOROUGH COUNCIL,05/04/2018,05/04/2018,GPC/00002497,BANNER GROUP LTD,PROCUREMENT CARD,2.16,ASSET MANAGEMENT - CIVIC OFFICES,STATIONERY,G620,CIVIC OFFICES STATIONERY,MR R D SMITH,STATIONERY STORES
http://statistics.data.gov.uk/id/local-authority/43UM,WOKING BOROUGH COUNCIL,05/04/2018,05/04/2018,GPC/00002497,BANNER GROUP LTD,PROCUREMENT CARD,2.60,ASSET MANAGEMENT - CIVIC OFFICES,STATIONERY,G620,CIVIC OFFICES STATIONERY,MR R D SMITH,STATIONERY STORES
http://statistics.data.gov.uk/id/local-authority/43UM,WOKING BOROUGH COUNCIL,05/04/2018,05/04/2018,GPC/00002497,BANNER GROUP LTD,PROCUREMENT CARD,3.32,ASSET MANAGEMENT - CIVIC OFFICES,STATIONERY,G620,CIVIC OFFICES STATIONERY,MR R D SMITH,STATIONERY STORES
http://statistics.data.gov.uk/id/local-authority/43UM,WOKING BOROUGH COUNCIL,05/04/2018,05/04/2018,GPC/00002497,BANNER GROUP LTD,PROCUREMENT CARD,3.55,ASSET MANAGEMENT - CIVIC OFFICES,STATIONERY,G620,CIVIC OFFICES STATIONERY,MR R D SMITH,STATIONERY STORES
http://statistics.data.gov.uk/id/local-authority/43UM,WOKING BOROUGH COUNCIL,05/04/2018,05/04/2018,GPC/00002497,BANNER GROUP LTD,PROCUREMENT CARD,6.97,ASSET MANAGEMENT - CIVIC OFFICES,STATIONERY,G620,CIVIC OFFICES STATIONERY,MR R D SMITH,STATIONERY STORES
http://statistics.data.gov.uk/id/local-authority/43UM,WOKING BOROUGH COUNCIL,05/04/2018,05/04/2018,GPC/00002497,BANNER GROUP LTD,PROCUREMENT CARD,8.00,ASSET MANAGEMENT - CIVIC OFFICES,STATIONERY,G620,CIVIC OFFICES STATIONERY,MR R D SMITH,STATIONERY STORES
http://statistics.data.gov.uk/id/local-authority/43UM,WOKING BOROUGH COUNCIL,05/04/2018,05/04/2018,GPC/00002497,BANNER GROUP LTD,PROCUREMENT CARD,9.70,ASSET MANAGEMENT - CIVIC OFFICES,STATIONERY,G620,CIVIC OFFICES STATIONERY,MR R D SMITH,STATIONERY STORES
http://statistics.data.gov.uk/id/local-authority/43UM,WOKING BOROUGH COUNCIL,05/04/2018,05/04/2018,GPC/00002497,BANNER GROUP LTD,PROCUREMENT CARD,9.90,ASSET MANAGEMENT - CIVIC OFFICES,STATIONERY,G620,CIVIC OFFICES STATIONERY,MR R D SMITH,STATIONERY STORES
http://statistics.data.gov.uk/id/local-authority/43UM,WOKING BOROUGH COUNCIL,05/04/2018,05/04/2018,GPC/00002497,BANNER GROUP LTD,PROCUREMENT CARD,10.70,ASSET MANAGEMENT - CIVIC OFFICES,STATIONERY,G620,CIVIC OFFICES STATIONERY,MR R D SMITH,STATIONERY STORES
http://statistics.data.gov.uk/id/local-authority/43UM,WOKING BOROUGH COUNCIL,05/04/2018,05/04/2018,GPC/00002497,BANNER GROUP LTD,PROCUREMENT CARD,15.09,ASSET MANAGEMENT - CIVIC OFFICES,STATIONERY,G620,CIVIC OFFICES STATIONERY,MR R D SMITH,STATIONERY STORES
http://statistics.data.gov.uk/id/local-authority/43UM,WOKING BOROUGH COUNCIL,05/04/2018,05/04/2018,GPC/00002497,BANNER GROUP LTD,PROCUREMENT CARD,16.08,ASSET MANAGEMENT - CIVIC OFFICES,STATIONERY,G620,CIVIC OFFICES STATIONERY,MR R D SMITH,STATIONERY STORES
http://statistics.data.gov.uk/id/local-authority/43UM,WOKING BOROUGH COUNCIL,05/04/2018,05/04/2018,GPC/00002497,BANNER GROUP LTD,PROCUREMENT CARD,29.28,ASSET MANAGEMENT - CIVIC OFFICES,STATIONERY,G620,CIVIC OFFICES STATIONERY,MR R D SMITH,STATIONERY STORES
http://statistics.data.gov.uk/id/local-authority/43UM,WOKING BOROUGH COUNCIL,05/04/2018,05/04/2018,GPC/00002498,BANNER GROUP LTD,PROCUREMENT CARD,4.20,ASSET MANAGEMENT - CIVIC OFFICES,STATIONERY,G620,CAR PARKS STATIONERY,MR R D SMITH,STATIONERY STORES
http://statistics.data.gov.uk/id/local-authority/43UM,WOKING BOROUGH COUNCIL,05/04/2018,05/04/2018,GPC/00002498,BANNER GROUP LTD,PROCUREMENT CARD,8.61,ASSET MANAGEMENT - CIVIC OFFICES,STATIONERY,G620,CAR PARKS STATIONERY,MR R D SMITH,STATIONERY STORES
http://statistics.data.gov.uk/id/local-authority/43UM,WOKING BOROUGH COUNCIL,05/04/2018,05/04/2018,GPC/00002498,BANNER GROUP LTD,PROCUREMENT CARD,8.90,ASSET MANAGEMENT - CIVIC OFFICES,STATIONERY,G620,CAR PARKS STATIONERY,MR R D SMITH,STATIONERY STORES
http://statistics.data.gov.uk/id/local-authority/43UM,WOKING BOROUGH COUNCIL,05/04/2018,05/04/2018,GPC/00002498,BANNER GROUP LTD,PROCUREMENT CARD,13.83,ASSET MANAGEMENT - CIVIC OFFICES,STATIONERY,G620,CAR PARKS STATIONERY,MR R D SMITH,STATIONERY STORES
http://statistics.data.gov.uk/id/local-authority/43UM,WOKING BOROUGH COUNCIL,05/04/2018,05/04/2018,GPC/00002521,WWW.SURREY-CHAMBERS.CO.U,PROCUREMENT CARD,20.00,H G WELLS - H G WELLS - FUNCTION ROOMS,ADVERTISING,H400,SURREY CHAMBERS NETWORKING,MRS M CHILCOTT,MEMBER ORGANISATIONS - DEF
http://statistics.data.gov.uk/id/local-authority/43UM,WOKING BOROUGH COUNCIL,05/04/2018,05/04/2018,GPC/00002500,WICKES,PROCUREMENT CARD,23.28,HOUSING SERVICES - HOME IMPS & BEN AGENCY,HANDYPERSON MATERIALS,G201,HANDYPERSONS MATERIALS,IAN DEANE,HOME SUPPLY WAREHOUSE STORES
http://statistics.data.gov.uk/id/local-authority/43UM,WOKING BOROUGH COUNCIL,05/04/2018,05/04/2018,GPC/00002505,FREEDOM LEISURE,PROCUREMENT CARD,26.50,INDEPENDENT LIVING SERVICES - FAMILY SUPPORT PROGRAMME,FAMILY ENABLING (FSP PROJECT),H137,KEY CARDS FOR FAMILY,SARAH WRIGHT,GOV'T SERV - DEFAULT
http://statistics.data.gov.uk/id/local-authority/43UM,WOKING BOROUGH COUNCIL,05/04/2018,05/04/2018,GPC/00002501,MARTIN MCCOLL,PROCUREMENT CARD,10.98,INDEPENDENT LIVING SERVICES - FAMILY SUPPORT PROGRAMME,FAMILY ENABLING (FSP PROJECT),H137,REFRESHMENTS FOR FAMILY,TANYA CULVER,MISC FOOD STORES - DEFAULT
http://statistics.data.gov.uk/id/local-authority/43UM,WOKING BOROUGH COUNCIL,05/04/2018,05/04/2018,GPC/00002507,POSSUM LIMITED,PROCUREMENT CARD,150.00,INDEPENDENT LIVING SERVICES - COMMUNITY ALARMS-GF,NEW EQUIPMENT,G105,TUNSTALL JELLY BEAN SWITCHES,PAULINE LOCK,PROFESSIONAL SERVICES - DEF
http://statistics.data.gov.uk/id/local-authority/43UM,WOKING BOROUGH COUNCIL,05/04/2018,05/04/2018,GPC/00002504,MALTHURST LIMITED,PROCUREMENT CARD,44.68,INDEPENDENT LIVING SERVICES - MEALS ON WHEELS,PETROL,F200,DIESEL PURCHASE FOR COMMUNITY MEALS VEHICLE,BERNADETTE MAHONEY,SERVICE STATIONS
http://statistics.data.gov.uk/id/local-authority/43UM,WOKING BOROUGH COUNCIL,05/04/2018,05/04/2018,GPC/00002497,BANNER GROUP LTD,PROCUREMENT CARD,2.55,INDEPENDENT LIVING SERVICES - MEALS ON WHEELS,TELEPHONES-CALL CHARGES,G810,CIVIC OFFICES STATIONERY,MR R D SMITH,STATIONERY STORES
http://statistics.data.gov.uk/id/local-authority/43UM,WOKING BOROUGH COUNCIL,05/04/2018,05/04/2018,GPC/00002497,BANNER GROUP LTD,PROCUREMENT CARD,12.40,INDEPENDENT LIVING SERVICES - MEALS ON WHEELS,TELEPHONES-CALL CHARGES,G810,CIVIC OFFICES STATIONERY,MR R D SMITH,STATIONERY STORES
http://statistics.data.gov.uk/id/local-authority/43UM,WOKING BOROUGH COUNCIL,05/04/2018,05/04/2018,GPC/00002499,WAITROSE 181,PROCUREMENT CARD,11.72,HOUSING SERVICES - HOUSING OPTIONS,EQUIPMENT,G100,CLEANING EQUIPMENT FOR ASSISTING HOARDER,JANET COURTNEY,GROCERY STORES
http://statistics.data.gov.uk/id/local-authority/43UM,WOKING BOROUGH COUNCIL,05/04/2018,05/04/2018,GPC/00002493,AMAZON SVCS EU-UK AMAZON.,PROCUREMENT CARD,15.96,HOUSING SERVICES - SYRIAN REFUGEE FAMILES,PURCHASE OF FURNITURE,Q500,FURNITURE - VPR,JULIE COOK,BOOK STORES
http://statistics.data.gov.uk/id/local-authority/43UM,WOKING BOROUGH COUNCIL,05/04/2018,05/04/2018,GPC/00002495,ARGOS LTD,PROCUREMENT CARD,237.95,HOUSING SERVICES - SYRIAN REFUGEE FAMILES,PURCHASE OF FURNITURE,Q500,FURNITURE - VPR,JULIE COOK,DISCOUNT STORES
http://statistics.data.gov.uk/id/local-authority/43UM,WOKING BOROUGH COUNCIL,05/04/2018,05/04/2018,GPC/00002494,ARGOS WATCHMOOR PA,PROCUREMENT CARD,11.98,HOUSING SERVICES - SYRIAN REFUGEE FAMILES,PURCHASE OF FURNITURE,Q500,HOUSEHOLD FUNITURE - VPR,JULIE COOK,DISCOUNT STORES
http://statistics.data.gov.uk/id/local-authority/43UM,WOKING BOROUGH COUNCIL,05/04/2018,05/04/2018,GPC/00002496,WILKO RETAIL LIMIT,PROCUREMENT CARD,14.00,HOUSING SERVICES - SYRIAN REFUGEE FAMILES,PURCHASE OF FURNITURE,Q500,FURNITURE - VPR,JULIE COOK,HOUSEHOLD APPLIANCE STORES
http://statistics.data.gov.uk/id/local-authority/43UM,WOKING BOROUGH COUNCIL,21/03/2018,06/04/2018,0000422073/001,GUILDFORD BOROUGH COUNCIL,00012000,130.00,CORPORATE STRATEGY - CIVIC EXPENSES,MAYORS ALLOWANCE-CURRENT,H250,MAYORS ALLOWANCE-CURRENT,CORPORATE STRATEGY,VEHICLE MANAGEMENT
http://statistics.data.gov.uk/id/local-authority/43UM,WOKING BOROUGH COUNCIL,12/03/2018,06/04/2018,0000421711/002,MWUK LTD T/A ALEXANDRA,00014800,10.80,INDEPENDENT LIVING SERVICES - MEALS SERVICE - ST MARYS,CLOTHING/UNIFORMS,G510,CLOTHING/UNIFORMS,INDEPENDENT LIVING SERVICES,CLOTHING
http://statistics.data.gov.uk/id/local-authority/43UM,WOKING BOROUGH COUNCIL,12/03/2018,06/04/2018,0000421711/001,MWUK LTD T/A ALEXANDRA,00014800,23.40,INDEPENDENT LIVING SERVICES - MEALS SERVICE-MOORCROFT,CLOTHING/UNIFORMS,G510,CLOTHING/UNIFORMS,INDEPENDENT LIVING SERVICES,CLOTHING
http://statistics.data.gov.uk/id/local-authority/43UM,WOKING BOROUGH COUNCIL,12/03/2018,06/04/2018,0000421711/003,MWUK LTD T/A ALEXANDRA,00014800,22.50,INDEPENDENT LIVING SERVICES - MEALS SERVICE -THE VYNE,CLOTHING/UNIFORMS,G510,CLOTHING/UNIFORMS,INDEPENDENT LIVING SERVICES,CLOTHING
http://statistics.data.gov.uk/id/local-authority/43UM,WOKING BOROUGH COUNCIL,12/03/2018,06/04/2018,0000421873/001,MWUK LTD T/A ALEXANDRA,00014800,26.10,INDEPENDENT LIVING SERVICES - MEALS ON WHEELS,CLOTHING/UNIFORMS,G510,CLOTHING/UNIFORMS,INDEPENDENT LIVING SERVICES,CLOTHING
http://statistics.data.gov.uk/id/local-authority/43UM,WOKING BOROUGH COUNCIL,12/03/2018,06/04/2018,0000421873/002,MWUK LTD T/A ALEXANDRA,00014800,19.80,INDEPENDENT LIVING SERVICES - MEALS ON WHEELS,CLOTHING/UNIFORMS,G510,CLOTHING/UNIFORMS,INDEPENDENT LIVING SERVICES,CLOTHING
http://statistics.data.gov.uk/id/local-authority/43UM,WOKING BOROUGH COUNCIL,13/03/2018,06/04/2018,0000421651/001,HEADLINE DESIGN & PRINT,00016900,125.00,NEIGHBOURHOOD SERVICES - SPORTS DEVELOPMENT,ADVERTISING,H400,ADVERTISING,NEIGHBOURHOOD SERVICES,FINANCIAL SERVICES
http://statistics.data.gov.uk/id/local-authority/43UM,WOKING BOROUGH COUNCIL,13/03/2018,06/04/2018,0000421652/001,HEADLINE DESIGN & PRINT,00016900,249.00,NEIGHBOURHOOD SERVICES - SPORTS DEVELOPMENT,ADVERTISING,H400,ADVERTISING,NEIGHBOURHOOD SERVICES,FINANCIAL SERVICES
http://statistics.data.gov.uk/id/local-authority/43UM,WOKING BOROUGH COUNCIL,13/03/2018,06/04/2018,0000421652/002,HEADLINE DESIGN & PRINT,00016900,105.00,NEIGHBOURHOOD SERVICES - SPORTS DEVELOPMENT,ADVERTISING,H400,ADVERTISING,NEIGHBOURHOOD SERVICES,FINANCIAL SERVICES
http://statistics.data.gov.uk/id/local-authority/43UM,WOKING BOROUGH COUNCIL,08/03/2018,06/04/2018,0000421449/001,HEADLINE DESIGN & PRINT,00016900,242.81,NEIGHBOURHOOD SERVICES - ENV IMP SPONSORSHIP INITIATIVE,ADVERTISING,H400,ADVERTISING,NEIGHBOURHOOD SERVICES,FINANCIAL SERVICES
http://statistics.data.gov.uk/id/local-authority/43UM,WOKING BOROUGH COUNCIL,13/03/2018,06/04/2018,0000421653/001,HEADLINE DESIGN & PRINT,00016900,37.50,NEIGHBOURHOOD SERVICES - EQUALITIES,PUBLICITY,H405,PUBLICITY,NEIGHBOURHOOD SERVICES,FINANCIAL SERVICES
http://statistics.data.gov.uk/id/local-authority/43UM,WOKING BOROUGH COUNCIL,09/03/2018,06/04/2018,0000421604/001,HEADLINE DESIGN & PRINT,00016900,75.00,CORPORATE STRATEGY - TOWN CENTRE FORUM,MARKETING,H406,MARKETING,CORPORATE STRATEGY,FINANCIAL SERVICES
http://statistics.data.gov.uk/id/local-authority/43UM,WOKING BOROUGH COUNCIL,08/03/2018,06/04/2018,0000421450/001,HEADLINE DESIGN & PRINT,00016900,83.00,CORPORATE STRATEGY - TOWN CENTRE FORUM,ECDEV ENTERPRISE M3,H413,ECDEV ENTERPRISE M3,CORPORATE STRATEGY,FINANCIAL SERVICES
http://statistics.data.gov.uk/id/local-authority/43UM,WOKING BOROUGH COUNCIL,12/03/2018,06/04/2018,0000421599/001,HEADLINE DESIGN & PRINT,00016900,50.00,CORPORATE MANAGEMENT GROUP - STAFF TRAINING/GENERAL COSTS,UNALLOCATED RECRUITMENT COSTS,A870,UNALLOCATED RECRUITMENT COSTS,CORPORATE MANAGEMENT GROUP,FINANCIAL SERVICES
http://statistics.data.gov.uk/id/local-authority/43UM,WOKING BOROUGH COUNCIL,13/03/2018,06/04/2018,0000421655/001,HEADLINE DESIGN & PRINT,00016900,89.60,INDEPENDENT LIVING SERVICES - PPPF PERSONALISATION & PREV FD,PROMOTING COMMUNITY SUPPORT IN MEDICAL CENTRES,Q227,PROMOTING COMMUNITY SUPPORT IN MEDICAL CENTRES,INDEPENDENT LIVING SERVICES,FINANCIAL SERVICES
http://statistics.data.gov.uk/id/local-authority/43UM,WOKING BOROUGH COUNCIL,12/03/2018,06/04/2018,0000421632/001,HEADLINE DESIGN & PRINT,00016900,37.50,CORPORATE STRATEGY - CELEBRATE WOKING - MARKETING/PROMO 14,MAIN CONTRACTOR,Q200,MAIN CONTRACTOR,CORPORATE STRATEGY,FINANCIAL SERVICES
http://statistics.data.gov.uk/id/local-authority/43UM,WOKING BOROUGH COUNCIL,12/03/2018,06/04/2018,0000422513/001,LLOYDS BANK PLC,00018000,859.82,FINANCIAL SERVICES - CORPORATE MANAGEMENT (FINANCE),BANK CHARGES,H625,BANK CHARGES,FINANCIAL SERVICES,FINANCIAL SERVICES
http://statistics.data.gov.uk/id/local-authority/43UM,WOKING BOROUGH COUNCIL,12/03/2018,06/04/2018,0000421892/001,TUNSTALL HEALTHCARE (UK) LTD,00019000,234.00,INDEPENDENT LIVING SERVICES - COMMUNITY ALARMS-GF,EQUIPMENT - BATTERIES,G181,EQUIPMENT - BATTERIES,INDEPENDENT LIVING SERVICES,HEALTHCARE
http://statistics.data.gov.uk/id/local-authority/43UM,WOKING BOROUGH COUNCIL,08/03/2018,06/04/2018,0000422002/001,PORTERS,00021300,95.00,INDEPENDENT LIVING SERVICES - REMOVAL COSTS SHEERWATER REGEB,MAIN CONTRACTOR,Q200,MAIN CONTRACTOR,INDEPENDENT LIVING SERVICES,HOUSING MANAGEMENT
http://statistics.data.gov.uk/id/local-authority/43UM,WOKING BOROUGH COUNCIL,05/04/2018,06/04/2018,0030000878/001,PUBLIC WORKS LOAN BOARD,00021400,16208.28,FINANCIAL SERVICES - INTEREST PAYABLE & SIMILAR CHG,PWLB ANNUITY,U111,PWLB ANNUITY,FINANCIAL SERVICES,FINANCIAL SERVICES
http://statistics.data.gov.uk/id/local-authority/43UM,WOKING BOROUGH COUNCIL,04/04/2018,06/04/2018,0030000873/001,PUBLIC WORKS LOAN BOARD,00021400,106500.00,FINANCIAL SERVICES - INTEREST PAYABLE & SIMILAR CHG,PWLB MATURITY LOAN,U112,PWLB MATURITY LOAN,FINANCIAL SERVICES,FINANCIAL SERVICES
http://statistics.data.gov.uk/id/local-authority/43UM,WOKING BOROUGH COUNCIL,04/04/2018,06/04/2018,0030000874/001,PUBLIC WORKS LOAN BOARD,00021400,118750.00,FINANCIAL SERVICES - INTEREST PAYABLE & SIMILAR CHG,PWLB MATURITY LOAN,U112,PWLB MATURITY LOAN,FINANCIAL SERVICES,FINANCIAL SERVICES
http://statistics.data.gov.uk/id/local-authority/43UM,WOKING BOROUGH COUNCIL,04/04/2018,06/04/2018,0030000875/001,PUBLIC WORKS LOAN BOARD,00021400,118750.00,FINANCIAL SERVICES - INTEREST PAYABLE & SIMILAR CHG,PWLB MATURITY LOAN,U112,PWLB MATURITY LOAN,FINANCIAL SERVICES,FINANCIAL SERVICES
http://statistics.data.gov.uk/id/local-authority/43UM,WOKING BOROUGH COUNCIL,12/03/2018,06/04/2018,0000421674/001,ROYAL TOWN PLANNING INSTITUTE,00024000,55.00,CORPORATE MANAGEMENT GROUP - STAFF TRAINING/GENERAL COSTS,TRAINING - CORPORATE,A910,TRAINING - CORPORATE,CORPORATE MANAGEMENT GROUP,CONSULTANCY
http://statistics.data.gov.uk/id/local-authority/43UM,WOKING BOROUGH COUNCIL,26/02/2018,06/04/2018,0000422355/001,THOMSON REUTERS,00027200,736.00,CORPORATE STRATEGY - LEGAL,BOOKS MAPS PLANS,G650,BOOKS MAPS PLANS,CORPORATE STRATEGY,LEGAL SERVICES
http://statistics.data.gov.uk/id/local-authority/43UM,WOKING BOROUGH COUNCIL,20/03/2018,06/04/2018,0000422378/001,SPELTHORNE BOROUGH COUNCIL,00027500,487.50,PLANNING SERVICES - BUILDING REGULATIONS,PAYMENTS TO OTHER LA'S,H695,PAYMENTS TO OTHER LA'S,PLANNING SERVICES,INFORMATION COMMUNICATION TECHNOLOGY
http://statistics.data.gov.uk/id/local-authority/43UM,WOKING BOROUGH COUNCIL,08/03/2018,06/04/2018,0000421903/001,CHRISTCHURCH WOKING,00028000,207.00,CORPORATE MANAGEMENT GROUP - STAFF TRAINING/GENERAL COSTS,TRAINING - CORPORATE,A910,TRAINING - CORPORATE,CORPORATE MANAGEMENT GROUP,FINANCIAL SERVICES
http://statistics.data.gov.uk/id/local-authority/43UM,WOKING BOROUGH COUNCIL,12/03/2018,06/04/2018,0000421890/001,RAINER SECURITY PRODUCTS LTD,00030400,27.75,NEIGHBOURHOOD SERVICES - PARKS-GENERAL,GRD MTCE NON CCT,D240,GRD MTCE NON CCT,NEIGHBOURHOOD SERVICES,FACILITIES & MANAGEMENT SERVICES
http://statistics.data.gov.uk/id/local-authority/43UM,WOKING BOROUGH COUNCIL,12/03/2018,06/04/2018,0000421890/002,RAINER SECURITY PRODUCTS LTD,00030400,18.50,NEIGHBOURHOOD SERVICES - PARKS-GENERAL,GRD MTCE NON CCT,D240,GRD MTCE NON CCT,NEIGHBOURHOOD SERVICES,FACILITIES & MANAGEMENT SERVICES
http://statistics.data.gov.uk/id/local-authority/43UM,WOKING BOROUGH COUNCIL,12/03/2018,06/04/2018,0000421890/003,RAINER SECURITY PRODUCTS LTD,00030400,8.50,NEIGHBOURHOOD SERVICES - PARKS-GENERAL,GRD MTCE NON CCT,D240,GRD MTCE NON CCT,NEIGHBOURHOOD SERVICES,FACILITIES & MANAGEMENT SERVICES
http://statistics.data.gov.uk/id/local-authority/43UM,WOKING BOROUGH COUNCIL,09/03/2018,06/04/2018,0000421891/001,RAINER SECURITY PRODUCTS LTD,00030400,27.75,NEIGHBOURHOOD SERVICES - PARKS-GENERAL,GRD MTCE NON CCT,D240,GRD MTCE NON CCT,NEIGHBOURHOOD SERVICES,FACILITIES & MANAGEMENT SERVICES
http://statistics.data.gov.uk/id/local-authority/43UM,WOKING BOROUGH COUNCIL,09/03/2018,06/04/2018,0000421891/002,RAINER SECURITY PRODUCTS LTD,00030400,18.50,NEIGHBOURHOOD SERVICES - PARKS-GENERAL,GRD MTCE NON CCT,D240,GRD MTCE NON CCT,NEIGHBOURHOOD SERVICES,FACILITIES & MANAGEMENT SERVICES
http://statistics.data.gov.uk/id/local-authority/43UM,WOKING BOROUGH COUNCIL,09/03/2018,06/04/2018,0000421891/003,RAINER SECURITY PRODUCTS LTD,00030400,5.00,NEIGHBOURHOOD SERVICES - PARKS-GENERAL,GRD MTCE NON CCT,D240,GRD MTCE NON CCT,NEIGHBOURHOOD SERVICES,FACILITIES & MANAGEMENT SERVICES
http://statistics.data.gov.uk/id/local-authority/43UM,WOKING BOROUGH COUNCIL,07/03/2018,06/04/2018,0000422023/001,THE PARISH OF WISLEY WITH PYRFORD,00030600,2090.00,NEIGHBOURHOOD SERVICES - ST NICHOLAS-PYRFORD,GROUNDS MAINT-CONTRACTORS,D200,GROUNDS MAINT-CONTRACTORS,NEIGHBOURHOOD SERVICES,WORKS (CONSTRUCTION REPAIR MAINTENANCE)
http://statistics.data.gov.uk/id/local-authority/43UM,WOKING BOROUGH COUNCIL,16/01/2018,06/04/2018,0000420865/001,PPL,00039300,709.07,H G WELLS - H G WELLS - FUNCTION ROOMS,PERFORMING RIGHTS,H462,PERFORMING RIGHTS,H G WELLS,FACILITIES & MANAGEMENT SERVICES
http://statistics.data.gov.uk/id/local-authority/43UM,WOKING BOROUGH COUNCIL,12/03/2018,06/04/2018,0000421738/001,ECONOMY PLUMBING & HEATING LIMITED,00044400,2479.20,HOUSING SERVICES - PRIVATE SECTOR RENEWAL GRANT,WARM AT HOME GRANTS,Q729,WARM AT HOME GRANTS,HOUSING SERVICES,FINANCIAL SERVICES
http://statistics.data.gov.uk/id/local-authority/43UM,WOKING BOROUGH COUNCIL,12/03/2018,06/04/2018,0000422147/001,KENT COUNTY COUNCIL (KCS),00050800,-254.15,HOUSING SERVICES - LANDLORDS EXPENSES,ELECTRICITY,D400,ELECTRICITY,HOUSING SERVICES,UTILITIES
http://statistics.data.gov.uk/id/local-authority/43UM,WOKING BOROUGH COUNCIL,12/03/2018,06/04/2018,0000422148/001,KENT COUNTY COUNCIL (KCS),00050800,112.52,HOUSING SERVICES - LANDLORDS EXPENSES,ELECTRICITY,D400,ELECTRICITY,HOUSING SERVICES,UTILITIES
http://statistics.data.gov.uk/id/local-authority/43UM,WOKING BOROUGH COUNCIL,12/03/2018,06/04/2018,0000422149/001,KENT COUNTY COUNCIL (KCS),00050800,115.99,HOUSING SERVICES - LANDLORDS EXPENSES,ELECTRICITY,D400,ELECTRICITY,HOUSING SERVICES,UTILITIES
http://statistics.data.gov.uk/id/local-authority/43UM,WOKING BOROUGH COUNCIL,12/03/2018,06/04/2018,0000422150/001,KENT COUNTY COUNCIL (KCS),00050800,116.11,HOUSING SERVICES - LANDLORDS EXPENSES,ELECTRICITY,D400,ELECTRICITY,HOUSING SERVICES,UTILITIES
http://statistics.data.gov.uk/id/local-authority/43UM,WOKING BOROUGH COUNCIL,12/03/2018,06/04/2018,0000422151/001,KENT COUNTY COUNCIL (KCS),00050800,115.99,HOUSING SERVICES - LANDLORDS EXPENSES,ELECTRICITY,D400,ELECTRICITY,HOUSING SERVICES,UTILITIES
http://statistics.data.gov.uk/id/local-authority/43UM,WOKING BOROUGH COUNCIL,12/03/2018,06/04/2018,0000422153/001,KENT COUNTY COUNCIL (KCS),00050800,112.49,HOUSING SERVICES - LANDLORDS EXPENSES,ELECTRICITY,D400,ELECTRICITY,HOUSING SERVICES,UTILITIES
http://statistics.data.gov.uk/id/local-authority/43UM,WOKING BOROUGH COUNCIL,12/03/2018,06/04/2018,0000422154/001,KENT COUNTY COUNCIL (KCS),00050800,458.56,HOUSING SERVICES - LANDLORDS EXPENSES,ELECTRICITY,D400,ELECTRICITY,HOUSING SERVICES,UTILITIES
http://statistics.data.gov.uk/id/local-authority/43UM,WOKING BOROUGH COUNCIL,12/03/2018,06/04/2018,0000422155/001,KENT COUNTY COUNCIL (KCS),00050800,-98.41,HOUSING SERVICES - LANDLORDS EXPENSES,ELECTRICITY,D400,ELECTRICITY,HOUSING SERVICES,UTILITIES
http://statistics.data.gov.uk/id/local-authority/43UM,WOKING BOROUGH COUNCIL,12/03/2018,06/04/2018,0000422156/001,KENT COUNTY COUNCIL (KCS),00050800,-137.29,HOUSING SERVICES - LANDLORDS EXPENSES,ELECTRICITY,D400,ELECTRICITY,HOUSING SERVICES,UTILITIES
http://statistics.data.gov.uk/id/local-authority/43UM,WOKING BOROUGH COUNCIL,12/03/2018,06/04/2018,0000422158/001,KENT COUNTY COUNCIL (KCS),00050800,-164.74,HOUSING SERVICES - LANDLORDS EXPENSES,ELECTRICITY,D400,ELECTRICITY,HOUSING SERVICES,UTILITIES
http://statistics.data.gov.uk/id/local-authority/43UM,WOKING BOROUGH COUNCIL,12/03/2018,06/04/2018,0000422159/001,KENT COUNTY COUNCIL (KCS),00050800,-115.31,HOUSING SERVICES - LANDLORDS EXPENSES,ELECTRICITY,D400,ELECTRICITY,HOUSING SERVICES,UTILITIES
http://statistics.data.gov.uk/id/local-authority/43UM,WOKING BOROUGH COUNCIL,12/03/2018,06/04/2018,0000422199/001,KENT COUNTY COUNCIL (KCS),00050800,-206.71,HOUSING SERVICES - LANDLORDS EXPENSES,ELECTRICITY,D400,ELECTRICITY,HOUSING SERVICES,UTILITIES
http://statistics.data.gov.uk/id/local-authority/43UM,WOKING BOROUGH COUNCIL,22/09/2017,06/04/2018,0000415468/001,BEMROSE BOOTH PARAGON LTD,00053100,4717.00,NEIGHBOURHOOD SERVICES - CAR PARKS ADMIN&OPERATIONAL EX,PRINTING EXTERNAL,G600,PRINTING EXTERNAL,NEIGHBOURHOOD SERVICES,INFORMATION COMMUNICATION TECHNOLOGY
http://statistics.data.gov.uk/id/local-authority/43UM,WOKING BOROUGH COUNCIL,09/03/2018,06/04/2018,0000421531/001,REIGATE AND BANSTEAD BOROUGH COUNCIL,00058900,2286.30,ASSET MANAGEMENT - VALUATION SERVICES,TEMPORARY STAFF,A110,TEMPORARY STAFF,ASSET MANAGEMENT,WORKS (CONSTRUCTION REPAIR MAINTENANCE)
http://statistics.data.gov.uk/id/local-authority/43UM,WOKING BOROUGH COUNCIL,01/02/2018,06/04/2018,0000420789/001,PERSONNEL SELECTION ASSOCIATES LIMITED,00061400,300.00,H G WELLS - H G WELLS - FUNCTION ROOMS,TEMPORARY STAFF,H687,TEMPORARY STAFF,H G WELLS,HUMAN RESOURCES
http://statistics.data.gov.uk/id/local-authority/43UM,WOKING BOROUGH COUNCIL,22/02/2018,06/04/2018,0000420982/001,PERSONNEL SELECTION ASSOCIATES LIMITED,00061400,187.50,H G WELLS - H G WELLS - FUNCTION ROOMS,TEMPORARY STAFF,H687,TEMPORARY STAFF,H G WELLS,HUMAN RESOURCES
http://statistics.data.gov.uk/id/local-authority/43UM,WOKING BOROUGH COUNCIL,08/03/2018,06/04/2018,0000421486/001,PERSONNEL SELECTION ASSOCIATES LIMITED,00061400,250.00,H G WELLS - H G WELLS - FUNCTION ROOMS,TEMPORARY STAFF,H687,TEMPORARY STAFF,H G WELLS,HUMAN RESOURCES
http://statistics.data.gov.uk/id/local-authority/43UM,WOKING BOROUGH COUNCIL,08/03/2018,06/04/2018,0000421486/002,PERSONNEL SELECTION ASSOCIATES LIMITED,00061400,91.50,H G WELLS - H G WELLS - FUNCTION ROOMS,TEMPORARY STAFF,H687,TEMPORARY STAFF,H G WELLS,HUMAN RESOURCES
http://statistics.data.gov.uk/id/local-authority/43UM,WOKING BOROUGH COUNCIL,15/03/2018,06/04/2018,0000421666/001,PERSONNEL SELECTION ASSOCIATES LIMITED,00061400,346.88,H G WELLS - H G WELLS - FUNCTION ROOMS,TEMPORARY STAFF,H687,TEMPORARY STAFF,H G WELLS,HUMAN RESOURCES
http://statistics.data.gov.uk/id/local-authority/43UM,WOKING BOROUGH COUNCIL,22/03/2018,06/04/2018,0000422089/001,PERSONNEL SELECTION ASSOCIATES LIMITED,00061400,368.75,H G WELLS - H G WELLS - FUNCTION ROOMS,TEMPORARY STAFF,H687,TEMPORARY STAFF,H G WELLS,HUMAN RESOURCES
http://statistics.data.gov.uk/id/local-authority/43UM,WOKING BOROUGH COUNCIL,22/03/2018,06/04/2018,0000422089/002,PERSONNEL SELECTION ASSOCIATES LIMITED,00061400,146.40,H G WELLS - H G WELLS - FUNCTION ROOMS,TEMPORARY STAFF,H687,TEMPORARY STAFF,H G WELLS,HUMAN RESOURCES
http://statistics.data.gov.uk/id/local-authority/43UM,WOKING BOROUGH COUNCIL,01/03/2018,06/04/2018,0000422431/002,PERSONNEL SELECTION ASSOCIATES LIMITED,00061400,110.00,H G WELLS - H G WELLS - FUNCTION ROOMS,TEMPORARY STAFF,H687,TEMPORARY STAFF,H G WELLS,HUMAN RESOURCES
http://statistics.data.gov.uk/id/local-authority/43UM,WOKING BOROUGH COUNCIL,22/02/2018,06/04/2018,0000420982/002,PERSONNEL SELECTION ASSOCIATES LIMITED,00061400,153.13,H G WELLS - H G WELLS - BAR,TEMPORARY STAFF,H687,TEMPORARY STAFF,H G WELLS,HUMAN RESOURCES
http://statistics.data.gov.uk/id/local-authority/43UM,WOKING BOROUGH COUNCIL,08/03/2018,06/04/2018,0000421486/003,PERSONNEL SELECTION ASSOCIATES LIMITED,00061400,368.75,H G WELLS - H G WELLS - BAR,TEMPORARY STAFF,H687,TEMPORARY STAFF,H G WELLS,HUMAN RESOURCES
http://statistics.data.gov.uk/id/local-authority/43UM,WOKING BOROUGH COUNCIL,15/03/2018,06/04/2018,0000421666/002,PERSONNEL SELECTION ASSOCIATES LIMITED,00061400,575.00,H G WELLS - H G WELLS - BAR,TEMPORARY STAFF,H687,TEMPORARY STAFF,H G WELLS,HUMAN RESOURCES
http://statistics.data.gov.uk/id/local-authority/43UM,WOKING BOROUGH COUNCIL,22/03/2018,06/04/2018,0000422089/003,PERSONNEL SELECTION ASSOCIATES LIMITED,00061400,543.75,H G WELLS - H G WELLS - BAR,TEMPORARY STAFF,H687,TEMPORARY STAFF,H G WELLS,HUMAN RESOURCES
http://statistics.data.gov.uk/id/local-authority/43UM,WOKING BOROUGH COUNCIL,01/03/2018,06/04/2018,0000422431/001,PERSONNEL SELECTION ASSOCIATES LIMITED,00061400,58.75,H G WELLS - H G WELLS - BAR,TEMPORARY STAFF,H687,TEMPORARY STAFF,H G WELLS,HUMAN RESOURCES
http://statistics.data.gov.uk/id/local-authority/43UM,WOKING BOROUGH COUNCIL,22/03/2018,06/04/2018,0000422066/002,PERSONNEL SELECTION ASSOCIATES LIMITED,00061400,669.36,INDEPENDENT LIVING SERVICES - ST. MARY'S,TEMPORARY STAFF,A110,TEMPORARY STAFF,INDEPENDENT LIVING SERVICES,HUMAN RESOURCES
http://statistics.data.gov.uk/id/local-authority/43UM,WOKING BOROUGH COUNCIL,01/03/2018,06/04/2018,0000422432/001,PERSONNEL SELECTION ASSOCIATES LIMITED,00061400,308.00,INDEPENDENT LIVING SERVICES - MEALS SERVICE,TEMPORARY STAFF,A110,TEMPORARY STAFF,INDEPENDENT LIVING SERVICES,HUMAN RESOURCES
http://statistics.data.gov.uk/id/local-authority/43UM,WOKING BOROUGH COUNCIL,22/03/2018,06/04/2018,0000422066/001,PERSONNEL SELECTION ASSOCIATES LIMITED,00061400,315.68,INDEPENDENT LIVING SERVICES - PARKVIEW,TEMPORARY STAFF,A110,TEMPORARY STAFF,INDEPENDENT LIVING SERVICES,HUMAN RESOURCES
http://statistics.data.gov.uk/id/local-authority/43UM,WOKING BOROUGH COUNCIL,27/03/2018,06/04/2018,0000422368/001,THE MAYBURY CENTRE TRUST,00062600,7.00,HOUSING SERVICES - PRIVATE SECTOR HOUSING,EVENTS EXPENSES,G418,EVENTS EXPENSES,HOUSING SERVICES,FINANCIAL SERVICES
http://statistics.data.gov.uk/id/local-authority/43UM,WOKING BOROUGH COUNCIL,14/02/2018,06/04/2018,0000421063/001,M&J SEAFOOD,00074600,133.27,H G WELLS - H G WELLS - CATERING,PROVISIONS-FOOD,G440,PROVISIONS-FOOD,H G WELLS,CATERING
http://statistics.data.gov.uk/id/local-authority/43UM,WOKING BOROUGH COUNCIL,27/02/2018,06/04/2018,0000421306/001,M&J SEAFOOD,00074600,46.94,H G WELLS - H G WELLS - CATERING,PROVISIONS-FOOD,G440,PROVISIONS-FOOD,H G WELLS,CATERING
http://statistics.data.gov.uk/id/local-authority/43UM,WOKING BOROUGH COUNCIL,03/03/2018,06/04/2018,0000421785/001,M&J SEAFOOD,00074600,80.71,H G WELLS - H G WELLS - CATERING,PROVISIONS-FOOD,G440,PROVISIONS-FOOD,H G WELLS,CATERING
http://statistics.data.gov.uk/id/local-authority/43UM,WOKING BOROUGH COUNCIL,13/03/2018,06/04/2018,0000421791/001,M&J SEAFOOD,00074600,123.84,H G WELLS - H G WELLS - CATERING,PROVISIONS-FOOD,G440,PROVISIONS-FOOD,H G WELLS,CATERING
http://statistics.data.gov.uk/id/local-authority/43UM,WOKING BOROUGH COUNCIL,12/03/2018,06/04/2018,0000421675/001,FRAZERS SURVEYORS LTD,00076400,200.00,ASSET MANAGEMENT - PROPERTY SERVICES,CONSULTANTS,H670,CONSULTANTS,ASSET MANAGEMENT,HOUSING MANAGEMENT
http://statistics.data.gov.uk/id/local-authority/43UM,WOKING BOROUGH COUNCIL,07/03/2018,06/04/2018,0000421451/001,FRAZERS SURVEYORS LTD,00076400,150.00,HOUSING SERVICES - SALE COUNCIL HOUSES,OTHER CONSULTANTS,Q430,OTHER CONSULTANTS,HOUSING SERVICES,HOUSING MANAGEMENT
http://statistics.data.gov.uk/id/local-authority/43UM,WOKING BOROUGH COUNCIL,13/03/2018,06/04/2018,0000421657/001,FRAZERS SURVEYORS LTD,00076400,150.00,HOUSING SERVICES - SALE COUNCIL HOUSES,OTHER CONSULTANTS,Q430,OTHER CONSULTANTS,HOUSING SERVICES,HOUSING MANAGEMENT
http://statistics.data.gov.uk/id/local-authority/43UM,WOKING BOROUGH COUNCIL,13/02/2018,06/04/2018,0000420730/001,SCATTERGOODS AGENCY LTD,00094600,284.91,H G WELLS - H G WELLS - FUNCTION ROOMS,TEMPORARY STAFF,H687,TEMPORARY STAFF,H G WELLS,HUMAN RESOURCES
http://statistics.data.gov.uk/id/local-authority/43UM,WOKING BOROUGH COUNCIL,20/02/2018,06/04/2018,0000421256/001,SCATTERGOODS AGENCY LTD,00094600,103.60,H G WELLS - H G WELLS - FUNCTION ROOMS,TEMPORARY STAFF,H687,TEMPORARY STAFF,H G WELLS,HUMAN RESOURCES
http://statistics.data.gov.uk/id/local-authority/43UM,WOKING BOROUGH COUNCIL,27/02/2018,06/04/2018,0000421435/001,SCATTERGOODS AGENCY LTD,00094600,343.18,H G WELLS - H G WELLS - FUNCTION ROOMS,TEMPORARY STAFF,H687,TEMPORARY STAFF,H G WELLS,HUMAN RESOURCES
http://statistics.data.gov.uk/id/local-authority/43UM,WOKING BOROUGH COUNCIL,06/03/2018,06/04/2018,0000421786/001,SCATTERGOODS AGENCY LTD,00094600,1421.28,H G WELLS - H G WELLS - FUNCTION ROOMS,TEMPORARY STAFF,H687,TEMPORARY STAFF,H G WELLS,HUMAN RESOURCES
http://statistics.data.gov.uk/id/local-authority/43UM,WOKING BOROUGH COUNCIL,16/03/2018,06/04/2018,0000422086/001,SCATTERGOODS AGENCY LTD,00094600,103.60,H G WELLS - H G WELLS - FUNCTION ROOMS,TEMPORARY STAFF,H687,TEMPORARY STAFF,H G WELLS,HUMAN RESOURCES
http://statistics.data.gov.uk/id/local-authority/43UM,WOKING BOROUGH COUNCIL,13/03/2018,06/04/2018,0000422087/001,SCATTERGOODS AGENCY LTD,00094600,103.60,H G WELLS - H G WELLS - FUNCTION ROOMS,TEMPORARY STAFF,H687,TEMPORARY STAFF,H G WELLS,HUMAN RESOURCES
http://statistics.data.gov.uk/id/local-authority/43UM,WOKING BOROUGH COUNCIL,20/03/2018,06/04/2018,0000422163/002,SCATTERGOODS AGENCY LTD,00094600,1486.02,H G WELLS - H G WELLS - FUNCTION ROOMS,TEMPORARY STAFF,H687,TEMPORARY STAFF,H G WELLS,HUMAN RESOURCES
http://statistics.data.gov.uk/id/local-authority/43UM,WOKING BOROUGH COUNCIL,13/02/2018,06/04/2018,0000420730/002,SCATTERGOODS AGENCY LTD,00094600,174.83,H G WELLS - H G WELLS - CATERING,TEMPORARY STAFF,H687,TEMPORARY STAFF,H G WELLS,HUMAN RESOURCES
http://statistics.data.gov.uk/id/local-authority/43UM,WOKING BOROUGH COUNCIL,20/02/2018,06/04/2018,0000421256/002,SCATTERGOODS AGENCY LTD,00094600,145.69,H G WELLS - H G WELLS - CATERING,TEMPORARY STAFF,H687,TEMPORARY STAFF,H G WELLS,HUMAN RESOURCES
http://statistics.data.gov.uk/id/local-authority/43UM,WOKING BOROUGH COUNCIL,27/02/2018,06/04/2018,0000421435/002,SCATTERGOODS AGENCY LTD,00094600,265.48,H G WELLS - H G WELLS - CATERING,TEMPORARY STAFF,H687,TEMPORARY STAFF,H G WELLS,HUMAN RESOURCES
http://statistics.data.gov.uk/id/local-authority/43UM,WOKING BOROUGH COUNCIL,06/03/2018,06/04/2018,0000421786/002,SCATTERGOODS AGENCY LTD,00094600,330.23,H G WELLS - H G WELLS - CATERING,TEMPORARY STAFF,H687,TEMPORARY STAFF,H G WELLS,HUMAN RESOURCES
http://statistics.data.gov.uk/id/local-authority/43UM,WOKING BOROUGH COUNCIL,13/03/2018,06/04/2018,0000422087/002,SCATTERGOODS AGENCY LTD,00094600,207.20,H G WELLS - H G WELLS - CATERING,TEMPORARY STAFF,H687,TEMPORARY STAFF,H G WELLS,HUMAN RESOURCES
http://statistics.data.gov.uk/id/local-authority/43UM,WOKING BOROUGH COUNCIL,20/03/2018,06/04/2018,0000422163/001,SCATTERGOODS AGENCY LTD,00094600,608.66,H G WELLS - H G WELLS - CATERING,TEMPORARY STAFF,H687,TEMPORARY STAFF,H G WELLS,HUMAN RESOURCES
http://statistics.data.gov.uk/id/local-authority/43UM,WOKING BOROUGH COUNCIL,08/03/2018,06/04/2018,0000422207/001,DISTRICT SURVEYORS ASSOC.LTD T/A LABC,00096300,1873.53,PLANNING SERVICES - BUILDING REGULATIONS,MEMBERSHIP FEES,H116,MEMBERSHIP FEES,PLANNING SERVICES,CONSULTANCY
http://statistics.data.gov.uk/id/local-authority/43UM,WOKING BOROUGH COUNCIL,15/02/2018,06/04/2018,0000420741/001,CONVIVIALITY GRP T/A MATTHEW CLARK,00107800,343.03,H G WELLS - H G WELLS - BAR,PROVISIONS-BAR,G450,PROVISIONS-BAR,H G WELLS,CATERING
http://statistics.data.gov.uk/id/local-authority/43UM,WOKING BOROUGH COUNCIL,05/04/2018,06/04/2018,0030000877/001,BARCLAYS CAPITAL,00132800,98479.45,FINANCIAL SERVICES - INTEREST PAYABLE & SIMILAR CHG,MARKET BONDS,U116,MARKET BONDS,FINANCIAL SERVICES,FINANCIAL SERVICES
http://statistics.data.gov.uk/id/local-authority/43UM,WOKING BOROUGH COUNCIL,04/03/2018,06/04/2018,0000421695/001,WEST HORSLEY DAIRY,00147600,717.76,H G WELLS - H G WELLS - CATERING,PROVISIONS-FOOD,G440,PROVISIONS-FOOD,H G WELLS,CATERING
http://statistics.data.gov.uk/id/local-authority/43UM,WOKING BOROUGH COUNCIL,11/03/2018,06/04/2018,0000421734/001,WEST HORSLEY DAIRY,00147600,182.24,H G WELLS - H G WELLS - CATERING,PROVISIONS-FOOD,G440,PROVISIONS-FOOD,H G WELLS,CATERING
http://statistics.data.gov.uk/id/local-authority/43UM,WOKING BOROUGH COUNCIL,13/03/2018,06/04/2018,0000422375/001,GOLDSWORTH PRIMARY SCHOOL,00332100,759.00,NEIGHBOURHOOD SERVICES - SPORTS DEVELOPMENT,HIRE OF PREMISES,D505,HIRE OF PREMISES,NEIGHBOURHOOD SERVICES,FACILITIES & MANAGEMENT SERVICES
http://statistics.data.gov.uk/id/local-authority/43UM,WOKING BOROUGH COUNCIL,06/03/2018,06/04/2018,0000421782/001,WOKING TOWN TWINNING ASSOCIATION,00354600,112.03,CORPORATE STRATEGY - CIVIC EXPENSES,OFFICIAL HOSPITALITY,H310,OFFICIAL HOSPITALITY,CORPORATE STRATEGY,FINANCIAL SERVICES
http://statistics.data.gov.uk/id/local-authority/43UM,WOKING BOROUGH COUNCIL,12/03/2018,06/04/2018,0000421832/001,WHISTL UK LIMITED,00367900,1425.24,CORPORATE STRATEGY - POSTAGE,POSTAGE - STANDARD TARIFF,G700,POSTAGE - STANDARD TARIFF,CORPORATE STRATEGY,MAIL SERVICES
http://statistics.data.gov.uk/id/local-authority/43UM,WOKING BOROUGH COUNCIL,12/03/2018,06/04/2018,0000421833/001,WHISTL UK LIMITED,00367900,153.42,CORPORATE STRATEGY - POSTAGE,POSTAGE - STANDARD TARIFF,G700,POSTAGE - STANDARD TARIFF,CORPORATE STRATEGY,MAIL SERVICES
http://statistics.data.gov.uk/id/local-authority/43UM,WOKING BOROUGH COUNCIL,16/02/2018,06/04/2018,0000421986/001,MARSTON BOOK SERVICES LTD,00497200,302.95,CORPORATE STRATEGY - LEGAL,BOOKS MAPS PLANS,G650,BOOKS MAPS PLANS,CORPORATE STRATEGY,LEGAL SERVICES
http://statistics.data.gov.uk/id/local-authority/43UM,WOKING BOROUGH COUNCIL,20/11/2017,06/04/2018,0000421987/001,MARSTON BOOK SERVICES LTD,00497200,302.95,CORPORATE STRATEGY - LEGAL,BOOKS MAPS PLANS,G650,BOOKS MAPS PLANS,CORPORATE STRATEGY,LEGAL SERVICES
http://statistics.data.gov.uk/id/local-authority/43UM,WOKING BOROUGH COUNCIL,16/03/2018,06/04/2018,0000422048/001,MOLE VALLEY DISTRICT COUNCIL,00547600,1480.00,CORPORATE STRATEGY - CORPORATE MANAGEMENT,SUBSCRIPTIONS,H110,SUBSCRIPTIONS,CORPORATE STRATEGY,INFORMATION COMMUNICATION TECHNOLOGY
http://statistics.data.gov.uk/id/local-authority/43UM,WOKING BOROUGH COUNCIL,16/03/2018,06/04/2018,0000422047/001,MOLE VALLEY DISTRICT COUNCIL,00547600,240.00,REVENUES AND BENEFITS - CUSTOMER SERVICES,ANSWERING SERVICE,G853,ANSWERING SERVICE,REVENUES AND BENEFITS,INFORMATION COMMUNICATION TECHNOLOGY
http://statistics.data.gov.uk/id/local-authority/43UM,WOKING BOROUGH COUNCIL,16/03/2018,06/04/2018,0000421946/001,MOLE VALLEY DISTRICT COUNCIL,00547600,845.00,NEIGHBOURHOOD SERVICES - REGULATION AND ENFORCEMENT,SECURITY OUTOFHRS CALL HANDLIN,H607,SECURITY OUTOFHRS CALL HANDLIN,NEIGHBOURHOOD SERVICES,INFORMATION COMMUNICATION TECHNOLOGY
http://statistics.data.gov.uk/id/local-authority/43UM,WOKING BOROUGH COUNCIL,09/03/2018,06/04/2018,0000421713/001,CAPITA BUSINESS SERVICES LTD,00585800,2760.00,REVENUES AND BENEFITS - C'L TAX BENEFIT ADMIN,SUBSCRIPTIONS,H110,SUBSCRIPTIONS,REVENUES AND BENEFITS,CONSULTANCY
http://statistics.data.gov.uk/id/local-authority/43UM,WOKING BOROUGH COUNCIL,12/02/2018,06/04/2018,0000420751/001,REEVES BUTCHERS LTD,01005000,25.40,H G WELLS - H G WELLS - CATERING,PROVISIONS-FOOD,G440,PROVISIONS-FOOD,H G WELLS,CATERING
http://statistics.data.gov.uk/id/local-authority/43UM,WOKING BOROUGH COUNCIL,14/02/2018,06/04/2018,0000421061/001,REEVES BUTCHERS LTD,01005000,102.68,H G WELLS - H G WELLS - CATERING,PROVISIONS-FOOD,G440,PROVISIONS-FOOD,H G WELLS,CATERING
http://statistics.data.gov.uk/id/local-authority/43UM,WOKING BOROUGH COUNCIL,19/02/2018,06/04/2018,0000421062/001,REEVES BUTCHERS LTD,01005000,12.00,H G WELLS - H G WELLS - CATERING,PROVISIONS-FOOD,G440,PROVISIONS-FOOD,H G WELLS,CATERING
http://statistics.data.gov.uk/id/local-authority/43UM,WOKING BOROUGH COUNCIL,20/02/2018,06/04/2018,0000421305/001,REEVES BUTCHERS LTD,01005000,36.00,H G WELLS - H G WELLS - CATERING,PROVISIONS-FOOD,G440,PROVISIONS-FOOD,H G WELLS,CATERING
http://statistics.data.gov.uk/id/local-authority/43UM,WOKING BOROUGH COUNCIL,01/03/2018,06/04/2018,0000421441/001,REEVES BUTCHERS LTD,01005000,1128.13,H G WELLS - H G WELLS - CATERING,PROVISIONS-FOOD,G440,PROVISIONS-FOOD,H G WELLS,CATERING
http://statistics.data.gov.uk/id/local-authority/43UM,WOKING BOROUGH COUNCIL,03/03/2018,06/04/2018,0000421717/001,REEVES BUTCHERS LTD,01005000,71.76,H G WELLS - H G WELLS - CATERING,PROVISIONS-FOOD,G440,PROVISIONS-FOOD,H G WELLS,CATERING
http://statistics.data.gov.uk/id/local-authority/43UM,WOKING BOROUGH COUNCIL,06/03/2018,06/04/2018,0000421718/001,REEVES BUTCHERS LTD,01005000,19.01,H G WELLS - H G WELLS - CATERING,PROVISIONS-FOOD,G440,PROVISIONS-FOOD,H G WELLS,CATERING
http://statistics.data.gov.uk/id/local-authority/43UM,WOKING BOROUGH COUNCIL,08/03/2018,06/04/2018,0000421719/001,REEVES BUTCHERS LTD,01005000,40.23,H G WELLS - H G WELLS - CATERING,PROVISIONS-FOOD,G440,PROVISIONS-FOOD,H G WELLS,CATERING
http://statistics.data.gov.uk/id/local-authority/43UM,WOKING BOROUGH COUNCIL,10/03/2018,06/04/2018,0000421735/001,REEVES BUTCHERS LTD,01005000,36.04,H G WELLS - H G WELLS - CATERING,PROVISIONS-FOOD,G440,PROVISIONS-FOOD,H G WELLS,CATERING
http://statistics.data.gov.uk/id/local-authority/43UM,WOKING BOROUGH COUNCIL,13/03/2018,06/04/2018,0000421787/001,REEVES BUTCHERS LTD,01005000,87.15,H G WELLS - H G WELLS - CATERING,PROVISIONS-FOOD,G440,PROVISIONS-FOOD,H G WELLS,CATERING
http://statistics.data.gov.uk/id/local-authority/43UM,WOKING BOROUGH COUNCIL,12/03/2018,06/04/2018,0000421710/001,MARTIN CONWAY,01025900,455.00,HOUSING SERVICES - HOUSING OPTIONS,BED & BREAKFAST EXPENDITURE,H786,BED & BREAKFAST EXPENDITURE,HOUSING SERVICES,HOUSING MANAGEMENT
http://statistics.data.gov.uk/id/local-authority/43UM,WOKING BOROUGH COUNCIL,14/03/2018,06/04/2018,0000422056/001,BROOK STREET (UK) LTD,01049600,586.08,HOUSING SERVICES - HOUSING STANDARDS & LICENSING,TEMPORARY STAFF,A110,TEMPORARY STAFF,HOUSING SERVICES,HUMAN RESOURCES
http://statistics.data.gov.uk/id/local-authority/43UM,WOKING BOROUGH COUNCIL,14/03/2018,06/04/2018,0000422057/001,BROOK STREET (UK) LTD,01049600,233.64,HOUSING SERVICES - HOUSING STANDARDS & LICENSING,TEMPORARY STAFF,A110,TEMPORARY STAFF,HOUSING SERVICES,HUMAN RESOURCES
http://statistics.data.gov.uk/id/local-authority/43UM,WOKING BOROUGH COUNCIL,16/02/2018,06/04/2018,0000420729/001,CHEESMAN BROTHERS LTD,01050500,17.46,H G WELLS - H G WELLS - CATERING,PROVISIONS-FOOD,G440,PROVISIONS-FOOD,H G WELLS,CATERING
http://statistics.data.gov.uk/id/local-authority/43UM,WOKING BOROUGH COUNCIL,07/02/2018,06/04/2018,0000421221/001,CHEESMAN BROTHERS LTD,01050500,13.44,H G WELLS - H G WELLS - CATERING,PROVISIONS-FOOD,G440,PROVISIONS-FOOD,H G WELLS,CATERING
http://statistics.data.gov.uk/id/local-authority/43UM,WOKING BOROUGH COUNCIL,26/02/2018,06/04/2018,0000421302/001,CHEESMAN BROTHERS LTD,01050500,7.52,H G WELLS - H G WELLS - CATERING,PROVISIONS-FOOD,G440,PROVISIONS-FOOD,H G WELLS,CATERING
http://statistics.data.gov.uk/id/local-authority/43UM,WOKING BOROUGH COUNCIL,28/02/2018,06/04/2018,0000421437/001,CHEESMAN BROTHERS LTD,01050500,64.00,H G WELLS - H G WELLS - CATERING,PROVISIONS-FOOD,G440,PROVISIONS-FOOD,H G WELLS,CATERING
http://statistics.data.gov.uk/id/local-authority/43UM,WOKING BOROUGH COUNCIL,09/03/2018,06/04/2018,0000421491/002,CHEESMAN BROTHERS LTD,01050500,61.04,INDEPENDENT LIVING SERVICES - MEALS SERVICE - BROCKHILL,PROVISIONS,G410,PROVISIONS,INDEPENDENT LIVING SERVICES,CATERING
http://statistics.data.gov.uk/id/local-authority/43UM,WOKING BOROUGH COUNCIL,09/03/2018,06/04/2018,0000421491/004,CHEESMAN BROTHERS LTD,01050500,13.24,INDEPENDENT LIVING SERVICES - MEALS SERVICE - BROCKHILL,PROVISIONS,G410,PROVISIONS,INDEPENDENT LIVING SERVICES,CATERING
http://statistics.data.gov.uk/id/local-authority/43UM,WOKING BOROUGH COUNCIL,09/03/2018,06/04/2018,0000421491/001,CHEESMAN BROTHERS LTD,01050500,28.35,INDEPENDENT LIVING SERVICES - MEALS SERVICE-MOORCROFT,PROVISIONS,G410,PROVISIONS,INDEPENDENT LIVING SERVICES,CATERING
http://statistics.data.gov.uk/id/local-authority/43UM,WOKING BOROUGH COUNCIL,09/03/2018,06/04/2018,0000421491/003,CHEESMAN BROTHERS LTD,01050500,32.03,INDEPENDENT LIVING SERVICES - MEALS SERVICE -THE VYNE,PROVISIONS,G410,PROVISIONS,INDEPENDENT LIVING SERVICES,CATERING
http://statistics.data.gov.uk/id/local-authority/43UM,WOKING BOROUGH COUNCIL,28/02/2018,06/04/2018,0000422131/004,THAMESWEY ENERGY LIMITED,01142300,134.96,INDEPENDENT LIVING SERVICES - BROCKHILL EXTRA CARE,TEL ELECTRICITY,D480,TEL ELECTRICITY,INDEPENDENT LIVING SERVICES,UTILITIES
http://statistics.data.gov.uk/id/local-authority/43UM,WOKING BOROUGH COUNCIL,28/02/2018,06/04/2018,0000422133/004,THAMESWEY ENERGY LIMITED,01142300,151.53,INDEPENDENT LIVING SERVICES - BROCKHILL EXTRA CARE,TEL ELECTRICITY,D480,TEL ELECTRICITY,INDEPENDENT LIVING SERVICES,UTILITIES
http://statistics.data.gov.uk/id/local-authority/43UM,WOKING BOROUGH COUNCIL,28/02/2018,06/04/2018,0000422127/003,THAMESWEY ENERGY LIMITED,01142300,179.99,INDEPENDENT LIVING SERVICES - BROCKHILL EXTRA CARE,TEL GAS/HEATING,D481,TEL GAS/HEATING,INDEPENDENT LIVING SERVICES,UTILITIES
http://statistics.data.gov.uk/id/local-authority/43UM,WOKING BOROUGH COUNCIL,28/02/2018,06/04/2018,0000422131/003,THAMESWEY ENERGY LIMITED,01142300,494.87,INDEPENDENT LIVING SERVICES - MEALS SERVICE - BROCKHILL,TEL ELECTRICITY,D480,TEL ELECTRICITY,INDEPENDENT LIVING SERVICES,UTILITIES
http://statistics.data.gov.uk/id/local-authority/43UM,WOKING BOROUGH COUNCIL,28/02/2018,06/04/2018,0000422133/003,THAMESWEY ENERGY LIMITED,01142300,555.63,INDEPENDENT LIVING SERVICES - MEALS SERVICE - BROCKHILL,TEL ELECTRICITY,D480,TEL ELECTRICITY,INDEPENDENT LIVING SERVICES,UTILITIES
http://statistics.data.gov.uk/id/local-authority/43UM,WOKING BOROUGH COUNCIL,28/02/2018,06/04/2018,0000422127/002,THAMESWEY ENERGY LIMITED,01142300,659.95,INDEPENDENT LIVING SERVICES - MEALS SERVICE - BROCKHILL,TEL GAS/HEATING,D481,TEL GAS/HEATING,INDEPENDENT LIVING SERVICES,UTILITIES
http://statistics.data.gov.uk/id/local-authority/43UM,WOKING BOROUGH COUNCIL,28/02/2018,06/04/2018,0000422124/001,THAMESWEY ENERGY LIMITED,01142300,1770.33,INDEPENDENT LIVING SERVICES - ST MARY'S DAY CENTRE,TEL ELECTRICITY,D480,TEL ELECTRICITY,INDEPENDENT LIVING SERVICES,UTILITIES
http://statistics.data.gov.uk/id/local-authority/43UM,WOKING BOROUGH COUNCIL,28/02/2018,06/04/2018,0000422131/001,THAMESWEY ENERGY LIMITED,01142300,5913.41,HOUSING SERVICES - ENERGY,TEL ELECTRICITY,D480,TEL ELECTRICITY,HOUSING SERVICES,UTILITIES
http://statistics.data.gov.uk/id/local-authority/43UM,WOKING BOROUGH COUNCIL,28/02/2018,06/04/2018,0000422131/006,THAMESWEY ENERGY LIMITED,01142300,227.50,HOUSING SERVICES - ENERGY,TEL ELECTRICITY,D480,TEL ELECTRICITY,HOUSING SERVICES,UTILITIES
http://statistics.data.gov.uk/id/local-authority/43UM,WOKING BOROUGH COUNCIL,28/02/2018,06/04/2018,0000422133/001,THAMESWEY ENERGY LIMITED,01142300,6079.69,HOUSING SERVICES - ENERGY,TEL ELECTRICITY,D480,TEL ELECTRICITY,HOUSING SERVICES,UTILITIES
http://statistics.data.gov.uk/id/local-authority/43UM,WOKING BOROUGH COUNCIL,28/02/2018,06/04/2018,0000422133/006,THAMESWEY ENERGY LIMITED,01142300,239.82,HOUSING SERVICES - ENERGY,TEL ELECTRICITY,D480,TEL ELECTRICITY,HOUSING SERVICES,UTILITIES
http://statistics.data.gov.uk/id/local-authority/43UM,WOKING BOROUGH COUNCIL,28/02/2018,06/04/2018,0000422127/001,THAMESWEY ENERGY LIMITED,01142300,12534.63,HOUSING SERVICES - ENERGY,TEL GAS/HEATING,D481,TEL GAS/HEATING,HOUSING SERVICES,UTILITIES
http://statistics.data.gov.uk/id/local-authority/43UM,WOKING BOROUGH COUNCIL,28/02/2018,06/04/2018,0000422127/005,THAMESWEY ENERGY LIMITED,01142300,415.48,HOUSING SERVICES - ENERGY,TEL GAS/HEATING,D481,TEL GAS/HEATING,HOUSING SERVICES,UTILITIES
http://statistics.data.gov.uk/id/local-authority/43UM,WOKING BOROUGH COUNCIL,28/02/2018,06/04/2018,0000422131/002,THAMESWEY ENERGY LIMITED,01142300,645.11,HOUSING SERVICES - LANDLORDS EXPENSES,TEL ELECTRICITY,D480,TEL ELECTRICITY,HOUSING SERVICES,UTILITIES
http://statistics.data.gov.uk/id/local-authority/43UM,WOKING BOROUGH COUNCIL,28/02/2018,06/04/2018,0000422133/002,THAMESWEY ENERGY LIMITED,01142300,759.17,HOUSING SERVICES - LANDLORDS EXPENSES,TEL ELECTRICITY,D480,TEL ELECTRICITY,HOUSING SERVICES,UTILITIES
http://statistics.data.gov.uk/id/local-authority/43UM,WOKING BOROUGH COUNCIL,28/02/2018,06/04/2018,0000422131/005,THAMESWEY ENERGY LIMITED,01142300,394.77,HOUSING SERVICES - PETWORTH COURT,TEL ELECTRICITY,D480,TEL ELECTRICITY,HOUSING SERVICES,UTILITIES
http://statistics.data.gov.uk/id/local-authority/43UM,WOKING BOROUGH COUNCIL,28/02/2018,06/04/2018,0000422133/005,THAMESWEY ENERGY LIMITED,01142300,447.90,HOUSING SERVICES - PETWORTH COURT,TEL ELECTRICITY,D480,TEL ELECTRICITY,HOUSING SERVICES,UTILITIES
http://statistics.data.gov.uk/id/local-authority/43UM,WOKING BOROUGH COUNCIL,28/02/2018,06/04/2018,0000422127/004,THAMESWEY ENERGY LIMITED,01142300,474.82,HOUSING SERVICES - PETWORTH COURT,TEL GAS/HEATING,D481,TEL GAS/HEATING,HOUSING SERVICES,UTILITIES
http://statistics.data.gov.uk/id/local-authority/43UM,WOKING BOROUGH COUNCIL,07/03/2018,06/04/2018,0000421729/001,THAMESWEY ENERGY LIMITED,01142300,1092.74,NEIGHBOURHOOD SERVICES - CAR PARKS ADMIN&OPERATIONAL EX,TEL ELECTRICITY,D480,TEL ELECTRICITY,NEIGHBOURHOOD SERVICES,UTILITIES
http://statistics.data.gov.uk/id/local-authority/43UM,WOKING BOROUGH COUNCIL,07/03/2018,06/04/2018,0000421727/001,THAMESWEY ENERGY LIMITED,01142300,838.01,NEIGHBOURHOOD SERVICES - BREWERY ROAD,TEL ELECTRICITY,D480,TEL ELECTRICITY,NEIGHBOURHOOD SERVICES,UTILITIES
http://statistics.data.gov.uk/id/local-authority/43UM,WOKING BOROUGH COUNCIL,07/03/2018,06/04/2018,0000421730/001,THAMESWEY ENERGY LIMITED,01142300,2408.30,NEIGHBOURHOOD SERVICES - VICTORIA WAY CAR PARK,TEL ELECTRICITY,D480,TEL ELECTRICITY,NEIGHBOURHOOD SERVICES,UTILITIES
http://statistics.data.gov.uk/id/local-authority/43UM,WOKING BOROUGH COUNCIL,07/03/2018,06/04/2018,0000421731/001,THAMESWEY ENERGY LIMITED,01142300,1799.53,NEIGHBOURHOOD SERVICES - WOLSEY PLACE CAR PARK,TEL ELECTRICITY,D480,TEL ELECTRICITY,NEIGHBOURHOOD SERVICES,UTILITIES
http://statistics.data.gov.uk/id/local-authority/43UM,WOKING BOROUGH COUNCIL,07/03/2018,06/04/2018,0000421728/001,THAMESWEY ENERGY LIMITED,01142300,3371.59,NEIGHBOURHOOD SERVICES - TOYS R US CAR PARK,TEL ELECTRICITY,D480,TEL ELECTRICITY,NEIGHBOURHOOD SERVICES,UTILITIES
http://statistics.data.gov.uk/id/local-authority/43UM,WOKING BOROUGH COUNCIL,07/03/2018,06/04/2018,0000421726/001,THAMESWEY ENERGY LIMITED,01142300,3703.42,NEIGHBOURHOOD SERVICES - PEACOCKS CAR PARK,TEL ELECTRICITY,D480,TEL ELECTRICITY,NEIGHBOURHOOD SERVICES,UTILITIES
http://statistics.data.gov.uk/id/local-authority/43UM,WOKING BOROUGH COUNCIL,19/02/2018,06/04/2018,0000421797/001,TALK,01169000,17.00,CORPORATE STRATEGY - CIVIC EXPENSES,MAYORS ALLOWANCE-CURRENT,H250,MAYORS ALLOWANCE-CURRENT,CORPORATE STRATEGY,FINANCIAL SERVICES
http://statistics.data.gov.uk/id/local-authority/43UM,WOKING BOROUGH COUNCIL,06/03/2018,06/04/2018,0000421799/004,BFS GROUP LIMITED T/A BIDFOOD,01190400,342.87,H G WELLS - H G WELLS - BAR,EQUIPMENT,G100,EQUIPMENT,H G WELLS,CATERING
http://statistics.data.gov.uk/id/local-authority/43UM,WOKING BOROUGH COUNCIL,27/02/2018,06/04/2018,0000421301/003,BFS GROUP LIMITED T/A BIDFOOD,01190400,120.93,H G WELLS - H G WELLS - CATERING,CLEANING MATERIALS,D920,CLEANING MATERIALS,H G WELLS,CATERING
http://statistics.data.gov.uk/id/local-authority/43UM,WOKING BOROUGH COUNCIL,09/03/2018,06/04/2018,0000421737/002,BFS GROUP LIMITED T/A BIDFOOD,01190400,25.20,H G WELLS - H G WELLS - CATERING,CLEANING MATERIALS,D920,CLEANING MATERIALS,H G WELLS,CATERING
http://statistics.data.gov.uk/id/local-authority/43UM,WOKING BOROUGH COUNCIL,13/03/2018,06/04/2018,0000421790/002,BFS GROUP LIMITED T/A BIDFOOD,01190400,246.42,H G WELLS - H G WELLS - CATERING,CLEANING MATERIALS,D920,CLEANING MATERIALS,H G WELLS,CATERING
http://statistics.data.gov.uk/id/local-authority/43UM,WOKING BOROUGH COUNCIL,06/03/2018,06/04/2018,0000421799/003,BFS GROUP LIMITED T/A BIDFOOD,01190400,25.20,H G WELLS - H G WELLS - CATERING,CLEANING MATERIALS,D920,CLEANING MATERIALS,H G WELLS,CATERING
http://statistics.data.gov.uk/id/local-authority/43UM,WOKING BOROUGH COUNCIL,20/02/2018,06/04/2018,0000421066/002,BFS GROUP LIMITED T/A BIDFOOD,01190400,99.81,H G WELLS - H G WELLS - CATERING,EQUIPMENT,G100,EQUIPMENT,H G WELLS,CATERING
http://statistics.data.gov.uk/id/local-authority/43UM,WOKING BOROUGH COUNCIL,27/02/2018,06/04/2018,0000421301/002,BFS GROUP LIMITED T/A BIDFOOD,01190400,19.43,H G WELLS - H G WELLS - CATERING,EQUIPMENT,G100,EQUIPMENT,H G WELLS,CATERING
http://statistics.data.gov.uk/id/local-authority/43UM,WOKING BOROUGH COUNCIL,09/03/2018,06/04/2018,0000421736/002,BFS GROUP LIMITED T/A BIDFOOD,01190400,15.19,H G WELLS - H G WELLS - CATERING,EQUIPMENT,G100,EQUIPMENT,H G WELLS,CATERING
http://statistics.data.gov.uk/id/local-authority/43UM,WOKING BOROUGH COUNCIL,06/03/2018,06/04/2018,0000421799/002,BFS GROUP LIMITED T/A BIDFOOD,01190400,176.86,H G WELLS - H G WELLS - CATERING,EQUIPMENT,G100,EQUIPMENT,H G WELLS,CATERING
http://statistics.data.gov.uk/id/local-authority/43UM,WOKING BOROUGH COUNCIL,09/02/2018,06/04/2018,0000420752/001,BFS GROUP LIMITED T/A BIDFOOD,01190400,119.05,H G WELLS - H G WELLS - CATERING,PROVISIONS-FOOD,G440,PROVISIONS-FOOD,H G WELLS,CATERING
http://statistics.data.gov.uk/id/local-authority/43UM,WOKING BOROUGH COUNCIL,20/02/2018,06/04/2018,0000421066/001,BFS GROUP LIMITED T/A BIDFOOD,01190400,378.63,H G WELLS - H G WELLS - CATERING,PROVISIONS-FOOD,G440,PROVISIONS-FOOD,H G WELLS,CATERING
http://statistics.data.gov.uk/id/local-authority/43UM,WOKING BOROUGH COUNCIL,16/02/2018,06/04/2018,0000421067/001,BFS GROUP LIMITED T/A BIDFOOD,01190400,232.54,H G WELLS - H G WELLS - CATERING,PROVISIONS-FOOD,G440,PROVISIONS-FOOD,H G WELLS,CATERING
http://statistics.data.gov.uk/id/local-authority/43UM,WOKING BOROUGH COUNCIL,22/02/2018,06/04/2018,0000421179/001,BFS GROUP LIMITED T/A BIDFOOD,01190400,-56.87,H G WELLS - H G WELLS - CATERING,PROVISIONS-FOOD,G440,PROVISIONS-FOOD,H G WELLS,CATERING
http://statistics.data.gov.uk/id/local-authority/43UM,WOKING BOROUGH COUNCIL,27/02/2018,06/04/2018,0000421301/001,BFS GROUP LIMITED T/A BIDFOOD,01190400,436.47,H G WELLS - H G WELLS - CATERING,PROVISIONS-FOOD,G440,PROVISIONS-FOOD,H G WELLS,CATERING
http://statistics.data.gov.uk/id/local-authority/43UM,WOKING BOROUGH COUNCIL,09/03/2018,06/04/2018,0000421736/001,BFS GROUP LIMITED T/A BIDFOOD,01190400,159.00,H G WELLS - H G WELLS - CATERING,PROVISIONS-FOOD,G440,PROVISIONS-FOOD,H G WELLS,CATERING
http://statistics.data.gov.uk/id/local-authority/43UM,WOKING BOROUGH COUNCIL,09/03/2018,06/04/2018,0000421737/001,BFS GROUP LIMITED T/A BIDFOOD,01190400,319.62,H G WELLS - H G WELLS - CATERING,PROVISIONS-FOOD,G440,PROVISIONS-FOOD,H G WELLS,CATERING
http://statistics.data.gov.uk/id/local-authority/43UM,WOKING BOROUGH COUNCIL,13/03/2018,06/04/2018,0000421790/001,BFS GROUP LIMITED T/A BIDFOOD,01190400,532.60,H G WELLS - H G WELLS - CATERING,PROVISIONS-FOOD,G440,PROVISIONS-FOOD,H G WELLS,CATERING
http://statistics.data.gov.uk/id/local-authority/43UM,WOKING BOROUGH COUNCIL,06/03/2018,06/04/2018,0000421799/001,BFS GROUP LIMITED T/A BIDFOOD,01190400,530.56,H G WELLS - H G WELLS - CATERING,PROVISIONS-FOOD,G440,PROVISIONS-FOOD,H G WELLS,CATERING
http://statistics.data.gov.uk/id/local-authority/43UM,WOKING BOROUGH COUNCIL,31/03/2018,06/04/2018,0000422560/001,POST OFFICE GIROBANK,01225300,458.31,HOUSING SERVICES - RENT COLLECTION,GIROBANK CHARGES,H627,GIROBANK CHARGES,HOUSING SERVICES,FINANCIAL SERVICES
http://statistics.data.gov.uk/id/local-authority/43UM,WOKING BOROUGH COUNCIL,23/03/2018,06/04/2018,0000422452/001,ST MARY'S CHURCH,01293500,698.40,CORPORATE STRATEGY - COMMUNITY FUND,EXPEND FROM FUND,T750,EXPEND FROM FUND,CORPORATE STRATEGY,ARTS & LEISURE SERVICES
http://statistics.data.gov.uk/id/local-authority/43UM,WOKING BOROUGH COUNCIL,16/03/2018,06/04/2018,0000422346/001,CORAM LIFE EDUCATION,01341900,10000.00,NEIGHBOURHOOD SERVICES - LEC SURREY PROJECT,PAYMENTS TO ORGANISATIONS,X800,PAYMENTS TO ORGANISATIONS,NEIGHBOURHOOD SERVICES,FINANCIAL SERVICES
http://statistics.data.gov.uk/id/local-authority/43UM,WOKING BOROUGH COUNCIL,01/03/2018,06/04/2018,0000421780/002,GALAXY CARS,01385200,20.00,CORPORATE STRATEGY - CORPORATE STRATEGY GENERAL EXP,TRAVEL EXPENSES-OFFICERS,F600,TRAVEL EXPENSES-OFFICERS,CORPORATE STRATEGY,VEHICLE MANAGEMENT
http://statistics.data.gov.uk/id/local-authority/43UM,WOKING BOROUGH COUNCIL,01/03/2018,06/04/2018,0000421780/001,GALAXY CARS,01385200,2030.00,CORPORATE STRATEGY - MAYORS CAR AND DRIVER,VEHICLE AD HOC HIRING,F410,VEHICLE AD HOC HIRING,CORPORATE STRATEGY,VEHICLE MANAGEMENT
http://statistics.data.gov.uk/id/local-authority/43UM,WOKING BOROUGH COUNCIL,12/03/2018,06/04/2018,0000421985/001,EDF ENERGY,01426000,764.55,ASSET MANAGEMENT - 19A HIGH STREET,ELECTRICITY,D400,ELECTRICITY,ASSET MANAGEMENT,UTILITIES
http://statistics.data.gov.uk/id/local-authority/43UM,WOKING BOROUGH COUNCIL,12/03/2018,06/04/2018,0000421985/002,EDF ENERGY,01426000,27.16,ASSET MANAGEMENT - 19A HIGH STREET,CLIMATE CHANGE LEVY,D430,CLIMATE CHANGE LEVY,ASSET MANAGEMENT,UTILITIES
http://statistics.data.gov.uk/id/local-authority/43UM,WOKING BOROUGH COUNCIL,12/03/2018,06/04/2018,0000421984/001,EDF ENERGY,01426000,71.10,ASSET MANAGEMENT - POOLE RD CAR PARK,ELECTRICITY,D400,ELECTRICITY,ASSET MANAGEMENT,UTILITIES
http://statistics.data.gov.uk/id/local-authority/43UM,WOKING BOROUGH COUNCIL,19/03/2018,06/04/2018,0000422209/001,EDF ENERGY,01426000,726.93,CORPORATE STRATEGY - WOMENS SUPPORT CENTRE SURREY,ELECTRICITY,D400,ELECTRICITY,CORPORATE STRATEGY,UTILITIES
http://statistics.data.gov.uk/id/local-authority/43UM,WOKING BOROUGH COUNCIL,19/03/2018,06/04/2018,0000422209/002,EDF ENERGY,01426000,18.18,CORPORATE STRATEGY - WOMENS SUPPORT CENTRE SURREY,CLIMATE CHANGE LEVY,D430,CLIMATE CHANGE LEVY,CORPORATE STRATEGY,UTILITIES
http://statistics.data.gov.uk/id/local-authority/43UM,WOKING BOROUGH COUNCIL,07/03/2018,06/04/2018,0000421764/001,PARKEON LTD,01467400,85212.14,NEIGHBOURHOOD SERVICES - CAR PARKS ADMIN&OPERATIONAL EX,TICKET MACHINE ANNUAL CONTRACT,D830,TICKET MACHINE ANNUAL CONTRACT,NEIGHBOURHOOD SERVICES,STREET & TRAFFIC MANAGEMENT
http://statistics.data.gov.uk/id/local-authority/43UM,WOKING BOROUGH COUNCIL,07/03/2018,06/04/2018,0000421765/001,PARKEON LTD,01467400,32458.64,NEIGHBOURHOOD SERVICES - CAR PARKS ADMIN&OPERATIONAL EX,TICKET MACHINE ANNUAL CONTRACT,D830,TICKET MACHINE ANNUAL CONTRACT,NEIGHBOURHOOD SERVICES,STREET & TRAFFIC MANAGEMENT
http://statistics.data.gov.uk/id/local-authority/43UM,WOKING BOROUGH COUNCIL,07/03/2018,06/04/2018,0000421766/001,PARKEON LTD,01467400,19626.81,NEIGHBOURHOOD SERVICES - CAR PARKS ADMIN&OPERATIONAL EX,TICKET MACHINE ANNUAL CONTRACT,D830,TICKET MACHINE ANNUAL CONTRACT,NEIGHBOURHOOD SERVICES,STREET & TRAFFIC MANAGEMENT
http://statistics.data.gov.uk/id/local-authority/43UM,WOKING BOROUGH COUNCIL,09/03/2018,06/04/2018,0000421535/001,MARTIN CRANFIELD ASSOCIATES LTD,01474300,1235.75,NEIGHBOURHOOD SERVICES - NOISE/POLLUTION ABATE,CONSULTANTS,H670,CONSULTANTS,NEIGHBOURHOOD SERVICES,ENVIRONMENTAL SERVICES
http://statistics.data.gov.uk/id/local-authority/43UM,WOKING BOROUGH COUNCIL,07/03/2018,06/04/2018,0000421796/001,SPELTHORNE BOROUGH COUNCIL,01483200,130.00,CORPORATE STRATEGY - CIVIC EXPENSES,MAYORS ALLOWANCE-CURRENT,H250,MAYORS ALLOWANCE-CURRENT,CORPORATE STRATEGY,FINANCIAL SERVICES
http://statistics.data.gov.uk/id/local-authority/43UM,WOKING BOROUGH COUNCIL,21/03/2018,06/04/2018,0000422052/002,ALLSTAR BUSINESS SOLUTIONS LTD,01500600,11.40,INDEPENDENT LIVING SERVICES - MEALS ON WHEELS,GAS,D420,GAS,INDEPENDENT LIVING SERVICES,UTILITIES
http://statistics.data.gov.uk/id/local-authority/43UM,WOKING BOROUGH COUNCIL,21/03/2018,06/04/2018,0000422052/001,ALLSTAR BUSINESS SOLUTIONS LTD,01500600,149.00,INDEPENDENT LIVING SERVICES - MEALS ON WHEELS,PETROL,F200,PETROL,INDEPENDENT LIVING SERVICES,UTILITIES
http://statistics.data.gov.uk/id/local-authority/43UM,WOKING BOROUGH COUNCIL,21/03/2018,06/04/2018,0000422052/003,ALLSTAR BUSINESS SOLUTIONS LTD,01500600,1.90,INDEPENDENT LIVING SERVICES - MEALS ON WHEELS,PETROL,F200,PETROL,INDEPENDENT LIVING SERVICES,UTILITIES
http://statistics.data.gov.uk/id/local-authority/43UM,WOKING BOROUGH COUNCIL,13/03/2018,06/04/2018,0000421889/001,PEEKS OF BOURNEMOUTH LTD,01505700,9.16,INDEPENDENT LIVING SERVICES - BROCKHILL EXTRA CARE,EQUIPMENT,G100,EQUIPMENT,INDEPENDENT LIVING SERVICES,FACILITIES & MANAGEMENT SERVICES
http://statistics.data.gov.uk/id/local-authority/43UM,WOKING BOROUGH COUNCIL,13/03/2018,06/04/2018,0000421889/002,PEEKS OF BOURNEMOUTH LTD,01505700,3.32,INDEPENDENT LIVING SERVICES - BROCKHILL EXTRA CARE,EQUIPMENT,G100,EQUIPMENT,INDEPENDENT LIVING SERVICES,FACILITIES & MANAGEMENT SERVICES
http://statistics.data.gov.uk/id/local-authority/43UM,WOKING BOROUGH COUNCIL,13/03/2018,06/04/2018,0000421889/003,PEEKS OF BOURNEMOUTH LTD,01505700,5.49,INDEPENDENT LIVING SERVICES - BROCKHILL EXTRA CARE,EQUIPMENT,G100,EQUIPMENT,INDEPENDENT LIVING SERVICES,FACILITIES & MANAGEMENT SERVICES
http://statistics.data.gov.uk/id/local-authority/43UM,WOKING BOROUGH COUNCIL,03/03/2018,06/04/2018,0000421755/001,SALLIE MEINERT T/A STOCKTAKE UK,01613300,180.00,H G WELLS - H G WELLS - FUNCTION ROOMS,STOCKTAKING COSTS,H628,STOCKTAKING COSTS,H G WELLS,FACILITIES & MANAGEMENT SERVICES
http://statistics.data.gov.uk/id/local-authority/43UM,WOKING BOROUGH COUNCIL,08/03/2018,06/04/2018,0000421492/001,BOURNE INTERNATIONAL,01632500,440.00,CORPORATE STRATEGY - ELECTION ID PILOT,STATIONERY,G620,STATIONERY,CORPORATE STRATEGY,FACILITIES & MANAGEMENT SERVICES
http://statistics.data.gov.uk/id/local-authority/43UM,WOKING BOROUGH COUNCIL,08/03/2018,06/04/2018,0000421492/002,BOURNE INTERNATIONAL,01632500,333.75,CORPORATE STRATEGY - ELECTION ID PILOT,STATIONERY,G620,STATIONERY,CORPORATE STRATEGY,FACILITIES & MANAGEMENT SERVICES
http://statistics.data.gov.uk/id/local-authority/43UM,WOKING BOROUGH COUNCIL,08/03/2018,06/04/2018,0000421492/003,BOURNE INTERNATIONAL,01632500,550.00,CORPORATE STRATEGY - ELECTION ID PILOT,STATIONERY,G620,STATIONERY,CORPORATE STRATEGY,FACILITIES & MANAGEMENT SERVICES
http://statistics.data.gov.uk/id/local-authority/43UM,WOKING BOROUGH COUNCIL,19/03/2018,06/04/2018,0000422234/001,CROYDON COUNCIL,01650500,17432.50,FINANCIAL SERVICES - AUDIT,INTERNAL AUDIT CONTRACT,J660,INTERNAL AUDIT CONTRACT,FINANCIAL SERVICES,HUMAN RESOURCES
http://statistics.data.gov.uk/id/local-authority/43UM,WOKING BOROUGH COUNCIL,06/04/2018,06/04/2018,0030000880/001,DEXIA CREDIT LOCAL,01657300,118424.66,FINANCIAL SERVICES - INTEREST PAYABLE & SIMILAR CHG,L.O.B.O. LOAN,U113,L.O.B.O. LOAN,FINANCIAL SERVICES,FINANCIAL SERVICES
http://statistics.data.gov.uk/id/local-authority/43UM,WOKING BOROUGH COUNCIL,05/04/2018,06/04/2018,0030000879/001,DANSKE BANK,01657400,118424.66,FINANCIAL SERVICES - INTEREST PAYABLE & SIMILAR CHG,L.O.B.O. LOAN,U113,L.O.B.O. LOAN,FINANCIAL SERVICES,FINANCIAL SERVICES
http://statistics.data.gov.uk/id/local-authority/43UM,WOKING BOROUGH COUNCIL,12/03/2018,06/04/2018,0000421830/001,LEA'S CLEANING SERVICE LTD,01678300,245.00,ASSET MANAGEMENT - PROPERTY SERVICES,R&M BUILDINGS - CONTRACTORS,D100,R&M BUILDINGS - CONTRACTORS,ASSET MANAGEMENT,WORKS (CONSTRUCTION REPAIR MAINTENANCE)
http://statistics.data.gov.uk/id/local-authority/43UM,WOKING BOROUGH COUNCIL,12/03/2018,06/04/2018,0000421823/001,LEA'S CLEANING SERVICE LTD,01678300,150.00,ASSET MANAGEMENT - UNIT 2 LITTLEWICK CARTHOUSE L,R&M BUILDINGS - CONTRACTORS,D100,R&M BUILDINGS - CONTRACTORS,ASSET MANAGEMENT,WORKS (CONSTRUCTION REPAIR MAINTENANCE)
http://statistics.data.gov.uk/id/local-authority/43UM,WOKING BOROUGH COUNCIL,12/03/2018,06/04/2018,0000421824/001,LEA'S CLEANING SERVICE LTD,01678300,65.00,ASSET MANAGEMENT - 41 DARTMOUTH AVE (XHRA),R&M BUILDINGS - CONTRACTORS,D100,R&M BUILDINGS - CONTRACTORS,ASSET MANAGEMENT,WORKS (CONSTRUCTION REPAIR MAINTENANCE)
http://statistics.data.gov.uk/id/local-authority/43UM,WOKING BOROUGH COUNCIL,12/03/2018,06/04/2018,0000421824/002,LEA'S CLEANING SERVICE LTD,01678300,65.00,ASSET MANAGEMENT - 53 DARTMOUTH AVE (XHRA),R&M BUILDINGS - CONTRACTORS,D100,R&M BUILDINGS - CONTRACTORS,ASSET MANAGEMENT,WORKS (CONSTRUCTION REPAIR MAINTENANCE)
http://statistics.data.gov.uk/id/local-authority/43UM,WOKING BOROUGH COUNCIL,12/03/2018,06/04/2018,0000421921/001,LEA'S CLEANING SERVICE LTD,01678300,250.00,ASSET MANAGEMENT - FACILITIES MANAGEMENT,FACILITIES MANAGEMENT REPAIRS,D908,FACILITIES MANAGEMENT REPAIRS,ASSET MANAGEMENT,WORKS (CONSTRUCTION REPAIR MAINTENANCE)
http://statistics.data.gov.uk/id/local-authority/43UM,WOKING BOROUGH COUNCIL,12/03/2018,06/04/2018,0000421922/001,LEA'S CLEANING SERVICE LTD,01678300,95.00,ASSET MANAGEMENT - FACILITIES MANAGEMENT,FACILITIES MANAGEMENT REPAIRS,D908,FACILITIES MANAGEMENT REPAIRS,ASSET MANAGEMENT,WORKS (CONSTRUCTION REPAIR MAINTENANCE)
http://statistics.data.gov.uk/id/local-authority/43UM,WOKING BOROUGH COUNCIL,12/03/2018,06/04/2018,0000422195/001,LEA'S CLEANING SERVICE LTD,01678300,130.00,ASSET MANAGEMENT - FACILITIES MANAGEMENT,FACILITIES MANAGEMENT REPAIRS,D908,FACILITIES MANAGEMENT REPAIRS,ASSET MANAGEMENT,WORKS (CONSTRUCTION REPAIR MAINTENANCE)
http://statistics.data.gov.uk/id/local-authority/43UM,WOKING BOROUGH COUNCIL,12/03/2018,06/04/2018,0000421920/001,LEA'S CLEANING SERVICE LTD,01678300,60.00,ASSET MANAGEMENT - CIVIC OFFI GRND FL SOUTH WORKS,MAIN CONTRACTOR,Q200,MAIN CONTRACTOR,ASSET MANAGEMENT,WORKS (CONSTRUCTION REPAIR MAINTENANCE)
http://statistics.data.gov.uk/id/local-authority/43UM,WOKING BOROUGH COUNCIL,12/03/2018,06/04/2018,0000421628/001,TANGO SECURITY LTD,01708900,191.52,CORPORATE STRATEGY - PRIVATE CAR HIRE LICENCE,TAXI MARSHAL,H434,TAXI MARSHAL,CORPORATE STRATEGY,FACILITIES & MANAGEMENT SERVICES
http://statistics.data.gov.uk/id/local-authority/43UM,WOKING BOROUGH COUNCIL,12/03/2018,06/04/2018,0000421629/001,TANGO SECURITY LTD,01708900,127.68,CORPORATE STRATEGY - PRIVATE CAR HIRE LICENCE,TAXI MARSHAL,H434,TAXI MARSHAL,CORPORATE STRATEGY,FACILITIES & MANAGEMENT SERVICES
http://statistics.data.gov.uk/id/local-authority/43UM,WOKING BOROUGH COUNCIL,12/03/2018,06/04/2018,0000421628/002,TANGO SECURITY LTD,01708900,127.68,CORPORATE STRATEGY - TAXI LICENCES,TAXI MARSHAL,H434,TAXI MARSHAL,CORPORATE STRATEGY,FACILITIES & MANAGEMENT SERVICES
http://statistics.data.gov.uk/id/local-authority/43UM,WOKING BOROUGH COUNCIL,12/03/2018,06/04/2018,0000421629/002,TANGO SECURITY LTD,01708900,85.12,CORPORATE STRATEGY - TAXI LICENCES,TAXI MARSHAL,H434,TAXI MARSHAL,CORPORATE STRATEGY,FACILITIES & MANAGEMENT SERVICES
http://statistics.data.gov.uk/id/local-authority/43UM,WOKING BOROUGH COUNCIL,23/02/2018,06/04/2018,0000421812/001,FAITH RECRUITMENT,01709500,423.33,CORPORATE STRATEGY - LEGAL,TEMPORARY STAFF,A110,TEMPORARY STAFF,CORPORATE STRATEGY,HUMAN RESOURCES
http://statistics.data.gov.uk/id/local-authority/43UM,WOKING BOROUGH COUNCIL,02/03/2018,06/04/2018,0000421814/001,FAITH RECRUITMENT,01709500,423.33,CORPORATE STRATEGY - LEGAL,TEMPORARY STAFF,A110,TEMPORARY STAFF,CORPORATE STRATEGY,HUMAN RESOURCES
http://statistics.data.gov.uk/id/local-authority/43UM,WOKING BOROUGH COUNCIL,09/03/2018,06/04/2018,0000422026/001,FAITH RECRUITMENT,01709500,604.88,NEIGHBOURHOOD SERVICES - PARKING SERVICES,TEMPORARY STAFF,A110,TEMPORARY STAFF,NEIGHBOURHOOD SERVICES,HUMAN RESOURCES
http://statistics.data.gov.uk/id/local-authority/43UM,WOKING BOROUGH COUNCIL,09/03/2018,06/04/2018,0000422027/001,FAITH RECRUITMENT,01709500,32.84,NEIGHBOURHOOD SERVICES - PARKING SERVICES,TEMPORARY STAFF,A110,TEMPORARY STAFF,NEIGHBOURHOOD SERVICES,HUMAN RESOURCES
http://statistics.data.gov.uk/id/local-authority/43UM,WOKING BOROUGH COUNCIL,09/03/2018,06/04/2018,0000422028/001,FAITH RECRUITMENT,01709500,605.63,NEIGHBOURHOOD SERVICES - PARKING SERVICES,TEMPORARY STAFF,A110,TEMPORARY STAFF,NEIGHBOURHOOD SERVICES,HUMAN RESOURCES
http://statistics.data.gov.uk/id/local-authority/43UM,WOKING BOROUGH COUNCIL,09/03/2018,06/04/2018,0000422029/001,FAITH RECRUITMENT,01709500,29.44,NEIGHBOURHOOD SERVICES - PARKING SERVICES,TEMPORARY STAFF,A110,TEMPORARY STAFF,NEIGHBOURHOOD SERVICES,HUMAN RESOURCES
http://statistics.data.gov.uk/id/local-authority/43UM,WOKING BOROUGH COUNCIL,09/03/2018,06/04/2018,0000422030/001,FAITH RECRUITMENT,01709500,597.75,NEIGHBOURHOOD SERVICES - PARKING SERVICES,TEMPORARY STAFF,A110,TEMPORARY STAFF,NEIGHBOURHOOD SERVICES,HUMAN RESOURCES
http://statistics.data.gov.uk/id/local-authority/43UM,WOKING BOROUGH COUNCIL,09/03/2018,06/04/2018,0000422031/001,FAITH RECRUITMENT,01709500,223.16,NEIGHBOURHOOD SERVICES - PARKING SERVICES,TEMPORARY STAFF,A110,TEMPORARY STAFF,NEIGHBOURHOOD SERVICES,HUMAN RESOURCES
http://statistics.data.gov.uk/id/local-authority/43UM,WOKING BOROUGH COUNCIL,09/03/2018,06/04/2018,0000422032/001,FAITH RECRUITMENT,01709500,29.44,NEIGHBOURHOOD SERVICES - PARKING SERVICES,TEMPORARY STAFF,A110,TEMPORARY STAFF,NEIGHBOURHOOD SERVICES,HUMAN RESOURCES
http://statistics.data.gov.uk/id/local-authority/43UM,WOKING BOROUGH COUNCIL,09/03/2018,06/04/2018,0000422033/001,FAITH RECRUITMENT,01709500,315.70,NEIGHBOURHOOD SERVICES - PARKING SERVICES,TEMPORARY STAFF,A110,TEMPORARY STAFF,NEIGHBOURHOOD SERVICES,HUMAN RESOURCES
http://statistics.data.gov.uk/id/local-authority/43UM,WOKING BOROUGH COUNCIL,11/03/2018,06/04/2018,0000421662/001,MORGAN HUNT UK LIMITED,01768500,1105.00,REVENUES AND BENEFITS - COUNCIL TAX,TEMPORARY STAFF,A110,TEMPORARY STAFF,REVENUES AND BENEFITS,HUMAN RESOURCES
http://statistics.data.gov.uk/id/local-authority/43UM,WOKING BOROUGH COUNCIL,09/03/2018,06/04/2018,0000421661/001,ARTON MONOSEAL LIMITED,01770200,580.00,ASSET MANAGEMENT - FACILITIES MANAGEMENT,FACILITIES MANAGEMENT REPAIRS,D908,FACILITIES MANAGEMENT REPAIRS,ASSET MANAGEMENT,WORKS (CONSTRUCTION REPAIR MAINTENANCE)
http://statistics.data.gov.uk/id/local-authority/43UM,WOKING BOROUGH COUNCIL,09/03/2018,06/04/2018,0000421546/001,ARTON MONOSEAL LIMITED,01770200,145.00,HOUSING SERVICES - DISABLED FACILITIES GRANTS,MANDATORY GRANTS,Q712,MANDATORY GRANTS,HOUSING SERVICES,WORKS (CONSTRUCTION REPAIR MAINTENANCE)
http://statistics.data.gov.uk/id/local-authority/43UM,WOKING BOROUGH COUNCIL,09/03/2018,06/04/2018,0000421546/002,ARTON MONOSEAL LIMITED,01770200,145.00,HOUSING SERVICES - DISABLED FACILITIES GRANTS,MANDATORY GRANTS,Q712,MANDATORY GRANTS,HOUSING SERVICES,WORKS (CONSTRUCTION REPAIR MAINTENANCE)
http://statistics.data.gov.uk/id/local-authority/43UM,WOKING BOROUGH COUNCIL,09/03/2018,06/04/2018,0000421546/003,ARTON MONOSEAL LIMITED,01770200,145.00,HOUSING SERVICES - DISABLED FACILITIES GRANTS,MANDATORY GRANTS,Q712,MANDATORY GRANTS,HOUSING SERVICES,WORKS (CONSTRUCTION REPAIR MAINTENANCE)
http://statistics.data.gov.uk/id/local-authority/43UM,WOKING BOROUGH COUNCIL,12/03/2018,06/04/2018,0000422051/001,INSIDE HOUSING SOLUTIONS LTD,01772300,4710.00,NEIGHBOURHOOD SERVICES - REGULATION AND ENFORCEMENT,SECURITY OUTOFHRS CONTRACTOR,H608,SECURITY OUTOFHRS CONTRACTOR,NEIGHBOURHOOD SERVICES,FACILITIES & MANAGEMENT SERVICES
http://statistics.data.gov.uk/id/local-authority/43UM,WOKING BOROUGH COUNCIL,12/03/2018,06/04/2018,0000421665/001,ANDY W COWELL,01784200,130.00,HOUSING SERVICES - SYRIAN REFUGEE FAMILES,PURCHASE OF FURNITURE,Q500,PURCHASE OF FURNITURE,HOUSING SERVICES,FINANCIAL SERVICES
http://statistics.data.gov.uk/id/local-authority/43UM,WOKING BOROUGH COUNCIL,22/01/2018,06/04/2018,0000419764/001,SEVENOAKS ENVIRONMENTAL CONSULTANCY LTD,01795300,5015.00,ESTATE MANAGEMENT - CONTAMINATED LAND DESK TOP SUR,MAIN CONTRACTOR,Q200,MAIN CONTRACTOR,ESTATE MANAGEMENT,HORTICULTURAL (INCLUDES AGRICULTURE)
http://statistics.data.gov.uk/id/local-authority/43UM,WOKING BOROUGH COUNCIL,07/03/2018,06/04/2018,0000421688/001,ICL MEDIA,01821200,130.00,H G WELLS - H G WELLS - FUNCTION ROOMS,EQUIPMENT,G100,EQUIPMENT,H G WELLS,INFORMATION COMMUNICATION TECHNOLOGY
http://statistics.data.gov.uk/id/local-authority/43UM,WOKING BOROUGH COUNCIL,07/03/2018,06/04/2018,0000421690/001,ICL MEDIA,01821200,21.60,H G WELLS - H G WELLS - FUNCTION ROOMS,EQUIPMENT,G100,EQUIPMENT,H G WELLS,INFORMATION COMMUNICATION TECHNOLOGY
http://statistics.data.gov.uk/id/local-authority/43UM,WOKING BOROUGH COUNCIL,07/03/2018,06/04/2018,0000421691/001,ICL MEDIA,01821200,260.00,H G WELLS - H G WELLS - FUNCTION ROOMS,EQUIPMENT-HIRE,G115,EQUIPMENT-HIRE,H G WELLS,INFORMATION COMMUNICATION TECHNOLOGY
http://statistics.data.gov.uk/id/local-authority/43UM,WOKING BOROUGH COUNCIL,07/03/2018,06/04/2018,0000421687/001,ICL MEDIA,01821200,125.00,H G WELLS - H G WELLS - FUNCTION ROOMS,AUDIO VISUAL TECHNICIANS,G124,AUDIO VISUAL TECHNICIANS,H G WELLS,INFORMATION COMMUNICATION TECHNOLOGY
http://statistics.data.gov.uk/id/local-authority/43UM,WOKING BOROUGH COUNCIL,07/03/2018,06/04/2018,0000421689/001,ICL MEDIA,01821200,200.00,H G WELLS - H G WELLS - FUNCTION ROOMS,AUDIO VISUAL TECHNICIANS,G124,AUDIO VISUAL TECHNICIANS,H G WELLS,INFORMATION COMMUNICATION TECHNOLOGY
http://statistics.data.gov.uk/id/local-authority/43UM,WOKING BOROUGH COUNCIL,07/03/2018,06/04/2018,0000421690/002,ICL MEDIA,01821200,100.00,H G WELLS - H G WELLS - FUNCTION ROOMS,AUDIO VISUAL TECHNICIANS,G124,AUDIO VISUAL TECHNICIANS,H G WELLS,INFORMATION COMMUNICATION TECHNOLOGY
http://statistics.data.gov.uk/id/local-authority/43UM,WOKING BOROUGH COUNCIL,07/03/2018,06/04/2018,0000421692/001,ICL MEDIA,01821200,400.00,H G WELLS - H G WELLS - FUNCTION ROOMS,AUDIO VISUAL TECHNICIANS,G124,AUDIO VISUAL TECHNICIANS,H G WELLS,INFORMATION COMMUNICATION TECHNOLOGY
http://statistics.data.gov.uk/id/local-authority/43UM,WOKING BOROUGH COUNCIL,07/03/2018,06/04/2018,0000421693/001,ICL MEDIA,01821200,200.00,H G WELLS - H G WELLS - FUNCTION ROOMS,AUDIO VISUAL TECHNICIANS,G124,AUDIO VISUAL TECHNICIANS,H G WELLS,INFORMATION COMMUNICATION TECHNOLOGY
http://statistics.data.gov.uk/id/local-authority/43UM,WOKING BOROUGH COUNCIL,07/03/2018,06/04/2018,0000421694/001,ICL MEDIA,01821200,200.00,H G WELLS - H G WELLS - FUNCTION ROOMS,AUDIO VISUAL TECHNICIANS,G124,AUDIO VISUAL TECHNICIANS,H G WELLS,INFORMATION COMMUNICATION TECHNOLOGY
http://statistics.data.gov.uk/id/local-authority/43UM,WOKING BOROUGH COUNCIL,28/02/2018,06/04/2018,0000422356/001,WSP UK LTD,01850700,13557.00,ASSET MANAGEMENT - VICTORIA ARCH SOUTH,MAIN CONTRACTOR,Q200,MAIN CONTRACTOR,ASSET MANAGEMENT,CONSULTANCY
http://statistics.data.gov.uk/id/local-authority/43UM,WOKING BOROUGH COUNCIL,11/03/2018,06/04/2018,0000421875/001,WILSON PROPERTY MAINTENANCE LIMITED,01926800,550.00,HOUSING SERVICES - DISABLED FACILITIES GRANTS,MANDATORY GRANTS,Q712,MANDATORY GRANTS,HOUSING SERVICES,WORKS (CONSTRUCTION REPAIR MAINTENANCE)
http://statistics.data.gov.uk/id/local-authority/43UM,WOKING BOROUGH COUNCIL,12/03/2018,06/04/2018,0000421603/001,HOUSEMARK LTD,01940400,795.00,HOUSING SERVICES - HRA MARKET TESTING,SUBSCRIPTIONS,H110,SUBSCRIPTIONS,HOUSING SERVICES,HOUSING MANAGEMENT
http://statistics.data.gov.uk/id/local-authority/43UM,WOKING BOROUGH COUNCIL,09/03/2018,06/04/2018,0000422105/001,DEVONSHIRES SOLICITORS LLP,01951400,75.00,HOUSING SERVICES - PFI BID,OTHER CONSULTANTS,Q430,OTHER CONSULTANTS,HOUSING SERVICES,HOUSING MANAGEMENT
http://statistics.data.gov.uk/id/local-authority/43UM,WOKING BOROUGH COUNCIL,08/03/2018,06/04/2018,0000421626/001,THE LIGHTBOX,01952400,22.50,CORPORATE STRATEGY - CIVIC EXPENSES,OFFICIAL HOSPITALITY,H310,OFFICIAL HOSPITALITY,CORPORATE STRATEGY,ARTS & LEISURE SERVICES
http://statistics.data.gov.uk/id/local-authority/43UM,WOKING BOROUGH COUNCIL,10/03/2018,06/04/2018,0000421583/001,SHERBOURNE FARM,01992400,742.50,CORPORATE STRATEGY - CIVIC BALL,FLORAL DECORATION,H902,FLORAL DECORATION,CORPORATE STRATEGY,HORTICULTURAL (INCLUDES AGRICULTURE)
http://statistics.data.gov.uk/id/local-authority/43UM,WOKING BOROUGH COUNCIL,10/03/2018,06/04/2018,0000421583/002,SHERBOURNE FARM,01992400,48.00,CORPORATE STRATEGY - CIVIC BALL,FLORAL DECORATION,H902,FLORAL DECORATION,CORPORATE STRATEGY,HORTICULTURAL (INCLUDES AGRICULTURE)
http://statistics.data.gov.uk/id/local-authority/43UM,WOKING BOROUGH COUNCIL,07/03/2018,06/04/2018,0000421408/001,ALLISON PINDER,40016600,195.00,HOUSING SERVICES - DISABLED FACILITIES GRANTS,MANDATORY GRANTS,Q712,MANDATORY GRANTS,HOUSING SERVICES,HUMAN RESOURCES
http://statistics.data.gov.uk/id/local-authority/43UM,WOKING BOROUGH COUNCIL,07/03/2018,06/04/2018,0000421408/002,ALLISON PINDER,40016600,195.00,HOUSING SERVICES - DISABLED FACILITIES GRANTS,MANDATORY GRANTS,Q712,MANDATORY GRANTS,HOUSING SERVICES,HUMAN RESOURCES
http://statistics.data.gov.uk/id/local-authority/43UM,WOKING BOROUGH COUNCIL,07/03/2018,06/04/2018,0000421408/003,ALLISON PINDER,40016600,195.00,HOUSING SERVICES - DISABLED FACILITIES GRANTS,MANDATORY GRANTS,Q712,MANDATORY GRANTS,HOUSING SERVICES,HUMAN RESOURCES
http://statistics.data.gov.uk/id/local-authority/43UM,WOKING BOROUGH COUNCIL,07/03/2018,06/04/2018,0000421408/004,ALLISON PINDER,40016600,195.00,HOUSING SERVICES - DISABLED FACILITIES GRANTS,MANDATORY GRANTS,Q712,MANDATORY GRANTS,HOUSING SERVICES,HUMAN RESOURCES
http://statistics.data.gov.uk/id/local-authority/43UM,WOKING BOROUGH COUNCIL,07/03/2018,06/04/2018,0000421408/005,ALLISON PINDER,40016600,195.00,HOUSING SERVICES - DISABLED FACILITIES GRANTS,MANDATORY GRANTS,Q712,MANDATORY GRANTS,HOUSING SERVICES,HUMAN RESOURCES
http://statistics.data.gov.uk/id/local-authority/43UM,WOKING BOROUGH COUNCIL,07/03/2018,06/04/2018,0000421408/006,ALLISON PINDER,40016600,195.00,HOUSING SERVICES - DISABLED FACILITIES GRANTS,MANDATORY GRANTS,Q712,MANDATORY GRANTS,HOUSING SERVICES,HUMAN RESOURCES
http://statistics.data.gov.uk/id/local-authority/43UM,WOKING BOROUGH COUNCIL,07/03/2018,06/04/2018,0000421408/007,ALLISON PINDER,40016600,195.00,HOUSING SERVICES - DISABLED FACILITIES GRANTS,MANDATORY GRANTS,Q712,MANDATORY GRANTS,HOUSING SERVICES,HUMAN RESOURCES
http://statistics.data.gov.uk/id/local-authority/43UM,WOKING BOROUGH COUNCIL,07/03/2018,06/04/2018,0000421408/008,ALLISON PINDER,40016600,195.00,HOUSING SERVICES - DISABLED FACILITIES GRANTS,MANDATORY GRANTS,Q712,MANDATORY GRANTS,HOUSING SERVICES,HUMAN RESOURCES
http://statistics.data.gov.uk/id/local-authority/43UM,WOKING BOROUGH COUNCIL,07/03/2018,06/04/2018,0000421408/009,ALLISON PINDER,40016600,195.00,HOUSING SERVICES - DISABLED FACILITIES GRANTS,MANDATORY GRANTS,Q712,MANDATORY GRANTS,HOUSING SERVICES,HUMAN RESOURCES
http://statistics.data.gov.uk/id/local-authority/43UM,WOKING BOROUGH COUNCIL,21/03/2018,06/04/2018,0000422074/001,ROYAL NAVAL ASSOCIATION WOKING,40033500,8.00,CORPORATE STRATEGY - CIVIC EXPENSES,MAYORS ALLOWANCE-CURRENT,H250,MAYORS ALLOWANCE-CURRENT,CORPORATE STRATEGY,HUMAN RESOURCES
http://statistics.data.gov.uk/id/local-authority/43UM,WOKING BOROUGH COUNCIL,27/03/2018,06/04/2018,0000422345/001,ARRAN HENDERSON,40062200,28.81,NEIGHBOURHOOD SERVICES - ALLOTMENTS-GENERAL,GROUNDS MAINT-CONTRACTORS,D200,GROUNDS MAINT-CONTRACTORS,NEIGHBOURHOOD SERVICES,FINANCIAL SERVICES
http://statistics.data.gov.uk/id/local-authority/43UM,WOKING BOROUGH COUNCIL,07/03/2018,06/04/2018,0000421798/001,SURREY HEATH B. C. MAYOR'S CHARITY,40068000,110.00,CORPORATE STRATEGY - CIVIC EXPENSES,MAYORS ALLOWANCE-CURRENT,H250,MAYORS ALLOWANCE-CURRENT,CORPORATE STRATEGY,FINANCIAL SERVICES
http://statistics.data.gov.uk/id/local-authority/43UM,WOKING BOROUGH COUNCIL,12/03/2018,06/04/2018,0000421600/001,SHARP CAT LTD,40073500,1860.80,CORPORATE STRATEGY - POSTAGE,POSTAGE - STANDARD TARIFF,G700,POSTAGE - STANDARD TARIFF,CORPORATE STRATEGY,MAIL SERVICES
http://statistics.data.gov.uk/id/local-authority/43UM,WOKING BOROUGH COUNCIL,12/03/2018,06/04/2018,0000421600/002,SHARP CAT LTD,40073500,1813.55,CORPORATE STRATEGY - CORPORATE STRATEGY GENERAL EXP,PRINTING EXTERNAL,G600,PRINTING EXTERNAL,CORPORATE STRATEGY,MAIL SERVICES
http://statistics.data.gov.uk/id/local-authority/43UM,WOKING BOROUGH COUNCIL,12/03/2018,06/04/2018,0000421601/001,SHARP CAT LTD,40073500,2703.01,CORPORATE STRATEGY - CORPORATE STRATEGY GENERAL EXP,PRINTING EXTERNAL,G600,PRINTING EXTERNAL,CORPORATE STRATEGY,MAIL SERVICES
http://statistics.data.gov.uk/id/local-authority/43UM,WOKING BOROUGH COUNCIL,09/03/2018,06/04/2018,0000421622/001,SHARP CAT LTD,40073500,432.53,CORPORATE STRATEGY - CORPORATE STRATEGY GENERAL EXP,PRINTING EXTERNAL,G600,PRINTING EXTERNAL,CORPORATE STRATEGY,MAIL SERVICES
http://statistics.data.gov.uk/id/local-authority/43UM,WOKING BOROUGH COUNCIL,11/03/2018,06/04/2018,0000422188/001,E.ON ENERGY SOLUTIONS LTD,40077100,202.73,ASSET MANAGEMENT - WOLSEY PLACE,ELECTRICITY,D400,ELECTRICITY,ASSET MANAGEMENT,UTILITIES
http://statistics.data.gov.uk/id/local-authority/43UM,WOKING BOROUGH COUNCIL,13/03/2018,06/04/2018,0000422187/001,E.ON ENERGY SOLUTIONS LTD,40077100,2.02,ASSET MANAGEMENT - BIRCH & PINES PH (XHRA),ELECTRICITY,D400,ELECTRICITY,ASSET MANAGEMENT,UTILITIES
http://statistics.data.gov.uk/id/local-authority/43UM,WOKING BOROUGH COUNCIL,04/03/2018,06/04/2018,0000422423/001,UNITY RECRUITMENT LTD,40160500,3100.65,NEIGHBOURHOOD SERVICES - PARKING SERVICES,TEMPORARY STAFF,A110,TEMPORARY STAFF,NEIGHBOURHOOD SERVICES,HUMAN RESOURCES
http://statistics.data.gov.uk/id/local-authority/43UM,WOKING BOROUGH COUNCIL,04/02/2018,06/04/2018,0000422424/001,UNITY RECRUITMENT LTD,40160500,2802.06,NEIGHBOURHOOD SERVICES - PARKING SERVICES,TEMPORARY STAFF,A110,TEMPORARY STAFF,NEIGHBOURHOOD SERVICES,HUMAN RESOURCES
http://statistics.data.gov.uk/id/local-authority/43UM,WOKING BOROUGH COUNCIL,04/03/2018,06/04/2018,0000422425/001,UNITY RECRUITMENT LTD,40160500,-109.50,NEIGHBOURHOOD SERVICES - PARKING SERVICES,TEMPORARY STAFF,A110,TEMPORARY STAFF,NEIGHBOURHOOD SERVICES,HUMAN RESOURCES
http://statistics.data.gov.uk/id/local-authority/43UM,WOKING BOROUGH COUNCIL,11/02/2018,06/04/2018,0000422426/001,UNITY RECRUITMENT LTD,40160500,2926.44,NEIGHBOURHOOD SERVICES - PARKING SERVICES,TEMPORARY STAFF,A110,TEMPORARY STAFF,NEIGHBOURHOOD SERVICES,HUMAN RESOURCES
http://statistics.data.gov.uk/id/local-authority/43UM,WOKING BOROUGH COUNCIL,25/02/2018,06/04/2018,0000422427/001,UNITY RECRUITMENT LTD,40160500,2716.58,NEIGHBOURHOOD SERVICES - PARKING SERVICES,TEMPORARY STAFF,A110,TEMPORARY STAFF,NEIGHBOURHOOD SERVICES,HUMAN RESOURCES
http://statistics.data.gov.uk/id/local-authority/43UM,WOKING BOROUGH COUNCIL,04/03/2018,06/04/2018,0000422483/001,UNITY RECRUITMENT LTD,40160500,109.50,NEIGHBOURHOOD SERVICES - PARKING SERVICES,TEMPORARY STAFF,A110,TEMPORARY STAFF,NEIGHBOURHOOD SERVICES,HUMAN RESOURCES
http://statistics.data.gov.uk/id/local-authority/43UM,WOKING BOROUGH COUNCIL,13/03/2018,06/04/2018,0000421683/001,CHASE INVENTORY SERVICES LIMITED,40239800,85.00,HOUSING SERVICES - TENANCY SUPPORT SCHEME,PROPERTY INSPECTIONS,H772,PROPERTY INSPECTIONS,HOUSING SERVICES,CONSULTANCY
http://statistics.data.gov.uk/id/local-authority/43UM,WOKING BOROUGH COUNCIL,09/03/2018,06/04/2018,0000421588/001,WOKING NEWS & MAIL LIMITED,40249900,100.00,CORPORATE STRATEGY - TOWN CENTRE FORUM,MARKETING,H406,MARKETING,CORPORATE STRATEGY,FACILITIES & MANAGEMENT SERVICES
http://statistics.data.gov.uk/id/local-authority/43UM,WOKING BOROUGH COUNCIL,22/02/2018,06/04/2018,0000422070/001,WOKING NEWS & MAIL LIMITED,40249900,100.00,CORPORATE STRATEGY - TOWN CENTRE FORUM,MARKETING,H406,MARKETING,CORPORATE STRATEGY,FACILITIES & MANAGEMENT SERVICES
http://statistics.data.gov.uk/id/local-authority/43UM,WOKING BOROUGH COUNCIL,04/03/2018,06/04/2018,0000421670/001,BRISTOW & SUTOR,40257600,46.75,REVENUES AND BENEFITS - RENT ALLOWANCES,DEBT COLLECTION AGENCY COMMISS,H910,DEBT COLLECTION AGENCY COMMISS,REVENUES AND BENEFITS,FINANCIAL SERVICES
http://statistics.data.gov.uk/id/local-authority/43UM,WOKING BOROUGH COUNCIL,12/03/2018,06/04/2018,0000421886/001,PROFESSIONAL FEES OF MR PETER SAVILL,40282300,420.00,CORPORATE STRATEGY - TAXI LICENCES,COURT COSTS,H620,COURT COSTS,CORPORATE STRATEGY,LEGAL SERVICES
http://statistics.data.gov.uk/id/local-authority/43UM,WOKING BOROUGH COUNCIL,07/03/2018,06/04/2018,0000422092/001,PROFESSIONAL FEES OF MR PETER SAVILL,40282300,1020.00,CORPORATE STRATEGY - TAXI LICENCES,COURT COSTS,H620,COURT COSTS,CORPORATE STRATEGY,LEGAL SERVICES
http://statistics.data.gov.uk/id/local-authority/43UM,WOKING BOROUGH COUNCIL,07/03/2018,06/04/2018,0000421447/002,FREEDOM LEISURE,40296500,187.60,INDEPENDENT LIVING SERVICES - MOORCROFT,TEMPORARY STAFF,H687,TEMPORARY STAFF,INDEPENDENT LIVING SERVICES,HUMAN RESOURCES
http://statistics.data.gov.uk/id/local-authority/43UM,WOKING BOROUGH COUNCIL,07/03/2018,06/04/2018,0000421447/001,FREEDOM LEISURE,40296500,160.80,INDEPENDENT LIVING SERVICES - THE VYNE,TEMPORARY STAFF,H687,TEMPORARY STAFF,INDEPENDENT LIVING SERVICES,HUMAN RESOURCES
http://statistics.data.gov.uk/id/local-authority/43UM,WOKING BOROUGH COUNCIL,29/03/2018,06/04/2018,0000422451/001,JOANNE MCINTOSH,40323300,5.00,CORPORATE STRATEGY - LEGAL,OTHER EXPENSES,A781,OTHER EXPENSES,CORPORATE STRATEGY,HUMAN RESOURCES
http://statistics.data.gov.uk/id/local-authority/43UM,WOKING BOROUGH COUNCIL,29/03/2018,06/04/2018,0000422451/002,JOANNE MCINTOSH,40323300,5.00,CORPORATE STRATEGY - LEGAL,OTHER EXPENSES,A781,OTHER EXPENSES,CORPORATE STRATEGY,HUMAN RESOURCES
http://statistics.data.gov.uk/id/local-authority/43UM,WOKING BOROUGH COUNCIL,29/03/2018,06/04/2018,0000422451/003,JOANNE MCINTOSH,40323300,15.00,CORPORATE STRATEGY - LEGAL,OTHER EXPENSES,A781,OTHER EXPENSES,CORPORATE STRATEGY,HUMAN RESOURCES
http://statistics.data.gov.uk/id/local-authority/43UM,WOKING BOROUGH COUNCIL,29/03/2018,06/04/2018,0000422451/004,JOANNE MCINTOSH,40323300,26.60,CORPORATE STRATEGY - LEGAL,OTHER EXPENSES,A781,OTHER EXPENSES,CORPORATE STRATEGY,HUMAN RESOURCES
http://statistics.data.gov.uk/id/local-authority/43UM,WOKING BOROUGH COUNCIL,29/03/2018,06/04/2018,0000422451/005,JOANNE MCINTOSH,40323300,6.90,CORPORATE STRATEGY - LEGAL,TRAVEL EXPENSES-OFFICERS,F600,TRAVEL EXPENSES-OFFICERS,CORPORATE STRATEGY,HUMAN RESOURCES
http://statistics.data.gov.uk/id/local-authority/43UM,WOKING BOROUGH COUNCIL,29/03/2018,06/04/2018,0000422451/006,JOANNE MCINTOSH,40323300,4.00,CORPORATE STRATEGY - LEGAL,TRAVEL EXPENSES-OFFICERS,F600,TRAVEL EXPENSES-OFFICERS,CORPORATE STRATEGY,HUMAN RESOURCES
http://statistics.data.gov.uk/id/local-authority/43UM,WOKING BOROUGH COUNCIL,08/03/2018,06/04/2018,0000421923/001,GIBBS & DANDY,40335300,13.06,HOUSING SERVICES - HOME IMPS & BEN AGENCY,HANDYPERSON MATERIALS,G201,HANDYPERSON MATERIALS,HOUSING SERVICES,BUILDING CONSTRUCTION MATERIALS
http://statistics.data.gov.uk/id/local-authority/43UM,WOKING BOROUGH COUNCIL,07/03/2018,06/04/2018,0000421924/001,GIBBS & DANDY,40335300,80.89,HOUSING SERVICES - HOME IMPS & BEN AGENCY,HANDYPERSON MATERIALS,G201,HANDYPERSON MATERIALS,HOUSING SERVICES,BUILDING CONSTRUCTION MATERIALS
http://statistics.data.gov.uk/id/local-authority/43UM,WOKING BOROUGH COUNCIL,13/03/2018,06/04/2018,0000422239/001,GIBBS & DANDY,40335300,53.60,HOUSING SERVICES - HOME IMPS & BEN AGENCY,HANDYPERSON MATERIALS,G201,HANDYPERSON MATERIALS,HOUSING SERVICES,BUILDING CONSTRUCTION MATERIALS
http://statistics.data.gov.uk/id/local-authority/43UM,WOKING BOROUGH COUNCIL,12/03/2018,06/04/2018,0000421550/001,M CURRAN,40360700,450.00,ASSET MANAGEMENT - WOKING OLD PALACE MAIN,GROUNDS MAINT-CONTRACTORS,D200,GROUNDS MAINT-CONTRACTORS,ASSET MANAGEMENT,WORKS (CONSTRUCTION REPAIR MAINTENANCE)
http://statistics.data.gov.uk/id/local-authority/43UM,WOKING BOROUGH COUNCIL,12/03/2018,06/04/2018,0000421887/001,PROJECT114 LTD,40370300,3860.00,HOUSING SERVICES - HOUSING OPTIONS,BED & BREAKFAST EXPENDITURE,H786,BED & BREAKFAST EXPENDITURE,HOUSING SERVICES,HOUSING MANAGEMENT
http://statistics.data.gov.uk/id/local-authority/43UM,WOKING BOROUGH COUNCIL,12/03/2018,06/04/2018,0000421888/001,PROJECT114 LTD,40370300,350.00,HOUSING SERVICES - HOUSING OPTIONS,BED & BREAKFAST EXPENDITURE,H786,BED & BREAKFAST EXPENDITURE,HOUSING SERVICES,HOUSING MANAGEMENT
http://statistics.data.gov.uk/id/local-authority/43UM,WOKING BOROUGH COUNCIL,05/03/2018,06/04/2018,0000422350/001,PROJECT114 LTD,40370300,350.00,HOUSING SERVICES - HOUSING OPTIONS,BED & BREAKFAST EXPENDITURE,H786,BED & BREAKFAST EXPENDITURE,HOUSING SERVICES,HOUSING MANAGEMENT
http://statistics.data.gov.uk/id/local-authority/43UM,WOKING BOROUGH COUNCIL,05/03/2018,06/04/2018,0000422351/001,PROJECT114 LTD,40370300,4560.00,HOUSING SERVICES - HOUSING OPTIONS,BED & BREAKFAST EXPENDITURE,H786,BED & BREAKFAST EXPENDITURE,HOUSING SERVICES,HOUSING MANAGEMENT
http://statistics.data.gov.uk/id/local-authority/43UM,WOKING BOROUGH COUNCIL,07/03/2018,06/04/2018,0000421533/001,VENN GROUP LIMITED,40383900,813.12,REVENUES AND BENEFITS - BENEFIT SERVICES,TEMPORARY STAFF,A110,TEMPORARY STAFF,REVENUES AND BENEFITS,HUMAN RESOURCES
http://statistics.data.gov.uk/id/local-authority/43UM,WOKING BOROUGH COUNCIL,15/03/2018,06/04/2018,0000421978/001,HM COURTS & TRIBUNALS SERVICE,40402200,154.00,CORPORATE STRATEGY - LEGAL,COURT COSTS,H620,COURT COSTS,CORPORATE STRATEGY,LEGAL SERVICES
http://statistics.data.gov.uk/id/local-authority/43UM,WOKING BOROUGH COUNCIL,15/03/2018,06/04/2018,0000422083/001,VERIFONE ( UK) LTD,40407100,150.00,H G WELLS - H G WELLS - FUNCTION ROOMS,LEASING COSTS-EQUIPMENT,G110,LEASING COSTS-EQUIPMENT,H G WELLS,FINANCIAL SERVICES
http://statistics.data.gov.uk/id/local-authority/43UM,WOKING BOROUGH COUNCIL,12/03/2018,06/04/2018,0000421677/001,DIGITAL FACTORY LTD,40417300,225.00,CORPORATE STRATEGY - ELECTION ID PILOT,STATIONERY,G620,STATIONERY,CORPORATE STRATEGY,WORKS (CONSTRUCTION REPAIR MAINTENANCE)
http://statistics.data.gov.uk/id/local-authority/43UM,WOKING BOROUGH COUNCIL,12/03/2018,06/04/2018,0000421677/002,DIGITAL FACTORY LTD,40417300,100.00,CORPORATE STRATEGY - ELECTION ID PILOT,STATIONERY,G620,STATIONERY,CORPORATE STRATEGY,WORKS (CONSTRUCTION REPAIR MAINTENANCE)
http://statistics.data.gov.uk/id/local-authority/43UM,WOKING BOROUGH COUNCIL,22/03/2018,06/04/2018,0000422142/001,BENTLEY MOBILITY SERVICES LTD,40462300,2040.00,HOUSING SERVICES - DISABLED FACILITIES GRANTS,MANDATORY GRANTS,Q712,MANDATORY GRANTS,HOUSING SERVICES,WORKS (CONSTRUCTION REPAIR MAINTENANCE)
http://statistics.data.gov.uk/id/local-authority/43UM,WOKING BOROUGH COUNCIL,13/03/2018,06/04/2018,0000421739/001,ARTON MONOSEAL LTD,40470800,9970.00,HOUSING SERVICES - DISABLED FACILITIES GRANTS,MANDATORY GRANTS,Q712,MANDATORY GRANTS,HOUSING SERVICES,WORKS (CONSTRUCTION REPAIR MAINTENANCE)
http://statistics.data.gov.uk/id/local-authority/43UM,WOKING BOROUGH COUNCIL,13/03/2018,06/04/2018,0000421740/001,ARTON MONOSEAL LTD,40470800,8380.00,HOUSING SERVICES - DISABLED FACILITIES GRANTS,MANDATORY GRANTS,Q712,MANDATORY GRANTS,HOUSING SERVICES,WORKS (CONSTRUCTION REPAIR MAINTENANCE)
http://statistics.data.gov.uk/id/local-authority/43UM,WOKING BOROUGH COUNCIL,13/03/2018,06/04/2018,0000421741/001,ARTON MONOSEAL LTD,40470800,8380.00,HOUSING SERVICES - DISABLED FACILITIES GRANTS,MANDATORY GRANTS,Q712,MANDATORY GRANTS,HOUSING SERVICES,WORKS (CONSTRUCTION REPAIR MAINTENANCE)
http://statistics.data.gov.uk/id/local-authority/43UM,WOKING BOROUGH COUNCIL,13/03/2018,06/04/2018,0000421585/001,WIGHTMAN & PARRISH LTD,40474600,7.29,INDEPENDENT LIVING SERVICES - PARKVIEW,CONTRACT CLEANING,D900,CONTRACT CLEANING,INDEPENDENT LIVING SERVICES,CLEANING & JANITORIAL
http://statistics.data.gov.uk/id/local-authority/43UM,WOKING BOROUGH COUNCIL,13/03/2018,06/04/2018,0000421585/002,WIGHTMAN & PARRISH LTD,40474600,14.99,INDEPENDENT LIVING SERVICES - PARKVIEW,CONTRACT CLEANING,D900,CONTRACT CLEANING,INDEPENDENT LIVING SERVICES,CLEANING & JANITORIAL
http://statistics.data.gov.uk/id/local-authority/43UM,WOKING BOROUGH COUNCIL,13/03/2018,06/04/2018,0000421585/003,WIGHTMAN & PARRISH LTD,40474600,36.14,INDEPENDENT LIVING SERVICES - PARKVIEW,CONTRACT CLEANING,D900,CONTRACT CLEANING,INDEPENDENT LIVING SERVICES,CLEANING & JANITORIAL
http://statistics.data.gov.uk/id/local-authority/43UM,WOKING BOROUGH COUNCIL,13/03/2018,06/04/2018,0000421585/004,WIGHTMAN & PARRISH LTD,40474600,40.92,INDEPENDENT LIVING SERVICES - PARKVIEW,CONTRACT CLEANING,D900,CONTRACT CLEANING,INDEPENDENT LIVING SERVICES,CLEANING & JANITORIAL
http://statistics.data.gov.uk/id/local-authority/43UM,WOKING BOROUGH COUNCIL,13/03/2018,06/04/2018,0000421585/005,WIGHTMAN & PARRISH LTD,40474600,13.58,INDEPENDENT LIVING SERVICES - PARKVIEW,CONTRACT CLEANING,D900,CONTRACT CLEANING,INDEPENDENT LIVING SERVICES,CLEANING & JANITORIAL
http://statistics.data.gov.uk/id/local-authority/43UM,WOKING BOROUGH COUNCIL,13/03/2018,06/04/2018,0000421584/001,WIGHTMAN & PARRISH LTD,40474600,23.70,INDEPENDENT LIVING SERVICES - ST MARY'S DAY CENTRE,CLEANING MATERIALS,D920,CLEANING MATERIALS,INDEPENDENT LIVING SERVICES,CLEANING & JANITORIAL
http://statistics.data.gov.uk/id/local-authority/43UM,WOKING BOROUGH COUNCIL,13/03/2018,06/04/2018,0000421584/002,WIGHTMAN & PARRISH LTD,40474600,23.06,INDEPENDENT LIVING SERVICES - ST MARY'S DAY CENTRE,CLEANING MATERIALS,D920,CLEANING MATERIALS,INDEPENDENT LIVING SERVICES,CLEANING & JANITORIAL
http://statistics.data.gov.uk/id/local-authority/43UM,WOKING BOROUGH COUNCIL,13/03/2018,06/04/2018,0000421584/003,WIGHTMAN & PARRISH LTD,40474600,23.06,INDEPENDENT LIVING SERVICES - ST MARY'S DAY CENTRE,CLEANING MATERIALS,D920,CLEANING MATERIALS,INDEPENDENT LIVING SERVICES,CLEANING & JANITORIAL
http://statistics.data.gov.uk/id/local-authority/43UM,WOKING BOROUGH COUNCIL,13/03/2018,06/04/2018,0000421584/004,WIGHTMAN & PARRISH LTD,40474600,22.74,INDEPENDENT LIVING SERVICES - ST MARY'S DAY CENTRE,CLEANING MATERIALS,D920,CLEANING MATERIALS,INDEPENDENT LIVING SERVICES,CLEANING & JANITORIAL
http://statistics.data.gov.uk/id/local-authority/43UM,WOKING BOROUGH COUNCIL,13/03/2018,06/04/2018,0000421584/005,WIGHTMAN & PARRISH LTD,40474600,23.06,INDEPENDENT LIVING SERVICES - ST MARY'S DAY CENTRE,CLEANING MATERIALS,D920,CLEANING MATERIALS,INDEPENDENT LIVING SERVICES,CLEANING & JANITORIAL
http://statistics.data.gov.uk/id/local-authority/43UM,WOKING BOROUGH COUNCIL,13/03/2018,06/04/2018,0000421584/006,WIGHTMAN & PARRISH LTD,40474600,16.00,INDEPENDENT LIVING SERVICES - ST MARY'S DAY CENTRE,CLEANING MATERIALS,D920,CLEANING MATERIALS,INDEPENDENT LIVING SERVICES,CLEANING & JANITORIAL
http://statistics.data.gov.uk/id/local-authority/43UM,WOKING BOROUGH COUNCIL,13/03/2018,06/04/2018,0000421584/007,WIGHTMAN & PARRISH LTD,40474600,23.04,INDEPENDENT LIVING SERVICES - ST MARY'S DAY CENTRE,CLEANING MATERIALS,D920,CLEANING MATERIALS,INDEPENDENT LIVING SERVICES,CLEANING & JANITORIAL
http://statistics.data.gov.uk/id/local-authority/43UM,WOKING BOROUGH COUNCIL,13/03/2018,06/04/2018,0000421584/008,WIGHTMAN & PARRISH LTD,40474600,27.52,INDEPENDENT LIVING SERVICES - ST MARY'S DAY CENTRE,CLEANING MATERIALS,D920,CLEANING MATERIALS,INDEPENDENT LIVING SERVICES,CLEANING & JANITORIAL
http://statistics.data.gov.uk/id/local-authority/43UM,WOKING BOROUGH COUNCIL,13/03/2018,06/04/2018,0000421584/009,WIGHTMAN & PARRISH LTD,40474600,7.49,INDEPENDENT LIVING SERVICES - ST MARY'S DAY CENTRE,CLEANING MATERIALS,D920,CLEANING MATERIALS,INDEPENDENT LIVING SERVICES,CLEANING & JANITORIAL
http://statistics.data.gov.uk/id/local-authority/43UM,WOKING BOROUGH COUNCIL,13/03/2018,06/04/2018,0000421584/010,WIGHTMAN & PARRISH LTD,40474600,7.49,INDEPENDENT LIVING SERVICES - ST MARY'S DAY CENTRE,CLEANING MATERIALS,D920,CLEANING MATERIALS,INDEPENDENT LIVING SERVICES,CLEANING & JANITORIAL
http://statistics.data.gov.uk/id/local-authority/43UM,WOKING BOROUGH COUNCIL,13/03/2018,06/04/2018,0000421584/011,WIGHTMAN & PARRISH LTD,40474600,7.49,INDEPENDENT LIVING SERVICES - ST MARY'S DAY CENTRE,CLEANING MATERIALS,D920,CLEANING MATERIALS,INDEPENDENT LIVING SERVICES,CLEANING & JANITORIAL
http://statistics.data.gov.uk/id/local-authority/43UM,WOKING BOROUGH COUNCIL,09/03/2018,06/04/2018,0000421493/001,WOKING UNITED REFORMED CHURCH,40484800,30.00,HOUSING SERVICES - SYRIAN REFUGEE FAMILES,MISCELLANEOUS EXPENSES,Q660,MISCELLANEOUS EXPENSES,HOUSING SERVICES,FINANCIAL SERVICES
http://statistics.data.gov.uk/id/local-authority/43UM,WOKING BOROUGH COUNCIL,08/03/2018,06/04/2018,0000421936/001,KENT FINANCIAL SERVICES,40484900,45.00,REVENUES AND BENEFITS - C'L TAX BENEFIT ADMIN,DEBT COLLECTION AGENCY COMMISS,H910,DEBT COLLECTION AGENCY COMMISS,REVENUES AND BENEFITS,FINANCIAL SERVICES
http://statistics.data.gov.uk/id/local-authority/43UM,WOKING BOROUGH COUNCIL,08/03/2018,06/04/2018,0000421650/001,KENT FINANCIAL SERVICES,40484900,35.00,HOUSING SERVICES - HOUSING OPTIONS,DEBT COLLECTION AGENCY COMMISS,H910,DEBT COLLECTION AGENCY COMMISS,HOUSING SERVICES,FINANCIAL SERVICES
http://statistics.data.gov.uk/id/local-authority/43UM,WOKING BOROUGH COUNCIL,08/03/2018,06/04/2018,0000421961/001,KENT FINANCIAL SERVICES,40484900,45.00,HOUSING SERVICES - HOUSING OPTIONS,DEBT COLLECTION AGENCY COMMISS,H910,DEBT COLLECTION AGENCY COMMISS,HOUSING SERVICES,FINANCIAL SERVICES
http://statistics.data.gov.uk/id/local-authority/43UM,WOKING BOROUGH COUNCIL,13/03/2018,06/04/2018,0000421669/001,WWF-UK TRADING LIMITED,40493200,1163.50,CORPORATE STRATEGY - TOWN CENTRE FORUM,ECDEV ENTERPRISE M3,H413,ECDEV ENTERPRISE M3,CORPORATE STRATEGY,FACILITIES & MANAGEMENT SERVICES
http://statistics.data.gov.uk/id/local-authority/43UM,WOKING BOROUGH COUNCIL,08/03/2018,06/04/2018,0000421481/001,FARNBOROUGH CONTRACTING SERVICES,40501900,776.00,NEIGHBOURHOOD SERVICES - PARKS-GENERAL,GRD MTCE NON CCT,D240,GRD MTCE NON CCT,NEIGHBOURHOOD SERVICES,WORKS (CONSTRUCTION REPAIR MAINTENANCE)
http://statistics.data.gov.uk/id/local-authority/43UM,WOKING BOROUGH COUNCIL,08/03/2018,06/04/2018,0000421684/001,J D B CONTRACTORS & SON LIMITED,40504000,6600.00,NEIGHBOURHOOD SERVICES - DISABLED FACILITIES GRANTS,CONSERVATION MANAGEMENT,H643,CONSERVATION MANAGEMENT,NEIGHBOURHOOD SERVICES,HORTICULTURAL (INCLUDES AGRICULTURE)
http://statistics.data.gov.uk/id/local-authority/43UM,WOKING BOROUGH COUNCIL,07/03/2018,06/04/2018,0000422539/001,EVOLUTION (WOKING) LIMITED,40524400,256773.94,FINANCIAL SERVICES - APPROPRIATIONS,MINIMUM REVENUE PROVISION,U106,MINIMUM REVENUE PROVISION,FINANCIAL SERVICES,HOUSING MANAGEMENT
http://statistics.data.gov.uk/id/local-authority/43UM,WOKING BOROUGH COUNCIL,07/03/2018,06/04/2018,0000421478/001,CARRINGTON WEST LIMITED,40529100,618.75,NEIGHBOURHOOD SERVICES - PARKING SERVICES,TEMPORARY STAFF,A110,TEMPORARY STAFF,NEIGHBOURHOOD SERVICES,HUMAN RESOURCES
http://statistics.data.gov.uk/id/local-authority/43UM,WOKING BOROUGH COUNCIL,07/03/2018,06/04/2018,0000421479/001,CARRINGTON WEST LIMITED,40529100,711.25,NEIGHBOURHOOD SERVICES - PARKING SERVICES,TEMPORARY STAFF,A110,TEMPORARY STAFF,NEIGHBOURHOOD SERVICES,HUMAN RESOURCES
http://statistics.data.gov.uk/id/local-authority/43UM,WOKING BOROUGH COUNCIL,07/03/2018,06/04/2018,0000421480/001,CARRINGTON WEST LIMITED,40529100,311.25,NEIGHBOURHOOD SERVICES - PARKING SERVICES,TEMPORARY STAFF,A110,TEMPORARY STAFF,NEIGHBOURHOOD SERVICES,HUMAN RESOURCES
http://statistics.data.gov.uk/id/local-authority/43UM,WOKING BOROUGH COUNCIL,26/02/2018,06/04/2018,0000422298/001,TURNER & TOWNSEND COST MANAGEMENT LTD,40541400,5245.00,ASSET MANAGEMENT - HOE VALLEY SCHOOL,QUANTITY SURVEYOR,Q410,QUANTITY SURVEYOR,ASSET MANAGEMENT,WORKS (CONSTRUCTION REPAIR MAINTENANCE)
http://statistics.data.gov.uk/id/local-authority/43UM,WOKING BOROUGH COUNCIL,12/03/2018,06/04/2018,0000422041/001,GATEWAY SECURITY SERVICES,40542500,945.00,H G WELLS - H G WELLS - FUNCTION ROOMS,CONTRACT SECURITY,H602,CONTRACT SECURITY,H G WELLS,FACILITIES & MANAGEMENT SERVICES
http://statistics.data.gov.uk/id/local-authority/43UM,WOKING BOROUGH COUNCIL,12/03/2018,06/04/2018,0000422178/001,GATEWAY SECURITY SERVICES,40542500,590.63,H G WELLS - H G WELLS - FUNCTION ROOMS,CONTRACT SECURITY,H602,CONTRACT SECURITY,H G WELLS,FACILITIES & MANAGEMENT SERVICES
http://statistics.data.gov.uk/id/local-authority/43UM,WOKING BOROUGH COUNCIL,06/04/2018,06/04/2018,0000003584/002,TREMBLAYS,40547800,-50.00,H G WELLS - H G WELLS - CATERING,PROVISIONS-FOOD,G440,PROVISIONS-FOOD,H G WELLS,ARTS & LEISURE SERVICES
http://statistics.data.gov.uk/id/local-authority/43UM,WOKING BOROUGH COUNCIL,02/03/2018,06/04/2018,0000421759/002,TREMBLAYS,40547800,50.00,H G WELLS - H G WELLS - CATERING,PROVISIONS-FOOD,G440,PROVISIONS-FOOD,H G WELLS,ARTS & LEISURE SERVICES
http://statistics.data.gov.uk/id/local-authority/43UM,WOKING BOROUGH COUNCIL,05/04/2018,06/04/2018,0030000881/001,TREMBLAYS,40547800,3925.00,H G WELLS - H G WELLS - CATERING,PROVISIONS-FOOD,G440,PROVISIONS-FOOD,H G WELLS,ARTS & LEISURE SERVICES
http://statistics.data.gov.uk/id/local-authority/43UM,WOKING BOROUGH COUNCIL,05/04/2018,06/04/2018,0030000881/002,TREMBLAYS,40547800,50.00,H G WELLS - H G WELLS - CATERING,PROVISIONS-FOOD,G440,PROVISIONS-FOOD,H G WELLS,ARTS & LEISURE SERVICES
http://statistics.data.gov.uk/id/local-authority/43UM,WOKING BOROUGH COUNCIL,06/04/2018,06/04/2018,0000003584/001,TREMBLAYS,40547800,-3925.00,H G WELLS - H G WELLS - CATERING,TEMPORARY STAFF,H687,TEMPORARY STAFF,H G WELLS,ARTS & LEISURE SERVICES
http://statistics.data.gov.uk/id/local-authority/43UM,WOKING BOROUGH COUNCIL,02/03/2018,06/04/2018,0000421759/001,TREMBLAYS,40547800,3925.00,H G WELLS - H G WELLS - CATERING,TEMPORARY STAFF,H687,TEMPORARY STAFF,H G WELLS,ARTS & LEISURE SERVICES
http://statistics.data.gov.uk/id/local-authority/43UM,WOKING BOROUGH COUNCIL,11/03/2018,06/04/2018,0000421792/001,LISA GHAITH LTD,40559200,90.00,H G WELLS - H G WELLS - FUNCTION ROOMS,ADVERTISING,H400,ADVERTISING,H G WELLS,ARTS & LEISURE SERVICES
http://statistics.data.gov.uk/id/local-authority/43UM,WOKING BOROUGH COUNCIL,11/03/2018,06/04/2018,0000421792/002,LISA GHAITH LTD,40559200,100.00,H G WELLS - H G WELLS - FUNCTION ROOMS,ADVERTISING,H400,ADVERTISING,H G WELLS,ARTS & LEISURE SERVICES
http://statistics.data.gov.uk/id/local-authority/43UM,WOKING BOROUGH COUNCIL,11/03/2018,06/04/2018,0000421792/003,LISA GHAITH LTD,40559200,15.00,H G WELLS - H G WELLS - FUNCTION ROOMS,ADVERTISING,H400,ADVERTISING,H G WELLS,ARTS & LEISURE SERVICES
http://statistics.data.gov.uk/id/local-authority/43UM,WOKING BOROUGH COUNCIL,21/03/2018,06/04/2018,0000422166/001,PALLAVI SHARAN,40570100,9.00,INDEPENDENT LIVING SERVICES - FAMILY SUPPORT PROGRAMME,PARKING COSTS,F510,PARKING COSTS,INDEPENDENT LIVING SERVICES,HUMAN RESOURCES
http://statistics.data.gov.uk/id/local-authority/43UM,WOKING BOROUGH COUNCIL,07/03/2018,06/04/2018,0000422535/001,WILLMOTT DIXON CONSTRUCTION LTD,40574500,889473.89,ASSET MANAGEMENT - HOE VALLEY SCHOOL,MAIN CONTRACTOR,Q200,MAIN CONTRACTOR,ASSET MANAGEMENT,WORKS (CONSTRUCTION REPAIR MAINTENANCE)
http://statistics.data.gov.uk/id/local-authority/43UM,WOKING BOROUGH COUNCIL,12/03/2018,06/04/2018,0000421901/001,MORGAN LAMBERT LIMITED,40581300,355.50,HOUSING SERVICES - HRA MARKET TESTING,CONSULTANTS,H670,CONSULTANTS,HOUSING SERVICES,FINANCIAL SERVICES
http://statistics.data.gov.uk/id/local-authority/43UM,WOKING BOROUGH COUNCIL,08/01/2018,06/04/2018,0000422313/001,HANAN ALKADHI,40596100,34.90,CORPORATE STRATEGY - WAVS,INTERPRETATION & TRANSLATION,H636,INTERPRETATION & TRANSLATION,CORPORATE STRATEGY,CONSULTANCY
http://statistics.data.gov.uk/id/local-authority/43UM,WOKING BOROUGH COUNCIL,08/01/2018,06/04/2018,0000422314/001,HANAN ALKADHI,40596100,58.00,CORPORATE STRATEGY - WAVS,INTERPRETATION & TRANSLATION,H636,INTERPRETATION & TRANSLATION,CORPORATE STRATEGY,CONSULTANCY
http://statistics.data.gov.uk/id/local-authority/43UM,WOKING BOROUGH COUNCIL,08/03/2018,06/04/2018,0000421672/001,GAMMA TELECOM LIMITED,40610100,10.71,CORPORATE STRATEGY - DEMOCRATIC REPRESENTATION,BLACKBERRY MOBILE COSTS,G847,BLACKBERRY MOBILE COSTS,CORPORATE STRATEGY,INFORMATION COMMUNICATION TECHNOLOGY
http://statistics.data.gov.uk/id/local-authority/43UM,WOKING BOROUGH COUNCIL,08/03/2018,06/04/2018,0000421672/002,GAMMA TELECOM LIMITED,40610100,5.74,REVENUES AND BENEFITS - COUNCIL TAX,MOBILE PHONE COSTS,G846,MOBILE PHONE COSTS,REVENUES AND BENEFITS,INFORMATION COMMUNICATION TECHNOLOGY
http://statistics.data.gov.uk/id/local-authority/43UM,WOKING BOROUGH COUNCIL,08/03/2018,06/04/2018,0000421672/003,GAMMA TELECOM LIMITED,40610100,2.49,REVENUES AND BENEFITS - C'L TAX BENEFIT ADMIN,MOBILE PHONE COSTS,G846,MOBILE PHONE COSTS,REVENUES AND BENEFITS,INFORMATION COMMUNICATION TECHNOLOGY
http://statistics.data.gov.uk/id/local-authority/43UM,WOKING BOROUGH COUNCIL,08/03/2018,06/04/2018,0000421672/004,GAMMA TELECOM LIMITED,40610100,2.49,NEIGHBOURHOOD SERVICES - NEIGHBOURHOOD SERVICES MANAGER,MOBILE PHONE COSTS,G846,MOBILE PHONE COSTS,NEIGHBOURHOOD SERVICES,INFORMATION COMMUNICATION TECHNOLOGY
http://statistics.data.gov.uk/id/local-authority/43UM,WOKING BOROUGH COUNCIL,08/03/2018,06/04/2018,0000421672/005,GAMMA TELECOM LIMITED,40610100,10.99,HOUSING SERVICES - WOKING BOROUGH HOMES,TELEPHONE,S672,TELEPHONE,HOUSING SERVICES,INFORMATION COMMUNICATION TECHNOLOGY
http://statistics.data.gov.uk/id/local-authority/43UM,WOKING BOROUGH COUNCIL,08/03/2018,06/04/2018,0000421672/006,GAMMA TELECOM LIMITED,40610100,6.50,CORPORATE STRATEGY - MEMBER SERVICES,IPAD COSTS,G848,IPAD COSTS,CORPORATE STRATEGY,INFORMATION COMMUNICATION TECHNOLOGY
http://statistics.data.gov.uk/id/local-authority/43UM,WOKING BOROUGH COUNCIL,08/03/2018,06/04/2018,0000421672/007,GAMMA TELECOM LIMITED,40610100,5.74,CORPORATE STRATEGY - CORPORATE & MEMBER SUPPORT MGR,BLACKBERRY MOBILE COSTS,G847,BLACKBERRY MOBILE COSTS,CORPORATE STRATEGY,INFORMATION COMMUNICATION TECHNOLOGY
http://statistics.data.gov.uk/id/local-authority/43UM,WOKING BOROUGH COUNCIL,08/03/2018,06/04/2018,0000421672/008,GAMMA TELECOM LIMITED,40610100,21.98,ASSET MANAGEMENT - PROVINCIAL HOUSE,NETWORK CIRCUITS,G800,NETWORK CIRCUITS,ASSET MANAGEMENT,INFORMATION COMMUNICATION TECHNOLOGY
http://statistics.data.gov.uk/id/local-authority/43UM,WOKING BOROUGH COUNCIL,08/03/2018,06/04/2018,0000421672/009,GAMMA TELECOM LIMITED,40610100,10.99,ASSET MANAGEMENT - HOLLYWOOD HOUSE,TELEPHONES-CALL CHARGES,G810,TELEPHONES-CALL CHARGES,ASSET MANAGEMENT,INFORMATION COMMUNICATION TECHNOLOGY
http://statistics.data.gov.uk/id/local-authority/43UM,WOKING BOROUGH COUNCIL,08/03/2018,06/04/2018,0000421672/010,GAMMA TELECOM LIMITED,40610100,10.99,ASSET MANAGEMENT - WOLSEY PLACE,NETWORK CIRCUITS,G800,NETWORK CIRCUITS,ASSET MANAGEMENT,INFORMATION COMMUNICATION TECHNOLOGY
http://statistics.data.gov.uk/id/local-authority/43UM,WOKING BOROUGH COUNCIL,08/03/2018,06/04/2018,0000421672/011,GAMMA TELECOM LIMITED,40610100,10.99,ASSET MANAGEMENT - SHEERWATER COMMUNITY CENTRE,NETWORK CIRCUITS,G800,NETWORK CIRCUITS,ASSET MANAGEMENT,INFORMATION COMMUNICATION TECHNOLOGY
http://statistics.data.gov.uk/id/local-authority/43UM,WOKING BOROUGH COUNCIL,08/03/2018,06/04/2018,0000421672/012,GAMMA TELECOM LIMITED,40610100,10.99,ASSET MANAGEMENT - KINGFIELD ROAD COMMUNITY BLDG,TELEPHONES-CALL CHARGES,G810,TELEPHONES-CALL CHARGES,ASSET MANAGEMENT,INFORMATION COMMUNICATION TECHNOLOGY
http://statistics.data.gov.uk/id/local-authority/43UM,WOKING BOROUGH COUNCIL,08/03/2018,06/04/2018,0000421672/013,GAMMA TELECOM LIMITED,40610100,10.99,ASSET MANAGEMENT - UNIT 2 LITTLEWICK CARTHOUSE L,NETWORK CIRCUITS,G800,NETWORK CIRCUITS,ASSET MANAGEMENT,INFORMATION COMMUNICATION TECHNOLOGY
http://statistics.data.gov.uk/id/local-authority/43UM,WOKING BOROUGH COUNCIL,08/03/2018,06/04/2018,0000421672/014,GAMMA TELECOM LIMITED,40610100,10.99,ASSET MANAGEMENT - UNIT 3 LITTLEWICK CARTHOUSE L,NETWORK CIRCUITS,G800,NETWORK CIRCUITS,ASSET MANAGEMENT,INFORMATION COMMUNICATION TECHNOLOGY
http://statistics.data.gov.uk/id/local-authority/43UM,WOKING BOROUGH COUNCIL,08/03/2018,06/04/2018,0000421672/015,GAMMA TELECOM LIMITED,40610100,10.99,ASSET MANAGEMENT - UNIT 4 LITTLEWICK CARTHOUSE L,NETWORK CIRCUITS,G800,NETWORK CIRCUITS,ASSET MANAGEMENT,INFORMATION COMMUNICATION TECHNOLOGY
http://statistics.data.gov.uk/id/local-authority/43UM,WOKING BOROUGH COUNCIL,08/03/2018,06/04/2018,0000421672/016,GAMMA TELECOM LIMITED,40610100,103.06,ASSET MANAGEMENT - 49 DARTMOUTH AVE (XHRA) ,NETWORK CIRCUITS,G800,NETWORK CIRCUITS,ASSET MANAGEMENT,INFORMATION COMMUNICATION TECHNOLOGY
http://statistics.data.gov.uk/id/local-authority/43UM,WOKING BOROUGH COUNCIL,08/03/2018,06/04/2018,0000421672/017,GAMMA TELECOM LIMITED,40610100,5.74,ASSET MANAGEMENT - FACILITIES MANAGEMENT,MOBILE PHONE COSTS,G846,MOBILE PHONE COSTS,ASSET MANAGEMENT,INFORMATION COMMUNICATION TECHNOLOGY
http://statistics.data.gov.uk/id/local-authority/43UM,WOKING BOROUGH COUNCIL,08/03/2018,06/04/2018,0000421672/018,GAMMA TELECOM LIMITED,40610100,37.28,ASSET MANAGEMENT - FACILITIES MANAGEMENT,BLACKBERRY MOBILE COSTS,G847,BLACKBERRY MOBILE COSTS,ASSET MANAGEMENT,INFORMATION COMMUNICATION TECHNOLOGY
http://statistics.data.gov.uk/id/local-authority/43UM,WOKING BOROUGH COUNCIL,08/03/2018,06/04/2018,0000421672/019,GAMMA TELECOM LIMITED,40610100,10.99,ASSET MANAGEMENT - FACILITIES MANAGEMENT,PAYMENTS TO CONTRACTORS,H780,PAYMENTS TO CONTRACTORS,ASSET MANAGEMENT,INFORMATION COMMUNICATION TECHNOLOGY
http://statistics.data.gov.uk/id/local-authority/43UM,WOKING BOROUGH COUNCIL,08/03/2018,06/04/2018,0000421672/020,GAMMA TELECOM LIMITED,40610100,10.72,ASSET MANAGEMENT - VALUATION SERVICES,MOBILE PHONE COSTS,G846,MOBILE PHONE COSTS,ASSET MANAGEMENT,INFORMATION COMMUNICATION TECHNOLOGY
http://statistics.data.gov.uk/id/local-authority/43UM,WOKING BOROUGH COUNCIL,08/03/2018,06/04/2018,0000421672/021,GAMMA TELECOM LIMITED,40610100,10.99,ASSET MANAGEMENT - BUILDING SERVICES,NETWORK CIRCUITS,G800,NETWORK CIRCUITS,ASSET MANAGEMENT,INFORMATION COMMUNICATION TECHNOLOGY
http://statistics.data.gov.uk/id/local-authority/43UM,WOKING BOROUGH COUNCIL,08/03/2018,06/04/2018,0000421672/022,GAMMA TELECOM LIMITED,40610100,72.57,ASSET MANAGEMENT - BUILDING SERVICES,MOBILE PHONE COSTS,G846,MOBILE PHONE COSTS,ASSET MANAGEMENT,INFORMATION COMMUNICATION TECHNOLOGY
http://statistics.data.gov.uk/id/local-authority/43UM,WOKING BOROUGH COUNCIL,08/03/2018,06/04/2018,0000421672/023,GAMMA TELECOM LIMITED,40610100,2441.42,INFORMATION TECHNOLOGY - COMMUNICATIONS,NETWORK CIRCUITS,G800,NETWORK CIRCUITS,INFORMATION TECHNOLOGY,INFORMATION COMMUNICATION TECHNOLOGY
http://statistics.data.gov.uk/id/local-authority/43UM,WOKING BOROUGH COUNCIL,08/03/2018,06/04/2018,0000421672/024,GAMMA TELECOM LIMITED,40610100,35.99,INFORMATION TECHNOLOGY - COMMUNICATIONS,MOBILE PHONE COSTS,G846,MOBILE PHONE COSTS,INFORMATION TECHNOLOGY,INFORMATION COMMUNICATION TECHNOLOGY
http://statistics.data.gov.uk/id/local-authority/43UM,WOKING BOROUGH COUNCIL,08/03/2018,06/04/2018,0000421672/025,GAMMA TELECOM LIMITED,40610100,77.86,NEIGHBOURHOOD SERVICES - COMMUNITY SAFETY,BLACKBERRY MOBILE COSTS,G847,BLACKBERRY MOBILE COSTS,NEIGHBOURHOOD SERVICES,INFORMATION COMMUNICATION TECHNOLOGY
http://statistics.data.gov.uk/id/local-authority/43UM,WOKING BOROUGH COUNCIL,08/03/2018,06/04/2018,0000421672/026,GAMMA TELECOM LIMITED,40610100,16.46,NEIGHBOURHOOD SERVICES - COMMUNITY DEVELOPMENT,BLACKBERRY MOBILE COSTS,G847,BLACKBERRY MOBILE COSTS,NEIGHBOURHOOD SERVICES,INFORMATION COMMUNICATION TECHNOLOGY
http://statistics.data.gov.uk/id/local-authority/43UM,WOKING BOROUGH COUNCIL,08/03/2018,06/04/2018,0000421672/027,GAMMA TELECOM LIMITED,40610100,51.60,H G WELLS - H G WELLS GEN MANAGER & OFFICE,BLACKBERRY MOBILE COSTS,G847,BLACKBERRY MOBILE COSTS,H G WELLS,INFORMATION COMMUNICATION TECHNOLOGY
http://statistics.data.gov.uk/id/local-authority/43UM,WOKING BOROUGH COUNCIL,08/03/2018,06/04/2018,0000421672/028,GAMMA TELECOM LIMITED,40610100,4.98,H G WELLS - H G WELLS OPERATIONS,BLACKBERRY MOBILE COSTS,G847,BLACKBERRY MOBILE COSTS,H G WELLS,INFORMATION COMMUNICATION TECHNOLOGY
http://statistics.data.gov.uk/id/local-authority/43UM,WOKING BOROUGH COUNCIL,08/03/2018,06/04/2018,0000421672/029,GAMMA TELECOM LIMITED,40610100,66.54,H G WELLS - H G WELLS - FUNCTION ROOMS,NETWORK CIRCUITS,G800,NETWORK CIRCUITS,H G WELLS,INFORMATION COMMUNICATION TECHNOLOGY
http://statistics.data.gov.uk/id/local-authority/43UM,WOKING BOROUGH COUNCIL,08/03/2018,06/04/2018,0000421672/030,GAMMA TELECOM LIMITED,40610100,12.32,H G WELLS - H G WELLS - FUNCTION ROOMS,TELEPHONES - INT SYSTEM RENTAL,G819,TELEPHONES - INT SYSTEM RENTAL,H G WELLS,INFORMATION COMMUNICATION TECHNOLOGY
http://statistics.data.gov.uk/id/local-authority/43UM,WOKING BOROUGH COUNCIL,08/03/2018,06/04/2018,0000421672/031,GAMMA TELECOM LIMITED,40610100,22.96,HOUSING SERVICES - PRIVATE SECTOR HOUSING,MOBILE PHONE COSTS,G846,MOBILE PHONE COSTS,HOUSING SERVICES,INFORMATION COMMUNICATION TECHNOLOGY
http://statistics.data.gov.uk/id/local-authority/43UM,WOKING BOROUGH COUNCIL,08/03/2018,06/04/2018,0000421672/032,GAMMA TELECOM LIMITED,40610100,34.44,HOUSING SERVICES - HOME IMPS & BEN AGENCY,MOBILE PHONE COSTS,G846,MOBILE PHONE COSTS,HOUSING SERVICES,INFORMATION COMMUNICATION TECHNOLOGY
http://statistics.data.gov.uk/id/local-authority/43UM,WOKING BOROUGH COUNCIL,08/03/2018,06/04/2018,0000421672/033,GAMMA TELECOM LIMITED,40610100,5.74,INDEPENDENT LIVING SERVICES - COMMUNITY CARE-ADMIN,MOBILE PHONE COSTS,G846,MOBILE PHONE COSTS,INDEPENDENT LIVING SERVICES,INFORMATION COMMUNICATION TECHNOLOGY
http://statistics.data.gov.uk/id/local-authority/43UM,WOKING BOROUGH COUNCIL,08/03/2018,06/04/2018,0000421672/034,GAMMA TELECOM LIMITED,40610100,25.62,INDEPENDENT LIVING SERVICES - MOORCROFT,TELEPHONES-CALL CHARGES,G810,TELEPHONES-CALL CHARGES,INDEPENDENT LIVING SERVICES,INFORMATION COMMUNICATION TECHNOLOGY
http://statistics.data.gov.uk/id/local-authority/43UM,WOKING BOROUGH COUNCIL,08/03/2018,06/04/2018,0000421672/035,GAMMA TELECOM LIMITED,40610100,5.74,INDEPENDENT LIVING SERVICES - MOORCROFT,MOBILE PHONE COSTS,G846,MOBILE PHONE COSTS,INDEPENDENT LIVING SERVICES,INFORMATION COMMUNICATION TECHNOLOGY
http://statistics.data.gov.uk/id/local-authority/43UM,WOKING BOROUGH COUNCIL,08/03/2018,06/04/2018,0000421672/036,GAMMA TELECOM LIMITED,40610100,10.99,INDEPENDENT LIVING SERVICES - BROCKHILL EXTRA CARE,EQUIPMENT,G100,EQUIPMENT,INDEPENDENT LIVING SERVICES,INFORMATION COMMUNICATION TECHNOLOGY
http://statistics.data.gov.uk/id/local-authority/43UM,WOKING BOROUGH COUNCIL,08/03/2018,06/04/2018,0000421672/037,GAMMA TELECOM LIMITED,40610100,10.99,INDEPENDENT LIVING SERVICES - BROCKHILL EXTRA CARE,TELEPHONES-CALL CHARGES,G810,TELEPHONES-CALL CHARGES,INDEPENDENT LIVING SERVICES,INFORMATION COMMUNICATION TECHNOLOGY
http://statistics.data.gov.uk/id/local-authority/43UM,WOKING BOROUGH COUNCIL,08/03/2018,06/04/2018,0000421672/038,GAMMA TELECOM LIMITED,40610100,5.74,INDEPENDENT LIVING SERVICES - BROCKHILL EXTRA CARE,MOBILE PHONE COSTS,G846,MOBILE PHONE COSTS,INDEPENDENT LIVING SERVICES,INFORMATION COMMUNICATION TECHNOLOGY
http://statistics.data.gov.uk/id/local-authority/43UM,WOKING BOROUGH COUNCIL,08/03/2018,06/04/2018,0000421672/039,GAMMA TELECOM LIMITED,40610100,32.97,INDEPENDENT LIVING SERVICES - THE VYNE,TELEPHONES-CALL CHARGES,G810,TELEPHONES-CALL CHARGES,INDEPENDENT LIVING SERVICES,INFORMATION COMMUNICATION TECHNOLOGY
http://statistics.data.gov.uk/id/local-authority/43UM,WOKING BOROUGH COUNCIL,08/03/2018,06/04/2018,0000421672/040,GAMMA TELECOM LIMITED,40610100,43.27,INDEPENDENT LIVING SERVICES - COMMUNITY ALARMS-GF,MOBILE PHONE COSTS,G846,MOBILE PHONE COSTS,INDEPENDENT LIVING SERVICES,INFORMATION COMMUNICATION TECHNOLOGY
http://statistics.data.gov.uk/id/local-authority/43UM,WOKING BOROUGH COUNCIL,08/03/2018,06/04/2018,0000421672/041,GAMMA TELECOM LIMITED,40610100,16.99,INDEPENDENT LIVING SERVICES - PARKVIEW,NETWORK CIRCUITS,G800,NETWORK CIRCUITS,INDEPENDENT LIVING SERVICES,INFORMATION COMMUNICATION TECHNOLOGY
http://statistics.data.gov.uk/id/local-authority/43UM,WOKING BOROUGH COUNCIL,08/03/2018,06/04/2018,0000421672/042,GAMMA TELECOM LIMITED,40610100,9.66,INDEPENDENT LIVING SERVICES - PARKVIEW,TELEPHONES-CALL CHARGES,G810,TELEPHONES-CALL CHARGES,INDEPENDENT LIVING SERVICES,INFORMATION COMMUNICATION TECHNOLOGY
http://statistics.data.gov.uk/id/local-authority/43UM,WOKING BOROUGH COUNCIL,08/03/2018,06/04/2018,0000421672/043,GAMMA TELECOM LIMITED,40610100,37.12,INDEPENDENT LIVING SERVICES - ST MARY'S DAY CENTRE,TELEPHONES-CALL CHARGES,G810,TELEPHONES-CALL CHARGES,INDEPENDENT LIVING SERVICES,INFORMATION COMMUNICATION TECHNOLOGY
http://statistics.data.gov.uk/id/local-authority/43UM,WOKING BOROUGH COUNCIL,08/03/2018,06/04/2018,0000421672/044,GAMMA TELECOM LIMITED,40610100,5.74,INDEPENDENT LIVING SERVICES - ST MARY'S DAY CENTRE,MOBILE PHONE COSTS,G846,MOBILE PHONE COSTS,INDEPENDENT LIVING SERVICES,INFORMATION COMMUNICATION TECHNOLOGY
http://statistics.data.gov.uk/id/local-authority/43UM,WOKING BOROUGH COUNCIL,08/03/2018,06/04/2018,0000421672/045,GAMMA TELECOM LIMITED,40610100,40.48,INDEPENDENT LIVING SERVICES - MEALS ON WHEELS,TELEPHONES-CALL CHARGES,G810,TELEPHONES-CALL CHARGES,INDEPENDENT LIVING SERVICES,INFORMATION COMMUNICATION TECHNOLOGY
http://statistics.data.gov.uk/id/local-authority/43UM,WOKING BOROUGH COUNCIL,08/03/2018,06/04/2018,0000421672/046,GAMMA TELECOM LIMITED,40610100,124.26,INDEPENDENT LIVING SERVICES - HOME SUPPORT SERVICE,MOBILE PHONE COSTS,G846,MOBILE PHONE COSTS,INDEPENDENT LIVING SERVICES,INFORMATION COMMUNICATION TECHNOLOGY
http://statistics.data.gov.uk/id/local-authority/43UM,WOKING BOROUGH COUNCIL,08/03/2018,06/04/2018,0000421672/047,GAMMA TELECOM LIMITED,40610100,71.94,INDEPENDENT LIVING SERVICES - COMMUNITY ALARMS-HRA,EQUIPMENT REPAIR & MAINTENANCE,G120,EQUIPMENT REPAIR & MAINTENANCE,INDEPENDENT LIVING SERVICES,INFORMATION COMMUNICATION TECHNOLOGY
http://statistics.data.gov.uk/id/local-authority/43UM,WOKING BOROUGH COUNCIL,08/03/2018,06/04/2018,0000421672/048,GAMMA TELECOM LIMITED,40610100,293.14,INDEPENDENT LIVING SERVICES - COMMUNITY ALARMS-HRA,NETWORK CIRCUITS,G800,NETWORK CIRCUITS,INDEPENDENT LIVING SERVICES,INFORMATION COMMUNICATION TECHNOLOGY
http://statistics.data.gov.uk/id/local-authority/43UM,WOKING BOROUGH COUNCIL,08/03/2018,06/04/2018,0000421672/049,GAMMA TELECOM LIMITED,40610100,41.23,INDEPENDENT LIVING SERVICES - MEALS SERVICE,BLACKBERRY MOBILE COSTS,G847,BLACKBERRY MOBILE COSTS,INDEPENDENT LIVING SERVICES,INFORMATION COMMUNICATION TECHNOLOGY
http://statistics.data.gov.uk/id/local-authority/43UM,WOKING BOROUGH COUNCIL,08/03/2018,06/04/2018,0000421672/050,GAMMA TELECOM LIMITED,40610100,7.31,INDEPENDENT LIVING SERVICES - CARELINE,BLACKBERRY MOBILE COSTS,G847,BLACKBERRY MOBILE COSTS,INDEPENDENT LIVING SERVICES,INFORMATION COMMUNICATION TECHNOLOGY
http://statistics.data.gov.uk/id/local-authority/43UM,WOKING BOROUGH COUNCIL,08/03/2018,06/04/2018,0000421672/051,GAMMA TELECOM LIMITED,40610100,26.70,INDEPENDENT LIVING SERVICES - FAMILY SUPPORT PROGRAMME,BLACKBERRY MOBILE COSTS,G847,BLACKBERRY MOBILE COSTS,INDEPENDENT LIVING SERVICES,INFORMATION COMMUNICATION TECHNOLOGY
http://statistics.data.gov.uk/id/local-authority/43UM,WOKING BOROUGH COUNCIL,08/03/2018,06/04/2018,0000421672/052,GAMMA TELECOM LIMITED,40610100,10.99,HOUSING SERVICES - REPAIRS ADMINISTRATION,TELEPHONES-CALL CHARGES,G810,TELEPHONES-CALL CHARGES,HOUSING SERVICES,INFORMATION COMMUNICATION TECHNOLOGY
http://statistics.data.gov.uk/id/local-authority/43UM,WOKING BOROUGH COUNCIL,08/03/2018,06/04/2018,0000421672/053,GAMMA TELECOM LIMITED,40610100,278.05,HOUSING SERVICES - HEATING MAINTENANCE INDIVIDUAL,R&M BUILDINGS - CONTRACTORS,D100,R&M BUILDINGS - CONTRACTORS,HOUSING SERVICES,INFORMATION COMMUNICATION TECHNOLOGY
http://statistics.data.gov.uk/id/local-authority/43UM,WOKING BOROUGH COUNCIL,08/03/2018,06/04/2018,0000421672/054,GAMMA TELECOM LIMITED,40610100,2.49,HOUSING SERVICES - HOUSING MANAGER,BLACKBERRY MOBILE COSTS,G847,BLACKBERRY MOBILE COSTS,HOUSING SERVICES,INFORMATION COMMUNICATION TECHNOLOGY
http://statistics.data.gov.uk/id/local-authority/43UM,WOKING BOROUGH COUNCIL,08/03/2018,06/04/2018,0000421672/055,GAMMA TELECOM LIMITED,40610100,5.74,HOUSING SERVICES - TEAM 2 PRIVATE SECT HSG & ENAB,MOBILE PHONE COSTS,G846,MOBILE PHONE COSTS,HOUSING SERVICES,INFORMATION COMMUNICATION TECHNOLOGY
http://statistics.data.gov.uk/id/local-authority/43UM,WOKING BOROUGH COUNCIL,08/03/2018,06/04/2018,0000421672/056,GAMMA TELECOM LIMITED,40610100,10.99,HOUSING SERVICES - DISABLED FACILITIES GRANTS,EQUIPMENT,G100,EQUIPMENT,HOUSING SERVICES,INFORMATION COMMUNICATION TECHNOLOGY
http://statistics.data.gov.uk/id/local-authority/43UM,WOKING BOROUGH COUNCIL,08/03/2018,06/04/2018,0000421672/057,GAMMA TELECOM LIMITED,40610100,16.82,HOUSING SERVICES - DISABLED FACILITIES GRANTS,TELEPHONES-CALL CHARGES,G810,TELEPHONES-CALL CHARGES,HOUSING SERVICES,INFORMATION COMMUNICATION TECHNOLOGY
http://statistics.data.gov.uk/id/local-authority/43UM,WOKING BOROUGH COUNCIL,08/03/2018,06/04/2018,0000421672/058,GAMMA TELECOM LIMITED,40610100,31.61,HOUSING SERVICES - ADVICE/DEVELOPMENT-HRA,MOBILE PHONE COSTS,G846,MOBILE PHONE COSTS,HOUSING SERVICES,INFORMATION COMMUNICATION TECHNOLOGY
http://statistics.data.gov.uk/id/local-authority/43UM,WOKING BOROUGH COUNCIL,08/03/2018,06/04/2018,0000421672/059,GAMMA TELECOM LIMITED,40610100,24.55,HOUSING SERVICES - HRA MARKET TESTING,BLACKBERRY MOBILE COSTS,G847,BLACKBERRY MOBILE COSTS,HOUSING SERVICES,INFORMATION COMMUNICATION TECHNOLOGY
http://statistics.data.gov.uk/id/local-authority/43UM,WOKING BOROUGH COUNCIL,08/03/2018,06/04/2018,0000421672/060,GAMMA TELECOM LIMITED,40610100,342.22,HOUSING SERVICES - HOUSING SERVICES GENERAL EXPEN,TELEPHONES-CALL CHARGES,G810,TELEPHONES-CALL CHARGES,HOUSING SERVICES,INFORMATION COMMUNICATION TECHNOLOGY
http://statistics.data.gov.uk/id/local-authority/43UM,WOKING BOROUGH COUNCIL,08/03/2018,06/04/2018,0000421672/061,GAMMA TELECOM LIMITED,40610100,47.69,HOUSING SERVICES - HOMELINK,BLACKBERRY MOBILE COSTS,G847,BLACKBERRY MOBILE COSTS,HOUSING SERVICES,INFORMATION COMMUNICATION TECHNOLOGY
http://statistics.data.gov.uk/id/local-authority/43UM,WOKING BOROUGH COUNCIL,08/03/2018,06/04/2018,0000421672/062,GAMMA TELECOM LIMITED,40610100,24.13,NEIGHBOURHOOD SERVICES - OUTDOOR SPORTS OPERATING,NETWORK CIRCUITS,G800,NETWORK CIRCUITS,NEIGHBOURHOOD SERVICES,INFORMATION COMMUNICATION TECHNOLOGY
http://statistics.data.gov.uk/id/local-authority/43UM,WOKING BOROUGH COUNCIL,08/03/2018,06/04/2018,0000421672/063,GAMMA TELECOM LIMITED,40610100,10.99,NEIGHBOURHOOD SERVICES - OUTDOOR SPORTS OPERATING,TELEPHONES-CALL CHARGES,G810,TELEPHONES-CALL CHARGES,NEIGHBOURHOOD SERVICES,INFORMATION COMMUNICATION TECHNOLOGY
http://statistics.data.gov.uk/id/local-authority/43UM,WOKING BOROUGH COUNCIL,08/03/2018,06/04/2018,0000421672/064,GAMMA TELECOM LIMITED,40610100,8.90,NEIGHBOURHOOD SERVICES - WEST NEIGHBOURHOOD TEAM,BLACKBERRY MOBILE COSTS,G847,BLACKBERRY MOBILE COSTS,NEIGHBOURHOOD SERVICES,INFORMATION COMMUNICATION TECHNOLOGY
http://statistics.data.gov.uk/id/local-authority/43UM,WOKING BOROUGH COUNCIL,08/03/2018,06/04/2018,0000421672/065,GAMMA TELECOM LIMITED,40610100,7.47,NEIGHBOURHOOD SERVICES - CENTRAL NEIGHBOURHOOD TEAM,MOBILE PHONE COSTS,G846,MOBILE PHONE COSTS,NEIGHBOURHOOD SERVICES,INFORMATION COMMUNICATION TECHNOLOGY
http://statistics.data.gov.uk/id/local-authority/43UM,WOKING BOROUGH COUNCIL,08/03/2018,06/04/2018,0000421672/066,GAMMA TELECOM LIMITED,40610100,5.49,NEIGHBOURHOOD SERVICES - CENTRAL NEIGHBOURHOOD TEAM,BLACKBERRY MOBILE COSTS,G847,BLACKBERRY MOBILE COSTS,NEIGHBOURHOOD SERVICES,INFORMATION COMMUNICATION TECHNOLOGY
http://statistics.data.gov.uk/id/local-authority/43UM,WOKING BOROUGH COUNCIL,08/03/2018,06/04/2018,0000421672/067,GAMMA TELECOM LIMITED,40610100,8.23,NEIGHBOURHOOD SERVICES - EAST NEIGHBOURHOOD TEAM,MOBILE PHONE COSTS,G846,MOBILE PHONE COSTS,NEIGHBOURHOOD SERVICES,INFORMATION COMMUNICATION TECHNOLOGY
http://statistics.data.gov.uk/id/local-authority/43UM,WOKING BOROUGH COUNCIL,08/03/2018,06/04/2018,0000421672/068,GAMMA TELECOM LIMITED,40610100,8.23,NEIGHBOURHOOD SERVICES - EAST NEIGHBOURHOOD TEAM,BLACKBERRY MOBILE COSTS,G847,BLACKBERRY MOBILE COSTS,NEIGHBOURHOOD SERVICES,INFORMATION COMMUNICATION TECHNOLOGY
http://statistics.data.gov.uk/id/local-authority/43UM,WOKING BOROUGH COUNCIL,08/03/2018,06/04/2018,0000421672/069,GAMMA TELECOM LIMITED,40610100,28.25,NEIGHBOURHOOD SERVICES - CONTRACTS AND PROJECT SUPPORT,BLACKBERRY MOBILE COSTS,G847,BLACKBERRY MOBILE COSTS,NEIGHBOURHOOD SERVICES,INFORMATION COMMUNICATION TECHNOLOGY
http://statistics.data.gov.uk/id/local-authority/43UM,WOKING BOROUGH COUNCIL,08/03/2018,06/04/2018,0000421672/070,GAMMA TELECOM LIMITED,40610100,2.49,NEIGHBOURHOOD SERVICES - PARKING SERVICES,BLACKBERRY MOBILE COSTS,G847,BLACKBERRY MOBILE COSTS,NEIGHBOURHOOD SERVICES,INFORMATION COMMUNICATION TECHNOLOGY
http://statistics.data.gov.uk/id/local-authority/43UM,WOKING BOROUGH COUNCIL,08/03/2018,06/04/2018,0000421672/071,GAMMA TELECOM LIMITED,40610100,12.45,NEIGHBOURHOOD SERVICES - REGULATION AND ENFORCEMENT,MOBILE PHONE COSTS,G846,MOBILE PHONE COSTS,NEIGHBOURHOOD SERVICES,INFORMATION COMMUNICATION TECHNOLOGY
http://statistics.data.gov.uk/id/local-authority/43UM,WOKING BOROUGH COUNCIL,08/03/2018,06/04/2018,0000421672/072,GAMMA TELECOM LIMITED,40610100,94.52,NEIGHBOURHOOD SERVICES - CAR PARKS ADMIN&OPERATIONAL EX,NETWORK CIRCUITS,G800,NETWORK CIRCUITS,NEIGHBOURHOOD SERVICES,INFORMATION COMMUNICATION TECHNOLOGY
http://statistics.data.gov.uk/id/local-authority/43UM,WOKING BOROUGH COUNCIL,08/03/2018,06/04/2018,0000421672/073,GAMMA TELECOM LIMITED,40610100,94.59,NEIGHBOURHOOD SERVICES - CAR PARKS ADMIN&OPERATIONAL EX,TELEPHONES-CALL CHARGES,G810,TELEPHONES-CALL CHARGES,NEIGHBOURHOOD SERVICES,INFORMATION COMMUNICATION TECHNOLOGY
http://statistics.data.gov.uk/id/local-authority/43UM,WOKING BOROUGH COUNCIL,08/03/2018,06/04/2018,0000421672/074,GAMMA TELECOM LIMITED,40610100,105.39,NEIGHBOURHOOD SERVICES - DPE PARKING ACCOUNT,EQUIPMENT,G100,EQUIPMENT,NEIGHBOURHOOD SERVICES,INFORMATION COMMUNICATION TECHNOLOGY
http://statistics.data.gov.uk/id/local-authority/43UM,WOKING BOROUGH COUNCIL,08/03/2018,06/04/2018,0000421672/075,GAMMA TELECOM LIMITED,40610100,36.80,PLANNING SERVICES - BUILDING CONTROL,MOBILE PHONE COSTS,G846,MOBILE PHONE COSTS,PLANNING SERVICES,INFORMATION COMMUNICATION TECHNOLOGY
http://statistics.data.gov.uk/id/local-authority/43UM,WOKING BOROUGH COUNCIL,08/03/2018,06/04/2018,0000421672/076,GAMMA TELECOM LIMITED,40610100,60.30,PLANNING SERVICES - DEVELOPMENT CONTROL,BLACKBERRY MOBILE COSTS,G847,BLACKBERRY MOBILE COSTS,PLANNING SERVICES,INFORMATION COMMUNICATION TECHNOLOGY
http://statistics.data.gov.uk/id/local-authority/43UM,WOKING BOROUGH COUNCIL,08/03/2018,06/04/2018,0000421672/077,GAMMA TELECOM LIMITED,40610100,17.98,PLANNING SERVICES - DEVELOPMENT CONTROL,MOBILE PHONE COSTS,G846,MOBILE PHONE COSTS,PLANNING SERVICES,INFORMATION COMMUNICATION TECHNOLOGY
http://statistics.data.gov.uk/id/local-authority/43UM,WOKING BOROUGH COUNCIL,08/03/2018,06/04/2018,0000421672/078,GAMMA TELECOM LIMITED,40610100,55.15,CORPORATE MANAGEMENT GROUP - CORPORATE MANAGEMENT GROUP,BLACKBERRY MOBILE COSTS,G847,BLACKBERRY MOBILE COSTS,CORPORATE MANAGEMENT GROUP,INFORMATION COMMUNICATION TECHNOLOGY
http://statistics.data.gov.uk/id/local-authority/43UM,WOKING BOROUGH COUNCIL,08/03/2018,06/04/2018,0000421672/079,GAMMA TELECOM LIMITED,40610100,34.73,CORPORATE STRATEGY - BUSINESS IMPROVEMENT,BLACKBERRY MOBILE COSTS,G847,BLACKBERRY MOBILE COSTS,CORPORATE STRATEGY,INFORMATION COMMUNICATION TECHNOLOGY
http://statistics.data.gov.uk/id/local-authority/43UM,WOKING BOROUGH COUNCIL,08/03/2018,06/04/2018,0000421672/080,GAMMA TELECOM LIMITED,40610100,47.57,PLANNING SERVICES - STRATEGY,BLACKBERRY MOBILE COSTS,G847,BLACKBERRY MOBILE COSTS,PLANNING SERVICES,INFORMATION COMMUNICATION TECHNOLOGY
http://statistics.data.gov.uk/id/local-authority/43UM,WOKING BOROUGH COUNCIL,08/03/2018,06/04/2018,0000421672/081,GAMMA TELECOM LIMITED,40610100,53.02,CORPORATE STRATEGY - MARKETING SERVICES,BLACKBERRY MOBILE COSTS,G847,BLACKBERRY MOBILE COSTS,CORPORATE STRATEGY,INFORMATION COMMUNICATION TECHNOLOGY
http://statistics.data.gov.uk/id/local-authority/43UM,WOKING BOROUGH COUNCIL,08/03/2018,06/04/2018,0000421672/082,GAMMA TELECOM LIMITED,40610100,8.23,CORPORATE STRATEGY - ECONOMIC DEVELOPMENT,BLACKBERRY MOBILE COSTS,G847,BLACKBERRY MOBILE COSTS,CORPORATE STRATEGY,INFORMATION COMMUNICATION TECHNOLOGY
http://statistics.data.gov.uk/id/local-authority/43UM,WOKING BOROUGH COUNCIL,08/03/2018,06/04/2018,0000421672/083,GAMMA TELECOM LIMITED,40610100,44.33,CORPORATE MANAGEMENT GROUP - HUMAN RESOURCES,BLACKBERRY MOBILE COSTS,G847,BLACKBERRY MOBILE COSTS,CORPORATE MANAGEMENT GROUP,INFORMATION COMMUNICATION TECHNOLOGY
http://statistics.data.gov.uk/id/local-authority/43UM,WOKING BOROUGH COUNCIL,08/03/2018,06/04/2018,0000421672/084,GAMMA TELECOM LIMITED,40610100,60.70,CORPORATE MANAGEMENT GROUP - INTEGRATED TRANSPORT PROJECT,BLACKBERRY MOBILE COSTS,G847,BLACKBERRY MOBILE COSTS,CORPORATE MANAGEMENT GROUP,INFORMATION COMMUNICATION TECHNOLOGY
http://statistics.data.gov.uk/id/local-authority/43UM,WOKING BOROUGH COUNCIL,08/03/2018,06/04/2018,0000421672/085,GAMMA TELECOM LIMITED,40610100,21.30,ASSET MANAGEMENT - BROOKWOOD CEMETERY TEMP COSTS,TELEPHONES,Q052,TELEPHONES,ASSET MANAGEMENT,INFORMATION COMMUNICATION TECHNOLOGY
http://statistics.data.gov.uk/id/local-authority/43UM,WOKING BOROUGH COUNCIL,08/03/2018,06/04/2018,0000421672/086,GAMMA TELECOM LIMITED,40610100,5.74,ASSET MANAGEMENT - BROOKWOOD CEMETERY TEMP COSTS,MAIN CONTRACTOR,Q200,MAIN CONTRACTOR,ASSET MANAGEMENT,INFORMATION COMMUNICATION TECHNOLOGY
http://statistics.data.gov.uk/id/local-authority/43UM,WOKING BOROUGH COUNCIL,08/03/2018,06/04/2018,0000421672/087,GAMMA TELECOM LIMITED,40610100,124.42,HOUSING SERVICES - SYRIAN REFUGEE FAMILES,PURCHASE OF OFFICE EQUIPMENT,Q580,PURCHASE OF OFFICE EQUIPMENT,HOUSING SERVICES,INFORMATION COMMUNICATION TECHNOLOGY
http://statistics.data.gov.uk/id/local-authority/43UM,WOKING BOROUGH COUNCIL,05/03/2018,06/04/2018,0000422050/001,AFFINITY FOR BUSINESS,40615700,114.03,NEIGHBOURHOOD SERVICES - DISABLED FACILITIES GRANTS,WATER,D700,WATER,NEIGHBOURHOOD SERVICES,UTILITIES
http://statistics.data.gov.uk/id/local-authority/43UM,WOKING BOROUGH COUNCIL,05/03/2018,06/04/2018,0000422236/001,AFFINITY FOR BUSINESS,40615700,16.68,NEIGHBOURHOOD SERVICES - DISABLED FACILITIES GRANTS,WATER,D700,WATER,NEIGHBOURHOOD SERVICES,UTILITIES
http://statistics.data.gov.uk/id/local-authority/43UM,WOKING BOROUGH COUNCIL,08/03/2018,06/04/2018,0000421805/001,APPETITE 4 WORK LIMITED,40622000,1287.88,H G WELLS - H G WELLS - BAR,TEMPORARY STAFF,H687,TEMPORARY STAFF,H G WELLS,CATERING
http://statistics.data.gov.uk/id/local-authority/43UM,WOKING BOROUGH COUNCIL,09/02/2018,06/04/2018,0000421064/001,UK LINEN LIMITED,40628400,16.28,H G WELLS - H G WELLS - FUNCTION ROOMS,LAUNDRY,G520,LAUNDRY,H G WELLS,CLEANING & JANITORIAL
http://statistics.data.gov.uk/id/local-authority/43UM,WOKING BOROUGH COUNCIL,16/02/2018,06/04/2018,0000421065/001,UK LINEN LIMITED,40628400,134.46,H G WELLS - H G WELLS - FUNCTION ROOMS,LAUNDRY,G520,LAUNDRY,H G WELLS,CLEANING & JANITORIAL
http://statistics.data.gov.uk/id/local-authority/43UM,WOKING BOROUGH COUNCIL,23/02/2018,06/04/2018,0000421300/001,UK LINEN LIMITED,40628400,69.11,H G WELLS - H G WELLS - FUNCTION ROOMS,LAUNDRY,G520,LAUNDRY,H G WELLS,CLEANING & JANITORIAL
http://statistics.data.gov.uk/id/local-authority/43UM,WOKING BOROUGH COUNCIL,09/03/2018,06/04/2018,0000421793/001,UK LINEN LIMITED,40628400,236.06,H G WELLS - H G WELLS - FUNCTION ROOMS,LAUNDRY,G520,LAUNDRY,H G WELLS,CLEANING & JANITORIAL
http://statistics.data.gov.uk/id/local-authority/43UM,WOKING BOROUGH COUNCIL,19/01/2018,06/04/2018,0000421804/001,UK LINEN LIMITED,40628400,110.26,H G WELLS - H G WELLS - FUNCTION ROOMS,LAUNDRY,G520,LAUNDRY,H G WELLS,CLEANING & JANITORIAL
http://statistics.data.gov.uk/id/local-authority/43UM,WOKING BOROUGH COUNCIL,09/02/2018,06/04/2018,0000421064/002,UK LINEN LIMITED,40628400,2.22,H G WELLS - H G WELLS - CATERING,LAUNDRY,G520,LAUNDRY,H G WELLS,CLEANING & JANITORIAL
http://statistics.data.gov.uk/id/local-authority/43UM,WOKING BOROUGH COUNCIL,16/02/2018,06/04/2018,0000421065/002,UK LINEN LIMITED,40628400,18.29,H G WELLS - H G WELLS - CATERING,LAUNDRY,G520,LAUNDRY,H G WELLS,CLEANING & JANITORIAL
http://statistics.data.gov.uk/id/local-authority/43UM,WOKING BOROUGH COUNCIL,23/02/2018,06/04/2018,0000421300/002,UK LINEN LIMITED,40628400,8.29,H G WELLS - H G WELLS - CATERING,LAUNDRY,G520,LAUNDRY,H G WELLS,CLEANING & JANITORIAL
http://statistics.data.gov.uk/id/local-authority/43UM,WOKING BOROUGH COUNCIL,09/03/2018,06/04/2018,0000421793/002,UK LINEN LIMITED,40628400,32.19,H G WELLS - H G WELLS - CATERING,LAUNDRY,G520,LAUNDRY,H G WELLS,CLEANING & JANITORIAL
http://statistics.data.gov.uk/id/local-authority/43UM,WOKING BOROUGH COUNCIL,19/01/2018,06/04/2018,0000421804/002,UK LINEN LIMITED,40628400,15.04,H G WELLS - H G WELLS - CATERING,LAUNDRY,G520,LAUNDRY,H G WELLS,CLEANING & JANITORIAL
http://statistics.data.gov.uk/id/local-authority/43UM,WOKING BOROUGH COUNCIL,09/03/2018,06/04/2018,0000421885/001,QUEST SOFTWARE INTERNATIONAL LIMITED,40643900,1327.00,INFORMATION TECHNOLOGY - I.T.S. ICT,PC & SERVER APPLICATION SOFT/W,G180,PC & SERVER APPLICATION SOFT/W,INFORMATION TECHNOLOGY,INFORMATION COMMUNICATION TECHNOLOGY
http://statistics.data.gov.uk/id/local-authority/43UM,WOKING BOROUGH COUNCIL,09/03/2018,06/04/2018,0000421885/002,QUEST SOFTWARE INTERNATIONAL LIMITED,40643900,693.00,INFORMATION TECHNOLOGY - I.T.S. ICT,PC & SERVER APPLICATION SOFT/W,G180,PC & SERVER APPLICATION SOFT/W,INFORMATION TECHNOLOGY,INFORMATION COMMUNICATION TECHNOLOGY
http://statistics.data.gov.uk/id/local-authority/43UM,WOKING BOROUGH COUNCIL,01/03/2018,06/04/2018,0000421795/001,CENTREPIECE,40651300,40.00,H G WELLS - H G WELLS - FUNCTION ROOMS,EQUIPMENT,G100,EQUIPMENT,H G WELLS,ARTS & LEISURE SERVICES
http://statistics.data.gov.uk/id/local-authority/43UM,WOKING BOROUGH COUNCIL,29/03/2018,06/04/2018,0000422401/001,GREENWICH CONTRACTS LIMITED,40656500,1068.75,REVENUES AND BENEFITS - BENEFIT SERVICES,TEMPORARY STAFF,A110,TEMPORARY STAFF,REVENUES AND BENEFITS,CONSULTANCY
http://statistics.data.gov.uk/id/local-authority/43UM,WOKING BOROUGH COUNCIL,29/03/2018,06/04/2018,0000422402/001,GREENWICH CONTRACTS LIMITED,40656500,1000.00,REVENUES AND BENEFITS - BENEFIT SERVICES,TEMPORARY STAFF,A110,TEMPORARY STAFF,REVENUES AND BENEFITS,CONSULTANCY
http://statistics.data.gov.uk/id/local-authority/43UM,WOKING BOROUGH COUNCIL,05/03/2018,06/04/2018,0000422270/001,GLOBAL TRANSLATING & INTERPRETING,40662000,125.00,CORPORATE STRATEGY - WAVS,INTERPRETATION & TRANSLATION,H636,INTERPRETATION & TRANSLATION,CORPORATE STRATEGY,CONSULTANCY
http://statistics.data.gov.uk/id/local-authority/43UM,WOKING BOROUGH COUNCIL,05/03/2018,06/04/2018,0000422271/001,GLOBAL TRANSLATING & INTERPRETING,40662000,85.00,CORPORATE STRATEGY - WAVS,INTERPRETATION & TRANSLATION,H636,INTERPRETATION & TRANSLATION,CORPORATE STRATEGY,CONSULTANCY
http://statistics.data.gov.uk/id/local-authority/43UM,WOKING BOROUGH COUNCIL,08/03/2018,06/04/2018,0000422335/001,ABDUL K ISMAIL,40662600,25.80,CORPORATE STRATEGY - WAVS,INTERPRETATION & TRANSLATION,H636,INTERPRETATION & TRANSLATION,CORPORATE STRATEGY,CONSULTANCY
http://statistics.data.gov.uk/id/local-authority/43UM,WOKING BOROUGH COUNCIL,05/03/2018,06/04/2018,0000422254/001,MARTA SMITH,40662800,44.90,CORPORATE STRATEGY - WAVS,INTERPRETATION & TRANSLATION,H636,INTERPRETATION & TRANSLATION,CORPORATE STRATEGY,CONSULTANCY
http://statistics.data.gov.uk/id/local-authority/43UM,WOKING BOROUGH COUNCIL,09/03/2018,06/04/2018,0000421620/001,FATMA MEHMET,40663600,57.50,CORPORATE STRATEGY - WAVS,INTERPRETATION & TRANSLATION,H636,INTERPRETATION & TRANSLATION,CORPORATE STRATEGY,CONSULTANCY
http://statistics.data.gov.uk/id/local-authority/43UM,WOKING BOROUGH COUNCIL,12/03/2018,06/04/2018,0000421616/001,WERONIKA KLAPTOCZ,40669000,21.00,CORPORATE STRATEGY - WAVS,INTERPRETATION & TRANSLATION,H636,INTERPRETATION & TRANSLATION,CORPORATE STRATEGY,CONSULTANCY
http://statistics.data.gov.uk/id/local-authority/43UM,WOKING BOROUGH COUNCIL,12/03/2018,06/04/2018,0000421617/001,WERONIKA KLAPTOCZ,40669000,30.00,CORPORATE STRATEGY - WAVS,INTERPRETATION & TRANSLATION,H636,INTERPRETATION & TRANSLATION,CORPORATE STRATEGY,CONSULTANCY
http://statistics.data.gov.uk/id/local-authority/43UM,WOKING BOROUGH COUNCIL,28/02/2018,06/04/2018,0000422082/001,LAM TIEP VUONG,40671300,41.20,CORPORATE STRATEGY - WAVS,INTERPRETATION & TRANSLATION,H636,INTERPRETATION & TRANSLATION,CORPORATE STRATEGY,CONSULTANCY
http://statistics.data.gov.uk/id/local-authority/43UM,WOKING BOROUGH COUNCIL,23/01/2018,06/04/2018,0000422095/001,LALEH MUSTAFA,40671400,20.40,CORPORATE STRATEGY - WAVS,INTERPRETATION & TRANSLATION,H636,INTERPRETATION & TRANSLATION,CORPORATE STRATEGY,CONSULTANCY
http://statistics.data.gov.uk/id/local-authority/43UM,WOKING BOROUGH COUNCIL,23/01/2018,06/04/2018,0000422096/001,LALEH MUSTAFA,40671400,27.40,CORPORATE STRATEGY - WAVS,INTERPRETATION & TRANSLATION,H636,INTERPRETATION & TRANSLATION,CORPORATE STRATEGY,CONSULTANCY
http://statistics.data.gov.uk/id/local-authority/43UM,WOKING BOROUGH COUNCIL,30/01/2018,06/04/2018,0000422097/001,LALEH MUSTAFA,40671400,23.40,CORPORATE STRATEGY - WAVS,INTERPRETATION & TRANSLATION,H636,INTERPRETATION & TRANSLATION,CORPORATE STRATEGY,CONSULTANCY
http://statistics.data.gov.uk/id/local-authority/43UM,WOKING BOROUGH COUNCIL,02/02/2018,06/04/2018,0000422098/001,LALEH MUSTAFA,40671400,22.00,CORPORATE STRATEGY - WAVS,INTERPRETATION & TRANSLATION,H636,INTERPRETATION & TRANSLATION,CORPORATE STRATEGY,CONSULTANCY
http://statistics.data.gov.uk/id/local-authority/43UM,WOKING BOROUGH COUNCIL,14/02/2018,06/04/2018,0000422099/001,LALEH MUSTAFA,40671400,48.00,CORPORATE STRATEGY - WAVS,INTERPRETATION & TRANSLATION,H636,INTERPRETATION & TRANSLATION,CORPORATE STRATEGY,CONSULTANCY
http://statistics.data.gov.uk/id/local-authority/43UM,WOKING BOROUGH COUNCIL,27/02/2018,06/04/2018,0000422100/001,LALEH MUSTAFA,40671400,30.40,CORPORATE STRATEGY - WAVS,INTERPRETATION & TRANSLATION,H636,INTERPRETATION & TRANSLATION,CORPORATE STRATEGY,CONSULTANCY
http://statistics.data.gov.uk/id/local-authority/43UM,WOKING BOROUGH COUNCIL,09/03/2018,06/04/2018,0000422312/001,JAYNE COOKE,40671500,100.00,CORPORATE STRATEGY - WAVS,INTERPRETATION & TRANSLATION,H636,INTERPRETATION & TRANSLATION,CORPORATE STRATEGY,CONSULTANCY
http://statistics.data.gov.uk/id/local-authority/43UM,WOKING BOROUGH COUNCIL,07/03/2018,06/04/2018,0000421538/001,MARIA CHAMBERS,40672100,40.00,CORPORATE STRATEGY - WAVS,INTERPRETATION & TRANSLATION,H636,INTERPRETATION & TRANSLATION,CORPORATE STRATEGY,CONSULTANCY
http://statistics.data.gov.uk/id/local-authority/43UM,WOKING BOROUGH COUNCIL,09/03/2018,06/04/2018,0000421911/001,ARDMORE ADVERTISING & MARKETING,40677900,17786.00,CORPORATE STRATEGY - WE ARE WOKING,MAIN CONTRACTOR,Q200,MAIN CONTRACTOR,CORPORATE STRATEGY,FACILITIES & MANAGEMENT SERVICES
http://statistics.data.gov.uk/id/local-authority/43UM,WOKING BOROUGH COUNCIL,09/03/2018,06/04/2018,0000421613/001,MIRIAM DA COSTA MACHADO,40680600,39.80,CORPORATE STRATEGY - WAVS,INTERPRETATION & TRANSLATION,H636,INTERPRETATION & TRANSLATION,CORPORATE STRATEGY,CONSULTANCY
http://statistics.data.gov.uk/id/local-authority/43UM,WOKING BOROUGH COUNCIL,23/11/2017,06/04/2018,0000422115/001,NELLI LEMBER,40680900,28.90,CORPORATE STRATEGY - WAVS,INTERPRETATION & TRANSLATION,H636,INTERPRETATION & TRANSLATION,CORPORATE STRATEGY,FINANCIAL SERVICES
http://statistics.data.gov.uk/id/local-authority/43UM,WOKING BOROUGH COUNCIL,07/03/2018,06/04/2018,0000421501/001,PARK AVENUE RECRUITMENT,40691800,1104.00,PLANNING SERVICES - DEVELOPMENT CONTROL,TEMPORARY STAFF,A110,TEMPORARY STAFF,PLANNING SERVICES,HUMAN RESOURCES
http://statistics.data.gov.uk/id/local-authority/43UM,WOKING BOROUGH COUNCIL,07/03/2018,06/04/2018,0000421446/001,G2 RECRUITMENT SOLUTIONS,40691900,1295.00,PLANNING SERVICES - DEVELOPMENT CONTROL,TEMPORARY STAFF,A110,TEMPORARY STAFF,PLANNING SERVICES,CONSULTANCY
http://statistics.data.gov.uk/id/local-authority/43UM,WOKING BOROUGH COUNCIL,28/01/2018,06/04/2018,0000422439/001,HERTS TRAFFIC MANAGEMENT LTD,40707500,11098.40,ASSET MANAGEMENT - INTEGRATED TRANSPORT PLAN,MISCELLANEOUS EXPENSES,Q660,MISCELLANEOUS EXPENSES,ASSET MANAGEMENT,STREET & TRAFFIC MANAGEMENT
http://statistics.data.gov.uk/id/local-authority/43UM,WOKING BOROUGH COUNCIL,31/01/2018,06/04/2018,0000422440/001,HERTS TRAFFIC MANAGEMENT LTD,40707500,8040.80,ASSET MANAGEMENT - INTEGRATED TRANSPORT PLAN,MISCELLANEOUS EXPENSES,Q660,MISCELLANEOUS EXPENSES,ASSET MANAGEMENT,STREET & TRAFFIC MANAGEMENT
http://statistics.data.gov.uk/id/local-authority/43UM,WOKING BOROUGH COUNCIL,07/03/2018,06/04/2018,0000421499/001,MARKS CONSULTING PARTNERS LIMITED,40708400,1627.50,ASSET MANAGEMENT - BUILDING SERVICES,TEMPORARY STAFF,A110,TEMPORARY STAFF,ASSET MANAGEMENT,CONSULTANCY
http://statistics.data.gov.uk/id/local-authority/43UM,WOKING BOROUGH COUNCIL,19/03/2018,06/04/2018,0000422438/001,LIFTEC LIFTS LTD,40711800,30000.00,ASSET MANAGEMENT - AMP WOLSEY PL REFUR GALLEYLIFT,MAIN CONTRACTOR,Q200,MAIN CONTRACTOR,ASSET MANAGEMENT,WORKS (CONSTRUCTION REPAIR MAINTENANCE)
http://statistics.data.gov.uk/id/local-authority/43UM,WOKING BOROUGH COUNCIL,09/03/2018,06/04/2018,0000421551/001,PIGGOTTS FLAGS & BRANDING LTD,40715000,140.40,ASSET MANAGEMENT - CIVIC OFFICES,COUNCIL FLAGS,D816,COUNCIL FLAGS,ASSET MANAGEMENT,FACILITIES & MANAGEMENT SERVICES
http://statistics.data.gov.uk/id/local-authority/43UM,WOKING BOROUGH COUNCIL,13/03/2018,06/04/2018,0000421668/001,LUCY STEVENS,40715700,500.00,CORPORATE STRATEGY - CELEBRATE WOKING - SUPPORT PROJECTS 14,MAIN CONTRACTOR,Q200,MAIN CONTRACTOR,CORPORATE STRATEGY,ARTS & LEISURE SERVICES
http://statistics.data.gov.uk/id/local-authority/43UM,WOKING BOROUGH COUNCIL,13/03/2018,06/04/2018,0000422388/001,TRAFALGAR MARQUEES LTD,40717000,519.77,NEIGHBOURHOOD SERVICES - CELEBRATE WOKING - FOOD FESTIVAL 2014,CELEBRATE WOK INFRASTRUCTURE COSTS,Q560,CELEBRATE WOK INFRASTRUCTURE COSTS,NEIGHBOURHOOD SERVICES,ARTS & LEISURE SERVICES
http://statistics.data.gov.uk/id/local-authority/43UM,WOKING BOROUGH COUNCIL,12/03/2018,06/04/2018,0000422237/001,HALL PLACE EQUINE VETERINARY SERVS. LLP,40719300,296.04,NEIGHBOURHOOD SERVICES - ANIMAL WELFARE LICENCES,PAYMENTS TO CONTRACTORS,H780,PAYMENTS TO CONTRACTORS,NEIGHBOURHOOD SERVICES,ENVIRONMENTAL SERVICES
http://statistics.data.gov.uk/id/local-authority/43UM,WOKING BOROUGH COUNCIL,12/03/2018,06/04/2018,0000422238/001,HALL PLACE EQUINE VETERINARY SERVS. LLP,40719300,410.92,NEIGHBOURHOOD SERVICES - ANIMAL WELFARE LICENCES,PAYMENTS TO CONTRACTORS,H780,PAYMENTS TO CONTRACTORS,NEIGHBOURHOOD SERVICES,ENVIRONMENTAL SERVICES
http://statistics.data.gov.uk/id/local-authority/43UM,WOKING BOROUGH COUNCIL,27/03/2018,06/04/2018,0000422318/001,REDACTED PERSONAL DATA,40720000,5252.57,INDEPENDENT LIVING SERVICES - SW REGEN HOME LOSS PAYMENTS,MAIN CONTRACTOR,Q200,MAIN CONTRACTOR,INDEPENDENT LIVING SERVICES,FINANCIAL SERVICES
http://statistics.data.gov.uk/id/local-authority/43UM,WOKING BOROUGH COUNCIL,27/03/2018,06/04/2018,0000422318/002,REDACTED PERSONAL DATA,40720000,3650.00,INDEPENDENT LIVING SERVICES - SW REGEN DISTURBANCE PAYMENTS,MAIN CONTRACTOR,Q200,MAIN CONTRACTOR,INDEPENDENT LIVING SERVICES,FINANCIAL SERVICES
http://statistics.data.gov.uk/id/local-authority/43UM,WOKING BOROUGH COUNCIL,27/03/2018,06/04/2018,0000422319/001,REDACTED PERSONAL DATA,40720100,3650.00,INDEPENDENT LIVING SERVICES - SW REGEN DISTURBANCE PAYMENTS,MAIN CONTRACTOR,Q200,MAIN CONTRACTOR,INDEPENDENT LIVING SERVICES,FINANCIAL SERVICES
http://statistics.data.gov.uk/id/local-authority/43UM,WOKING BOROUGH COUNCIL,08/03/2018,06/04/2018,0000421777/001,TRUFFLES CATERERS LIMITED,91003000,40.90,CORPORATE STRATEGY - CORPORATE STRATEGY GENERAL EXP,OFFICIAL HOSPITALITY,H310,OFFICIAL HOSPITALITY,CORPORATE STRATEGY,CATERING
http://statistics.data.gov.uk/id/local-authority/43UM,WOKING BOROUGH COUNCIL,06/04/2018,06/04/2018,GPC/00002518,BANNER GROUP LTD,PROCUREMENT CARD,24.80,CORPORATE STRATEGY - BOROUGH ELECTIONS,EQUIPMENT,G100,ELECTIONS STATIONERY,MR R D SMITH,STATIONERY STORES
http://statistics.data.gov.uk/id/local-authority/43UM,WOKING BOROUGH COUNCIL,06/04/2018,06/04/2018,GPC/00002518,BANNER GROUP LTD,PROCUREMENT CARD,29.76,CORPORATE STRATEGY - BOROUGH ELECTIONS,EQUIPMENT,G100,ELECTIONS STATIONERY,MR R D SMITH,STATIONERY STORES
http://statistics.data.gov.uk/id/local-authority/43UM,WOKING BOROUGH COUNCIL,06/04/2018,06/04/2018,GPC/00002524,WWW.SHAWS.CO.UK,PROCUREMENT CARD,381.50,CORPORATE STRATEGY - BOROUGH ELECTIONS,EQUIPMENT,G100,"50 PACKS OF ELECTION NOTICES
100 PAPER SACKS",AMINA SAAD,MISC PUBLISHING AND PRINTING
http://statistics.data.gov.uk/id/local-authority/43UM,WOKING BOROUGH COUNCIL,06/04/2018,06/04/2018,GPC/00002517,S&S GAS SAFETY SYSTEMS,PROCUREMENT CARD,158.00,ASSET MANAGEMENT - FACILITIES MANAGEMENT,FACILITIES MANAGEMENT REPAIRS,D908,CO DETECTOR FOR THE LEISURE CENTRE JW,MR R D SMITH,INDUSTRIAL SUPPLIES - DEF
http://statistics.data.gov.uk/id/local-authority/43UM,WOKING BOROUGH COUNCIL,06/04/2018,06/04/2018,GPC/00002520,BOOKER LIMITED BYFLEET,PROCUREMENT CARD,112.45,H G WELLS - H G WELLS - BAR,PROVISIONS-BAR,G450,BOOKERS - BAR STOCK,LIVIA KALLAYOVA,CATERERS
http://statistics.data.gov.uk/id/local-authority/43UM,WOKING BOROUGH COUNCIL,06/04/2018,06/04/2018,GPC/00002522,MALTHURST LIMITED,PROCUREMENT CARD,72.50,HOUSING SERVICES - HOME IMPS & BEN AGENCY,TRAVEL EXPENSES-OFFICERS,F600,HANDYPERSON VAN FUEL,IAN DEANE,SERVICE STATIONS
http://statistics.data.gov.uk/id/local-authority/43UM,WOKING BOROUGH COUNCIL,06/04/2018,06/04/2018,GPC/00002526,W M MORRISON,PROCUREMENT CARD,25.00,HOUSING SERVICES - HOME IMPS & BEN AGENCY,TRAVEL EXPENSES-OFFICERS,F600,HANDYPERSON FUEL FOR RENTAL VAN,MARK GROVE,SERVICE STATIONS
http://statistics.data.gov.uk/id/local-authority/43UM,WOKING BOROUGH COUNCIL,06/04/2018,06/04/2018,GPC/00002525,SCREWFIX,PROCUREMENT CARD,10.82,HOUSING SERVICES - HOME IMPS & BEN AGENCY,HANDYPERSON MATERIALS,G201,HANDYPERSON MATERIALS,GARY COCKBURN,LUMBER/BUILD SUPPLY STORES
http://statistics.data.gov.uk/id/local-authority/43UM,WOKING BOROUGH COUNCIL,06/04/2018,06/04/2018,GPC/00002519,WILKO WOKING,PROCUREMENT CARD,11.21,HOUSING SERVICES - HOUSING OPTIONS,EQUIPMENT,G100,CLEANING EQUIPMENT ASSISTING HORDER,JANET COURTNEY,HOUSEHOLD APPLIANCE STORES
http://statistics.data.gov.uk/id/local-authority/43UM,WOKING BOROUGH COUNCIL,06/04/2018,06/04/2018,GPC/00002508,PRET A MANGER,PROCUREMENT CARD,3.54,CORPORATE MANAGEMENT GROUP - CORPORATE MANAGEMENT GROUP,OFFICIAL HOSPITALITY,H310,YOUTH THEATRE SETUP MEET,MISS S M BARHAM,RESTAURANTS
http://statistics.data.gov.uk/id/local-authority/43UM,WOKING BOROUGH COUNCIL,06/04/2018,06/04/2018,GPC/00002528,COTE WOKING,PROCUREMENT CARD,59.44,CORPORATE STRATEGY - CORPORATE STRATEGY GENERAL EXP,OFFICIAL HOSPITALITY,H310,BUSINESS LUNCH,RAY MORGAN,RESTAURANTS
http://statistics.data.gov.uk/id/local-authority/43UM,WOKING BOROUGH COUNCIL,06/04/2018,06/04/2018,GPC/00002511,ARGOS BROOKWOOD IN,PROCUREMENT CARD,30.00,HOUSING SERVICES - SYRIAN REFUGEE FAMILES,PURCHASE OF FURNITURE,Q500,FURNITURE - VPR,JULIE COOK,DISCOUNT STORES
http://statistics.data.gov.uk/id/local-authority/43UM,WOKING BOROUGH COUNCIL,06/04/2018,06/04/2018,GPC/00002512,ARGOS LTD,PROCUREMENT CARD,235.35,HOUSING SERVICES - SYRIAN REFUGEE FAMILES,PURCHASE OF FURNITURE,Q500,FURNITURE - VPR,JULIE COOK,DISCOUNT STORES
http://statistics.data.gov.uk/id/local-authority/43UM,WOKING BOROUGH COUNCIL,06/04/2018,06/04/2018,GPC/00002514,WILKO WOKING,PROCUREMENT CARD,9.00,HOUSING SERVICES - SYRIAN REFUGEE FAMILES,PURCHASE OF FURNITURE,Q500,HOUSEHOLD ITEMS - VPR,JULIE COOK,HOUSEHOLD APPLIANCE STORES
http://statistics.data.gov.uk/id/local-authority/43UM,WOKING BOROUGH COUNCIL,06/04/2018,06/04/2018,GPC/00002513,POUNDWORLD RETAIL,PROCUREMENT CARD,2.54,HOUSING SERVICES - SYRIAN REFUGEE FAMILES,MISCELLANEOUS EXPENSES,Q660,HOUSEHOLD ITEMS - VPR,JULIE COOK,DISCOUNT STORES
http://statistics.data.gov.uk/id/local-authority/43UM,WOKING BOROUGH COUNCIL,06/04/2018,06/04/2018,GPC/00002515,SAINSBURY'S S/MKT,PROCUREMENT CARD,8.30,HOUSING SERVICES - SYRIAN REFUGEE FAMILES,MISCELLANEOUS EXPENSES,Q660,CLEANING ITEMS - VPR,JULIE COOK,GROCERY STORES
http://statistics.data.gov.uk/id/local-authority/43UM,WOKING BOROUGH COUNCIL,06/04/2018,06/04/2018,GPC/00002523,THE SURREY WILDLIF,PROCUREMENT CARD,201.00,ASSET MANAGEMENT - HOE VALLEY SCHOOL,OTHER CONSULTANTS,Q430,HAVERING FARM ECOLOGICAL SERVICES,H C PEARSON,CHARITABLE/SOC SERVICE ORGS
http://statistics.data.gov.uk/id/local-authority/43UM,WOKING BOROUGH COUNCIL,07/04/2018,07/04/2018,GPC/00002509,HOO,PROCUREMENT CARD,107.88,CORPORATE STRATEGY - PUBLIC RELATIONS,GENERAL PUBLIC RELATIONS EXPNS,H915,ANNUAL SOCIAL MEDIA MONITORING SUBSCRIPTION,MISS K MAIR,CONTINUITY/SUBSCRIPTION MERCHANT
http://statistics.data.gov.uk/id/local-authority/43UM,WOKING BOROUGH COUNCIL,08/04/2018,08/04/2018,GPC/00002527,THE RANGE,PROCUREMENT CARD,116.43,INDEPENDENT LIVING SERVICES - BROCKHILL EXTRA CARE,EQUIPMENT,G100,BROCKHILL ACCESSORIES,J A MEME,DEPARTMENT STORES
http://statistics.data.gov.uk/id/local-authority/43UM,WOKING BOROUGH COUNCIL,09/04/2018,09/04/2018,GPC/00002537,CAR PARKS SPH,PROCUREMENT CARD,3.50,HOUSING SERVICES - HOME IMPS & BEN AGENCY,PARKING COSTS,F510,ASP MEETING,J A MEME,GOV'T SERV - DEFAULT
http://statistics.data.gov.uk/id/local-authority/43UM,WOKING BOROUGH COUNCIL,09/04/2018,09/04/2018,GPC/00002532,HOMEBASE LTD 084,PROCUREMENT CARD,19.83,HOUSING SERVICES - HOME IMPS & BEN AGENCY,HANDYPERSON MATERIALS,G201,HANDYPERSON MATERIALS,IAN DEANE,LUMBER/BUILD SUPPLY STORES
http://statistics.data.gov.uk/id/local-authority/43UM,WOKING BOROUGH COUNCIL,09/04/2018,09/04/2018,GPC/00002534,HOWDENS - WOKING DA67,PROCUREMENT CARD,35.70,HOUSING SERVICES - HOME IMPS & BEN AGENCY,HANDYPERSON MATERIALS,G201,HANDYPERSON MATERIALS,GARY COCKBURN,LUMBER/BUILD SUPPLY STORES
http://statistics.data.gov.uk/id/local-authority/43UM,WOKING BOROUGH COUNCIL,09/04/2018,09/04/2018,GPC/00002533,WWW.IRONMONGERYDIRECT.,PROCUREMENT CARD,54.00,HOUSING SERVICES - HOME IMPS & BEN AGENCY,HANDYPERSON MATERIALS,G201,HANDYPERSON MATERIALS,MYCROFT HUNTER,GLASS/PAINT/WALLPAPER STORE
http://statistics.data.gov.uk/id/local-authority/43UM,WOKING BOROUGH COUNCIL,09/04/2018,09/04/2018,GPC/00002535,COSTA COFFEE 43038215,PROCUREMENT CARD,4.25,INDEPENDENT LIVING SERVICES - FAMILY SUPPORT PROGRAMME,FAMILY ENABLING (FSP PROJECT),H137,REFRESHMENTS FOR FAMILY,SARAH WRIGHT,FAST FOOD RESTAURANTS
http://statistics.data.gov.uk/id/local-authority/43UM,WOKING BOROUGH COUNCIL,09/04/2018,09/04/2018,GPC/00002538,AMAZON SVCS EU-UK AMAZON.,PROCUREMENT CARD,16.99,INDEPENDENT LIVING SERVICES - COMMUNITY ALARMS-GF,EQUIPMENT - BATTERIES,G181,KEYBOARD HOOVER,PAULINE LOCK,BOOK STORES
http://statistics.data.gov.uk/id/local-authority/43UM,WOKING BOROUGH COUNCIL,09/04/2018,09/04/2018,GPC/00002510,FOREIGN EXCHANGE FEE,PROCUREMENT CARD,2.13,CORPORATE STRATEGY - PUBLIC RELATIONS,GENERAL PUBLIC RELATIONS EXPNS,H915,FOREIGN EXCHANGE FEE FOR PAYMENT,MISS K MAIR,MERCHANT CATEGORY UNKNOWN
http://statistics.data.gov.uk/id/local-authority/43UM,WOKING BOROUGH COUNCIL,09/04/2018,09/04/2018,GPC/00002530,ARGOS LTD,PROCUREMENT CARD,342.27,HOUSING SERVICES - SYRIAN REFUGEE FAMILES,PURCHASE OF FURNITURE,Q500,FURNITURE - VPR,JULIE COOK,DISCOUNT STORES
http://statistics.data.gov.uk/id/local-authority/43UM,WOKING BOROUGH COUNCIL,09/04/2018,09/04/2018,GPC/00002529,RSM DOMESTIC APPLI,PROCUREMENT CARD,280.00,HOUSING SERVICES - SYRIAN REFUGEE FAMILES,PURCHASE OF FURNITURE,Q500,FURNITURE - VPR,JULIE COOK,ELECTRONICS SALES
http://statistics.data.gov.uk/id/local-authority/43UM,WOKING BOROUGH COUNCIL,09/04/2018,09/04/2018,GPC/00002531,SUPERDRUG STORES PLC,PROCUREMENT CARD,7.99,HOUSING SERVICES - SYRIAN REFUGEE FAMILES,MISCELLANEOUS EXPENSES,Q660,FIRST AID KIT - VPR,JULIE COOK,DRUG STORES AND PHARMACIES
http://statistics.data.gov.uk/id/local-authority/43UM,WOKING BOROUGH COUNCIL,09/04/2018,09/04/2018,GPC/00002536,AMAZON UK MARKETPLACE,PROCUREMENT CARD,49.41,INFORMATION TECHNOLOGY - ICT GENERAL REPLACEMENT 2018/19,ADDITIONAL EQUIPMENT,Q020,PURCHASED NEW KVM FOR PARKING OFFICE,DAVE FAYERS,BOOK STORES
http://statistics.data.gov.uk/id/local-authority/43UM,WOKING BOROUGH COUNCIL,10/04/2018,10/04/2018,GPC/00002546,HORACE SMITH LOCKSMITH,PROCUREMENT CARD,26.50,ASSET MANAGEMENT - VALUATION SERVICES,EQUIPMENT,G100,KEY CUTTING EXTRA KEYS FOR OLD WOKING HIGH ST.,H C PEARSON,HARDWARE STORES
http://statistics.data.gov.uk/id/local-authority/43UM,WOKING BOROUGH COUNCIL,10/04/2018,10/04/2018,GPC/00002553,AMAZON SVCS EU-UK AMAZON.,PROCUREMENT CARD,28.49,H G WELLS - H G WELLS - FUNCTION ROOMS,EQUIPMENT,G100,BURGUNDY CANDLES,MR P HOCKLEY,BOOK STORES
http://statistics.data.gov.uk/id/local-authority/43UM,WOKING BOROUGH COUNCIL,10/04/2018,10/04/2018,GPC/00002544,HORACE SMITH LOCKSMITH,PROCUREMENT CARD,18.00,H G WELLS - H G WELLS - FUNCTION ROOMS,EQUIPMENT,G100,KEY CUTTING,MR GLENN J THOROGOOD,HARDWARE STORES
http://statistics.data.gov.uk/id/local-authority/43UM,WOKING BOROUGH COUNCIL,10/04/2018,10/04/2018,GPC/00002549,WICKES,PROCUREMENT CARD,15.83,HOUSING SERVICES - HOME IMPS & BEN AGENCY,HANDYPERSON MATERIALS,G201,HANDYPERSON MATERIALS,GARY COCKBURN,HOME SUPPLY WAREHOUSE STORES
http://statistics.data.gov.uk/id/local-authority/43UM,WOKING BOROUGH COUNCIL,10/04/2018,10/04/2018,GPC/00002559,WWW.IRONMONGERYDIRECT.,PROCUREMENT CARD,23.65,HOUSING SERVICES - HOME IMPS & BEN AGENCY,HANDYPERSON MATERIALS,G201,HANDYPERSON MATERIALS,IAN DEANE,GLASS/PAINT/WALLPAPER STORE
http://statistics.data.gov.uk/id/local-authority/43UM,WOKING BOROUGH COUNCIL,10/04/2018,10/04/2018,GPC/00002566,AMAZON SVCS EU-UK AMAZON.,PROCUREMENT CARD,6.11,INDEPENDENT LIVING SERVICES - MOORCROFT,CLEANING MATERIALS,D920,RECIEVED,RICHARD BUCKENHAM,BOOK STORES
http://statistics.data.gov.uk/id/local-authority/43UM,WOKING BOROUGH COUNCIL,10/04/2018,10/04/2018,GPC/00002550,AMAZON SVCS EU-UK AMAZON.,PROCUREMENT CARD,10.46,INDEPENDENT LIVING SERVICES - MOORCROFT,EQUIPMENT,G100,WHITE BOARD MARKERS,RICHARD BUCKENHAM,BOOK STORES
http://statistics.data.gov.uk/id/local-authority/43UM,WOKING BOROUGH COUNCIL,10/04/2018,10/04/2018,GPC/00002543,ELMBRIDGE BOROUGH COUN,PROCUREMENT CARD,9.50,INDEPENDENT LIVING SERVICES - FAMILY SUPPORT PROGRAMME,PARKING COSTS,F510,PARKING,TANYA CULVER,AUTO PARKING LOTS/GARAGES
http://statistics.data.gov.uk/id/local-authority/43UM,WOKING BOROUGH COUNCIL,10/04/2018,10/04/2018,GPC/00002548,ATG TICKETS,PROCUREMENT CARD,14.00,INDEPENDENT LIVING SERVICES - FAMILY SUPPORT PROGRAMME,FAMILY ENABLING (FSP PROJECT),H137,ENTERTAINMENT FOR FAMILIES,THERESA MAUNDERS,THEATRICAL PRODUCERS
http://statistics.data.gov.uk/id/local-authority/43UM,WOKING BOROUGH COUNCIL,10/04/2018,10/04/2018,GPC/00002551,FREEDOM LEISURE,PROCUREMENT CARD,16.50,INDEPENDENT LIVING SERVICES - FAMILY SUPPORT PROGRAMME,FAMILY ENABLING (FSP PROJECT),H137,KEY CARD FOR FAMILY,SARAH WRIGHT,GOV'T SERV - DEFAULT
http://statistics.data.gov.uk/id/local-authority/43UM,WOKING BOROUGH COUNCIL,10/04/2018,10/04/2018,GPC/00002542,HOME BARGAINS BYFLEET,PROCUREMENT CARD,7.13,INDEPENDENT LIVING SERVICES - FAMILY SUPPORT PROGRAMME,FAMILY ENABLING (FSP PROJECT),H137,STATIONERY FOR FAMILY,JULIE COONEY,HARDWARE STORES
http://statistics.data.gov.uk/id/local-authority/43UM,WOKING BOROUGH COUNCIL,10/04/2018,10/04/2018,GPC/00002557,ARGOS RETAIL GROUP,PROCUREMENT CARD,37.49,NEIGHBOURHOOD SERVICES - DPE PARKING ACCOUNT,EQUIPMENT,G100,MICROWAVE FOR CEO RESTROOM,IAN REYNOLDS,DISCOUNT STORES
http://statistics.data.gov.uk/id/local-authority/43UM,WOKING BOROUGH COUNCIL,10/04/2018,10/04/2018,GPC/00002558,3C CONTACTLESS STOCK,PROCUREMENT CARD,3.33,NEIGHBOURHOOD SERVICES - NEIGHBOURHOOD SERV GENERAL EXP,TRAVEL EXPENSES-OFFICERS,F600,CAR PARKING FAREHAM,MARK TABNER,AUTO PARKING LOTS/GARAGES
http://statistics.data.gov.uk/id/local-authority/43UM,WOKING BOROUGH COUNCIL,10/04/2018,10/04/2018,GPC/00002545,DOUBLETREE BY HILTON -,PROCUREMENT CARD,11.60,CORPORATE STRATEGY - TOWN CENTRE FORUM,ECDEV BUSINESS ENGAGEMENT,H411,HOSPITALITY,MR GLENN J THOROGOOD,HOTELS/MOTELS/RESORTS
http://statistics.data.gov.uk/id/local-authority/43UM,WOKING BOROUGH COUNCIL,10/04/2018,10/04/2018,GPC/00002561,WWW.SURREY-CHAMBERS.CO.U,PROCUREMENT CARD,20.00,CORPORATE STRATEGY - TOWN CENTRE FORUM,ECDEV BUSINESS ENGAGEMENT,H411,NETWORKING TICKET,MR GLENN J THOROGOOD,MEMBER ORGANISATIONS - DEF
http://statistics.data.gov.uk/id/local-authority/43UM,WOKING BOROUGH COUNCIL,10/04/2018,10/04/2018,GPC/00002541,WH SMITH,PROCUREMENT CARD,1.57,PLANNING SERVICES - PLANNING SERVICES GENERAL EXPE,EQUIPMENT,G100,JIFFY BAG,MRS CHRISTINE DUPLOCK,NEWS DEALERS/NEWSSTANDS
http://statistics.data.gov.uk/id/local-authority/43UM,WOKING BOROUGH COUNCIL,10/04/2018,10/04/2018,GPC/00002547,CPTEVENTS.CO.UK,PROCUREMENT CARD,-20.00,CORPORATE MANAGEMENT GROUP - STAFF TRAINING/GENERAL COSTS,TRAINING - CORPORATE,A910,PARTIAL REFUND,H C PEARSON,BUSINESS SERVICES - DEFAULT
http://statistics.data.gov.uk/id/local-authority/43UM,WOKING BOROUGH COUNCIL,10/04/2018,10/04/2018,GPC/00002540,ROBERT DYAS HOLDNG LTD,PROCUREMENT CARD,10.78,HOUSING SERVICES - SYRIAN REFUGEE FAMILES,PURCHASE OF FURNITURE,Q500,HOURSEHOLD ITEMS - VPR,JULIE COOK,HARDWARE STORES
http://statistics.data.gov.uk/id/local-authority/43UM,WOKING BOROUGH COUNCIL,10/04/2018,10/04/2018,GPC/00002539,WWW.FILMBANK.CO.UK,PROCUREMENT CARD,125.00,CORPORATE STRATEGY - CELEBRATE WOKING - PARTY IN PARK 2014,CELEBRATE WOKING MISC EXPENDITURE,Q562,REGISTRATION FOR FILM BANK,RIETTE THOMAS,FILMS/VIDEO PRODUCTION/DIST
http://statistics.data.gov.uk/id/local-authority/43UM,WOKING BOROUGH COUNCIL,10/04/2018,10/04/2018,GPC/00002552,AMAZON UK MARKETPLACE,PROCUREMENT CARD,2.34,INFORMATION TECHNOLOGY - ICT GENERAL REPLACEMENT 2018/19,ADDITIONAL EQUIPMENT,Q020,PURCHASED FOR USE WITH NEW KVM FOR PARKING OFFICE,DAVE FAYERS,BOOK STORES
http://statistics.data.gov.uk/id/local-authority/43UM,WOKING BOROUGH COUNCIL,28/02/2018,11/04/2018,0000421225/001,EMCOR GROUP (UK) PLC,00004600,1296.00,ASSET MANAGEMENT - FACILITIES MANAGEMENT,FACILITIES MANAGEMENT REPAIRS,D908,FACILITIES MANAGEMENT REPAIRS,ASSET MANAGEMENT,WORKS (CONSTRUCTION REPAIR MAINTENANCE)
http://statistics.data.gov.uk/id/local-authority/43UM,WOKING BOROUGH COUNCIL,28/02/2018,11/04/2018,0000421440/001,EMCOR GROUP (UK) PLC,00004600,215.58,H G WELLS - H G WELLS - FUNCTION ROOMS,CCTV SYSTEM MAINTENANCE,D341,CCTV SYSTEM MAINTENANCE,H G WELLS,WORKS (CONSTRUCTION REPAIR MAINTENANCE)
http://statistics.data.gov.uk/id/local-authority/43UM,WOKING BOROUGH COUNCIL,28/02/2018,11/04/2018,0000421226/001,EMCOR GROUP (UK) PLC,00004600,1103.70,INFORMATION TECHNOLOGY - I.T.S. ICT,EXPORT HOUSE CHARGES,G131,EXPORT HOUSE CHARGES,INFORMATION TECHNOLOGY,WORKS (CONSTRUCTION REPAIR MAINTENANCE)
http://statistics.data.gov.uk/id/local-authority/43UM,WOKING BOROUGH COUNCIL,28/02/2018,11/04/2018,0000421226/002,EMCOR GROUP (UK) PLC,00004600,7521.00,INFORMATION TECHNOLOGY - I.T.S. ICT,EXPORT HOUSE CHARGES,G131,EXPORT HOUSE CHARGES,INFORMATION TECHNOLOGY,WORKS (CONSTRUCTION REPAIR MAINTENANCE)
http://statistics.data.gov.uk/id/local-authority/43UM,WOKING BOROUGH COUNCIL,15/03/2018,11/04/2018,0000421874/001,MWUK LTD T/A ALEXANDRA,00014800,21.40,INDEPENDENT LIVING SERVICES - MEALS ON WHEELS,CLOTHING/UNIFORMS,G510,CLOTHING/UNIFORMS,INDEPENDENT LIVING SERVICES,CLOTHING
http://statistics.data.gov.uk/id/local-authority/43UM,WOKING BOROUGH COUNCIL,15/03/2018,11/04/2018,0000421874/002,MWUK LTD T/A ALEXANDRA,00014800,17.10,INDEPENDENT LIVING SERVICES - MEALS ON WHEELS,CLOTHING/UNIFORMS,G510,CLOTHING/UNIFORMS,INDEPENDENT LIVING SERVICES,CLOTHING
http://statistics.data.gov.uk/id/local-authority/43UM,WOKING BOROUGH COUNCIL,15/03/2018,11/04/2018,0000421874/003,MWUK LTD T/A ALEXANDRA,00014800,19.65,INDEPENDENT LIVING SERVICES - MEALS ON WHEELS,CLOTHING/UNIFORMS,G510,CLOTHING/UNIFORMS,INDEPENDENT LIVING SERVICES,CLOTHING
http://statistics.data.gov.uk/id/local-authority/43UM,WOKING BOROUGH COUNCIL,15/03/2018,11/04/2018,0000421874/004,MWUK LTD T/A ALEXANDRA,00014800,6.65,INDEPENDENT LIVING SERVICES - MEALS ON WHEELS,CLOTHING/UNIFORMS,G510,CLOTHING/UNIFORMS,INDEPENDENT LIVING SERVICES,CLOTHING
http://statistics.data.gov.uk/id/local-authority/43UM,WOKING BOROUGH COUNCIL,15/03/2018,11/04/2018,0000421874/005,MWUK LTD T/A ALEXANDRA,00014800,26.60,INDEPENDENT LIVING SERVICES - MEALS ON WHEELS,CLOTHING/UNIFORMS,G510,CLOTHING/UNIFORMS,INDEPENDENT LIVING SERVICES,CLOTHING
http://statistics.data.gov.uk/id/local-authority/43UM,WOKING BOROUGH COUNCIL,16/03/2018,11/04/2018,0000422138/001,ALPHABET (GB) LIMITED,00015200,100.52,CORPORATE MANAGEMENT GROUP - LEASED CAR DEDUCTIONS,RECOVERABLE COSTS,T162,RECOVERABLE COSTS,CORPORATE MANAGEMENT GROUP,VEHICLE MANAGEMENT
http://statistics.data.gov.uk/id/local-authority/43UM,WOKING BOROUGH COUNCIL,16/03/2018,11/04/2018,0000422138/002,ALPHABET (GB) LIMITED,00015200,10.05,CORPORATE MANAGEMENT GROUP - LEASED CAR DEDUCTIONS,RECOVERABLE COSTS,T162,RECOVERABLE COSTS,CORPORATE MANAGEMENT GROUP,VEHICLE MANAGEMENT
http://statistics.data.gov.uk/id/local-authority/43UM,WOKING BOROUGH COUNCIL,14/03/2018,11/04/2018,0000421654/001,HEADLINE DESIGN & PRINT,00016900,309.00,CORPORATE STRATEGY - ELECTION ID PILOT,STATIONERY,G620,STATIONERY,CORPORATE STRATEGY,FINANCIAL SERVICES
http://statistics.data.gov.uk/id/local-authority/43UM,WOKING BOROUGH COUNCIL,14/03/2018,11/04/2018,0000422189/001,TUNSTALL HEALTHCARE (UK) LTD,00019000,61.84,INDEPENDENT LIVING SERVICES - BROCKHILL EXTRA CARE,EQUIPMENT,G100,EQUIPMENT,INDEPENDENT LIVING SERVICES,HEALTHCARE
http://statistics.data.gov.uk/id/local-authority/43UM,WOKING BOROUGH COUNCIL,14/03/2018,11/04/2018,0000422189/002,TUNSTALL HEALTHCARE (UK) LTD,00019000,2.95,INDEPENDENT LIVING SERVICES - BROCKHILL EXTRA CARE,EQUIPMENT,G100,EQUIPMENT,INDEPENDENT LIVING SERVICES,HEALTHCARE
http://statistics.data.gov.uk/id/local-authority/43UM,WOKING BOROUGH COUNCIL,19/03/2018,11/04/2018,0000422191/001,TUNSTALL HEALTHCARE (UK) LTD,00019000,15.46,INDEPENDENT LIVING SERVICES - BROCKHILL EXTRA CARE,EQUIPMENT,G100,EQUIPMENT,INDEPENDENT LIVING SERVICES,HEALTHCARE
http://statistics.data.gov.uk/id/local-authority/43UM,WOKING BOROUGH COUNCIL,15/03/2018,11/04/2018,0000422208/001,TUNSTALL HEALTHCARE (UK) LTD,00019000,156.00,INDEPENDENT LIVING SERVICES - COMMUNITY ALARMS-HRA,EQUIPMENT REPAIR & MAINTENANCE,G120,EQUIPMENT REPAIR & MAINTENANCE,INDEPENDENT LIVING SERVICES,HEALTHCARE
http://statistics.data.gov.uk/id/local-authority/43UM,WOKING BOROUGH COUNCIL,05/04/2018,11/04/2018,0000422582/001,RELATE WEST SURREY,00028800,15000.00,CORPORATE STRATEGY - GRANTS TO ORGANISATION,GRANTS,H100,GRANTS,CORPORATE STRATEGY,FINANCIAL SERVICES
http://statistics.data.gov.uk/id/local-authority/43UM,WOKING BOROUGH COUNCIL,15/03/2018,11/04/2018,0000422377/001,RAINER SECURITY PRODUCTS LTD,00030400,32.75,NEIGHBOURHOOD SERVICES - PARKS-GENERAL,GRD MTCE NON CCT,D240,GRD MTCE NON CCT,NEIGHBOURHOOD SERVICES,FACILITIES & MANAGEMENT SERVICES
http://statistics.data.gov.uk/id/local-authority/43UM,WOKING BOROUGH COUNCIL,15/03/2018,11/04/2018,0000422377/002,RAINER SECURITY PRODUCTS LTD,00030400,5.00,NEIGHBOURHOOD SERVICES - PARKS-GENERAL,GRD MTCE NON CCT,D240,GRD MTCE NON CCT,NEIGHBOURHOOD SERVICES,FACILITIES & MANAGEMENT SERVICES
http://statistics.data.gov.uk/id/local-authority/43UM,WOKING BOROUGH COUNCIL,03/04/2018,11/04/2018,0000422503/001,WOKING ACTIVE RETIREMENT CLUB,00032800,118.00,CORPORATE STRATEGY - GRANTS TO ORGANISATION,GRANTS,H100,GRANTS,CORPORATE STRATEGY,FINANCIAL SERVICES
http://statistics.data.gov.uk/id/local-authority/43UM,WOKING BOROUGH COUNCIL,15/03/2018,11/04/2018,0000421748/001,SURREY WILDLIFE TRUST,00035800,307.00,NEIGHBOURHOOD SERVICES - FLOOD CLEARANCE,DITCH CLEARANCE,D219,DITCH CLEARANCE,NEIGHBOURHOOD SERVICES,WORKS (CONSTRUCTION REPAIR MAINTENANCE)
http://statistics.data.gov.uk/id/local-authority/43UM,WOKING BOROUGH COUNCIL,06/04/2018,11/04/2018,0040000882/001,WOKING HOSPICE,00047300,14350.00,CORPORATE STRATEGY - GRANTS TO ORGANISATION,GRANTS,H100,GRANTS,CORPORATE STRATEGY,FINANCIAL SERVICES
http://statistics.data.gov.uk/id/local-authority/43UM,WOKING BOROUGH COUNCIL,29/03/2018,11/04/2018,0000422316/002,PERSONNEL SELECTION ASSOCIATES LIMITED,00061400,185.75,H G WELLS - H G WELLS - FUNCTION ROOMS,TEMPORARY STAFF,H687,TEMPORARY STAFF,H G WELLS,HUMAN RESOURCES
http://statistics.data.gov.uk/id/local-authority/43UM,WOKING BOROUGH COUNCIL,29/03/2018,11/04/2018,0000422316/001,PERSONNEL SELECTION ASSOCIATES LIMITED,00061400,370.50,H G WELLS - H G WELLS - BAR,TEMPORARY STAFF,H687,TEMPORARY STAFF,H G WELLS,HUMAN RESOURCES
http://statistics.data.gov.uk/id/local-authority/43UM,WOKING BOROUGH COUNCIL,29/03/2018,11/04/2018,0000422315/002,PERSONNEL SELECTION ASSOCIATES LIMITED,00061400,188.40,INDEPENDENT LIVING SERVICES - MOORCROFT,TEMPORARY STAFF,A110,TEMPORARY STAFF,INDEPENDENT LIVING SERVICES,HUMAN RESOURCES
http://statistics.data.gov.uk/id/local-authority/43UM,WOKING BOROUGH COUNCIL,29/03/2018,11/04/2018,0000422315/003,PERSONNEL SELECTION ASSOCIATES LIMITED,00061400,550.56,INDEPENDENT LIVING SERVICES - ST. MARY'S,TEMPORARY STAFF,A110,TEMPORARY STAFF,INDEPENDENT LIVING SERVICES,HUMAN RESOURCES
http://statistics.data.gov.uk/id/local-authority/43UM,WOKING BOROUGH COUNCIL,29/03/2018,11/04/2018,0000422317/001,PERSONNEL SELECTION ASSOCIATES LIMITED,00061400,109.80,INDEPENDENT LIVING SERVICES - MEALS SERVICE,TEMPORARY STAFF,A110,TEMPORARY STAFF,INDEPENDENT LIVING SERVICES,HUMAN RESOURCES
http://statistics.data.gov.uk/id/local-authority/43UM,WOKING BOROUGH COUNCIL,29/03/2018,11/04/2018,0000422315/001,PERSONNEL SELECTION ASSOCIATES LIMITED,00061400,644.24,INDEPENDENT LIVING SERVICES - PARKVIEW,TEMPORARY STAFF,A110,TEMPORARY STAFF,INDEPENDENT LIVING SERVICES,HUMAN RESOURCES
http://statistics.data.gov.uk/id/local-authority/43UM,WOKING BOROUGH COUNCIL,04/04/2018,11/04/2018,0000422593/001,PERSONNEL SELECTION ASSOCIATES LIMITED,00061400,1158.16,INDEPENDENT LIVING SERVICES - PARKVIEW,TEMPORARY STAFF,A110,TEMPORARY STAFF,INDEPENDENT LIVING SERVICES,HUMAN RESOURCES
http://statistics.data.gov.uk/id/local-authority/43UM,WOKING BOROUGH COUNCIL,06/04/2018,11/04/2018,0040000880/001,THE MAYBURY CENTRE TRUST,00062600,10670.75,CORPORATE STRATEGY - GRANTS TO ORGANISATION,GRANTS,H100,GRANTS,CORPORATE STRATEGY,FINANCIAL SERVICES
http://statistics.data.gov.uk/id/local-authority/43UM,WOKING BOROUGH COUNCIL,19/03/2018,11/04/2018,0000422302/001,GALA LIGHTS LTD,00073700,4100.00,ASSET MANAGEMENT - FACILITIES MANAGEMENT,FACILITIES MANAGEMENT REPAIRS,D908,FACILITIES MANAGEMENT REPAIRS,ASSET MANAGEMENT,FACILITIES & MANAGEMENT SERVICES
http://statistics.data.gov.uk/id/local-authority/43UM,WOKING BOROUGH COUNCIL,17/03/2018,11/04/2018,0000422011/001,CHARTERED INST.OF ENVIRONMENTAL HEALTH,00074400,490.00,NEIGHBOURHOOD SERVICES - REGULATION AND ENFORCEMENT,SUBSCRIPTIONS,H110,SUBSCRIPTIONS,NEIGHBOURHOOD SERVICES,CONSULTANCY
http://statistics.data.gov.uk/id/local-authority/43UM,WOKING BOROUGH COUNCIL,19/03/2018,11/04/2018,0000422169/001,M&J SEAFOOD,00074600,172.11,H G WELLS - H G WELLS - CATERING,PROVISIONS-FOOD,G440,PROVISIONS-FOOD,H G WELLS,CATERING
http://statistics.data.gov.uk/id/local-authority/43UM,WOKING BOROUGH COUNCIL,14/03/2018,11/04/2018,0000421681/001,FRAZERS SURVEYORS LTD,00076400,150.00,HOUSING SERVICES - SALE COUNCIL HOUSES,OTHER CONSULTANTS,Q430,OTHER CONSULTANTS,HOUSING SERVICES,HOUSING MANAGEMENT
http://statistics.data.gov.uk/id/local-authority/43UM,WOKING BOROUGH COUNCIL,09/02/2018,11/04/2018,0000422585/001,PEARL & COUTTS LTD,00084700,8750.00,ASSET MANAGEMENT - POOLE RD - GEN,RENTS PAYABLE,D500,RENTS PAYABLE,ASSET MANAGEMENT,FINANCIAL SERVICES
http://statistics.data.gov.uk/id/local-authority/43UM,WOKING BOROUGH COUNCIL,08/03/2018,11/04/2018,0000421490/001,CONVIVIALITY GRP T/A MATTHEW CLARK,00107800,3250.99,H G WELLS - H G WELLS - BAR,PROVISIONS-BAR,G450,PROVISIONS-BAR,H G WELLS,CATERING
http://statistics.data.gov.uk/id/local-authority/43UM,WOKING BOROUGH COUNCIL,16/03/2018,11/04/2018,0000421904/001,CONVIVIALITY GRP T/A MATTHEW CLARK,00107800,3727.79,H G WELLS - H G WELLS - BAR,PROVISIONS-BAR,G450,PROVISIONS-BAR,H G WELLS,CATERING
http://statistics.data.gov.uk/id/local-authority/43UM,WOKING BOROUGH COUNCIL,20/03/2018,11/04/2018,0000422025/001,WEST BYFLEET PAROCHIAL CHURCH COUNCIL,00139400,63.00,CORPORATE STRATEGY - DEMOCRATIC REPRESENTATION,MEMBERS SURGERY COSTS,H286,MEMBERS SURGERY COSTS,CORPORATE STRATEGY,FACILITIES & MANAGEMENT SERVICES
http://statistics.data.gov.uk/id/local-authority/43UM,WOKING BOROUGH COUNCIL,18/03/2018,11/04/2018,0000422035/002,WEST HORSLEY DAIRY,00147600,51.75,H G WELLS - H G WELLS - BAR,PROVISIONS-BAR,G450,PROVISIONS-BAR,H G WELLS,CATERING
http://statistics.data.gov.uk/id/local-authority/43UM,WOKING BOROUGH COUNCIL,18/03/2018,11/04/2018,0000422035/001,WEST HORSLEY DAIRY,00147600,567.91,H G WELLS - H G WELLS - CATERING,PROVISIONS-FOOD,G440,PROVISIONS-FOOD,H G WELLS,CATERING
http://statistics.data.gov.uk/id/local-authority/43UM,WOKING BOROUGH COUNCIL,06/04/2018,11/04/2018,0040000881/001,WOKING COMMUNITY MEDIATION SERVICE,00163200,1000.00,CORPORATE STRATEGY - GRANTS TO ORGANISATION,GRANTS,H100,GRANTS,CORPORATE STRATEGY,FINANCIAL SERVICES
http://statistics.data.gov.uk/id/local-authority/43UM,WOKING BOROUGH COUNCIL,15/03/2018,11/04/2018,0000421773/001,SOUTH EAST EMPLOYERS,00263400,1390.00,CORPORATE MANAGEMENT GROUP - STAFF TRAINING/GENERAL COSTS,TRAINING - CORPORATE,A910,TRAINING - CORPORATE,CORPORATE MANAGEMENT GROUP,HUMAN RESOURCES
http://statistics.data.gov.uk/id/local-authority/43UM,WOKING BOROUGH COUNCIL,03/04/2018,11/04/2018,0000422502/001,ST JOHNS GOOD COMPANIONS,00270300,94.00,CORPORATE STRATEGY - GRANTS TO ORGANISATION,GRANTS,H100,GRANTS,CORPORATE STRATEGY,FINANCIAL SERVICES
http://statistics.data.gov.uk/id/local-authority/43UM,WOKING BOROUGH COUNCIL,03/04/2018,11/04/2018,0000422504/001,ST HUGH'S LUNCHEON CLUB,00274200,64.00,CORPORATE STRATEGY - GRANTS TO ORGANISATION,GRANTS,H100,GRANTS,CORPORATE STRATEGY,FINANCIAL SERVICES
http://statistics.data.gov.uk/id/local-authority/43UM,WOKING BOROUGH COUNCIL,16/03/2018,11/04/2018,0000421956/001,CIPFA BUSINESS LIMITED,00316100,320.00,FINANCIAL SERVICES - FINANCIAL SERVICES,BOOKS MAPS PLANS,G650,BOOKS MAPS PLANS,FINANCIAL SERVICES,CONSULTANCY
http://statistics.data.gov.uk/id/local-authority/43UM,WOKING BOROUGH COUNCIL,16/03/2018,11/04/2018,0000421956/002,CIPFA BUSINESS LIMITED,00316100,960.00,FINANCIAL SERVICES - FINANCIAL SERVICES,BOOKS MAPS PLANS,G650,BOOKS MAPS PLANS,FINANCIAL SERVICES,CONSULTANCY
http://statistics.data.gov.uk/id/local-authority/43UM,WOKING BOROUGH COUNCIL,16/03/2018,11/04/2018,0000421956/003,CIPFA BUSINESS LIMITED,00316100,260.00,FINANCIAL SERVICES - FINANCIAL SERVICES,BOOKS MAPS PLANS,G650,BOOKS MAPS PLANS,FINANCIAL SERVICES,CONSULTANCY
http://statistics.data.gov.uk/id/local-authority/43UM,WOKING BOROUGH COUNCIL,16/03/2018,11/04/2018,0000421956/004,CIPFA BUSINESS LIMITED,00316100,260.00,FINANCIAL SERVICES - FINANCIAL SERVICES,BOOKS MAPS PLANS,G650,BOOKS MAPS PLANS,FINANCIAL SERVICES,CONSULTANCY
http://statistics.data.gov.uk/id/local-authority/43UM,WOKING BOROUGH COUNCIL,16/03/2018,11/04/2018,0000421956/005,CIPFA BUSINESS LIMITED,00316100,15.00,FINANCIAL SERVICES - FINANCIAL SERVICES,BOOKS MAPS PLANS,G650,BOOKS MAPS PLANS,FINANCIAL SERVICES,CONSULTANCY
http://statistics.data.gov.uk/id/local-authority/43UM,WOKING BOROUGH COUNCIL,27/03/2018,11/04/2018,0000422362/001,VIRGIN MEDIA BUSINESS,00316500,40.00,HOUSING SERVICES - ESTATE MANAGEMENT,NETWORK CIRCUITS,G800,NETWORK CIRCUITS,HOUSING SERVICES,INFORMATION COMMUNICATION TECHNOLOGY
http://statistics.data.gov.uk/id/local-authority/43UM,WOKING BOROUGH COUNCIL,19/03/2018,11/04/2018,0000422173/001,SIEMENS FINANCIAL SERVICES LIMITED,00366900,388.05,H G WELLS - H G WELLS - FUNCTION ROOMS,LEASING COSTS-EQUIPMENT,G110,LEASING COSTS-EQUIPMENT,H G WELLS,FINANCIAL SERVICES
http://statistics.data.gov.uk/id/local-authority/43UM,WOKING BOROUGH COUNCIL,19/03/2018,11/04/2018,0000422218/001,WHISTL UK LIMITED,00367900,170.58,CORPORATE STRATEGY - POSTAGE,POSTAGE - STANDARD TARIFF,G700,POSTAGE - STANDARD TARIFF,CORPORATE STRATEGY,MAIL SERVICES
http://statistics.data.gov.uk/id/local-authority/43UM,WOKING BOROUGH COUNCIL,19/03/2018,11/04/2018,0000422219/001,WHISTL UK LIMITED,00367900,1524.23,CORPORATE STRATEGY - POSTAGE,POSTAGE - STANDARD TARIFF,G700,POSTAGE - STANDARD TARIFF,CORPORATE STRATEGY,MAIL SERVICES
http://statistics.data.gov.uk/id/local-authority/43UM,WOKING BOROUGH COUNCIL,15/03/2018,11/04/2018,0000421771/001,RSM DOMESTIC APPLIANCES,00582300,416.66,INDEPENDENT LIVING SERVICES - SW REGEN MISC COSTS,MAIN CONTRACTOR,Q200,MAIN CONTRACTOR,INDEPENDENT LIVING SERVICES,DOMESTIC GOODS
http://statistics.data.gov.uk/id/local-authority/43UM,WOKING BOROUGH COUNCIL,20/03/2018,11/04/2018,0000421994/001,CURCHOD & CO,00653900,9750.00,ASSET MANAGEMENT - PROPERTY SERVICES,CONSULTANTS,H670,CONSULTANTS,ASSET MANAGEMENT,CONSULTANCY
http://statistics.data.gov.uk/id/local-authority/43UM,WOKING BOROUGH COUNCIL,10/04/2018,11/04/2018,0000422743/001,REDACTED PERSONAL DATA,00797500,6058.21,INDEPENDENT LIVING SERVICES - SW REGEN HOME LOSS PAYMENTS,MAIN CONTRACTOR,Q200,MAIN CONTRACTOR,INDEPENDENT LIVING SERVICES,FINANCIAL SERVICES
http://statistics.data.gov.uk/id/local-authority/43UM,WOKING BOROUGH COUNCIL,10/04/2018,11/04/2018,0000422743/002,REDACTED PERSONAL DATA,00797500,2200.00,INDEPENDENT LIVING SERVICES - SW REGEN DISTURBANCE PAYMENTS,MAIN CONTRACTOR,Q200,MAIN CONTRACTOR,INDEPENDENT LIVING SERVICES,FINANCIAL SERVICES
http://statistics.data.gov.uk/id/local-authority/43UM,WOKING BOROUGH COUNCIL,22/03/2018,11/04/2018,0000422379/001,TANDRIDGE DISTRICT COUNCIL,00958900,442.50,PLANNING SERVICES - BUILDING REGULATIONS,PAYMENTS TO OTHER LA'S,H695,PAYMENTS TO OTHER LA'S,PLANNING SERVICES,WORKS (CONSTRUCTION REPAIR MAINTENANCE)
http://statistics.data.gov.uk/id/local-authority/43UM,WOKING BOROUGH COUNCIL,14/03/2018,11/04/2018,0000421788/001,REEVES BUTCHERS LTD,01005000,255.68,H G WELLS - H G WELLS - CATERING,PROVISIONS-FOOD,G440,PROVISIONS-FOOD,H G WELLS,CATERING
http://statistics.data.gov.uk/id/local-authority/43UM,WOKING BOROUGH COUNCIL,19/03/2018,11/04/2018,0000422043/001,REEVES BUTCHERS LTD,01005000,247.44,H G WELLS - H G WELLS - CATERING,PROVISIONS-FOOD,G440,PROVISIONS-FOOD,H G WELLS,CATERING
http://statistics.data.gov.uk/id/local-authority/43UM,WOKING BOROUGH COUNCIL,16/03/2018,11/04/2018,0000422044/001,REEVES BUTCHERS LTD,01005000,204.40,H G WELLS - H G WELLS - CATERING,PROVISIONS-FOOD,G440,PROVISIONS-FOOD,H G WELLS,CATERING
http://statistics.data.gov.uk/id/local-authority/43UM,WOKING BOROUGH COUNCIL,17/03/2018,11/04/2018,0000422167/001,REEVES BUTCHERS LTD,01005000,49.10,H G WELLS - H G WELLS - CATERING,PROVISIONS-FOOD,G440,PROVISIONS-FOOD,H G WELLS,CATERING
http://statistics.data.gov.uk/id/local-authority/43UM,WOKING BOROUGH COUNCIL,19/03/2018,11/04/2018,0000422090/001,MARTIN CONWAY,01025900,455.00,HOUSING SERVICES - HOUSING OPTIONS,BED & BREAKFAST EXPENDITURE,H786,BED & BREAKFAST EXPENDITURE,HOUSING SERVICES,HOUSING MANAGEMENT
http://statistics.data.gov.uk/id/local-authority/43UM,WOKING BOROUGH COUNCIL,02/03/2018,11/04/2018,0000421438/001,CHEESMAN BROTHERS LTD,01050500,110.50,H G WELLS - H G WELLS - CATERING,PROVISIONS-FOOD,G440,PROVISIONS-FOOD,H G WELLS,CATERING
http://statistics.data.gov.uk/id/local-authority/43UM,WOKING BOROUGH COUNCIL,01/03/2018,11/04/2018,0000421439/001,CHEESMAN BROTHERS LTD,01050500,472.28,H G WELLS - H G WELLS - CATERING,PROVISIONS-FOOD,G440,PROVISIONS-FOOD,H G WELLS,CATERING
http://statistics.data.gov.uk/id/local-authority/43UM,WOKING BOROUGH COUNCIL,08/03/2018,11/04/2018,0000421720/001,CHEESMAN BROTHERS LTD,01050500,1.38,H G WELLS - H G WELLS - CATERING,PROVISIONS-FOOD,G440,PROVISIONS-FOOD,H G WELLS,CATERING
http://statistics.data.gov.uk/id/local-authority/43UM,WOKING BOROUGH COUNCIL,03/03/2018,11/04/2018,0000421721/001,CHEESMAN BROTHERS LTD,01050500,97.81,H G WELLS - H G WELLS - CATERING,PROVISIONS-FOOD,G440,PROVISIONS-FOOD,H G WELLS,CATERING
http://statistics.data.gov.uk/id/local-authority/43UM,WOKING BOROUGH COUNCIL,08/03/2018,11/04/2018,0000421722/001,CHEESMAN BROTHERS LTD,01050500,58.44,H G WELLS - H G WELLS - CATERING,PROVISIONS-FOOD,G440,PROVISIONS-FOOD,H G WELLS,CATERING
http://statistics.data.gov.uk/id/local-authority/43UM,WOKING BOROUGH COUNCIL,07/03/2018,11/04/2018,0000421723/001,CHEESMAN BROTHERS LTD,01050500,22.96,H G WELLS - H G WELLS - CATERING,PROVISIONS-FOOD,G440,PROVISIONS-FOOD,H G WELLS,CATERING
http://statistics.data.gov.uk/id/local-authority/43UM,WOKING BOROUGH COUNCIL,06/03/2018,11/04/2018,0000421724/001,CHEESMAN BROTHERS LTD,01050500,34.25,H G WELLS - H G WELLS - CATERING,PROVISIONS-FOOD,G440,PROVISIONS-FOOD,H G WELLS,CATERING
http://statistics.data.gov.uk/id/local-authority/43UM,WOKING BOROUGH COUNCIL,10/03/2018,11/04/2018,0000421732/001,CHEESMAN BROTHERS LTD,01050500,6.68,H G WELLS - H G WELLS - CATERING,PROVISIONS-FOOD,G440,PROVISIONS-FOOD,H G WELLS,CATERING
http://statistics.data.gov.uk/id/local-authority/43UM,WOKING BOROUGH COUNCIL,12/03/2018,11/04/2018,0000421733/001,CHEESMAN BROTHERS LTD,01050500,49.66,H G WELLS - H G WELLS - CATERING,PROVISIONS-FOOD,G440,PROVISIONS-FOOD,H G WELLS,CATERING
http://statistics.data.gov.uk/id/local-authority/43UM,WOKING BOROUGH COUNCIL,13/03/2018,11/04/2018,0000421789/001,CHEESMAN BROTHERS LTD,01050500,225.58,H G WELLS - H G WELLS - CATERING,PROVISIONS-FOOD,G440,PROVISIONS-FOOD,H G WELLS,CATERING
http://statistics.data.gov.uk/id/local-authority/43UM,WOKING BOROUGH COUNCIL,19/03/2018,11/04/2018,0000422036/001,CHEESMAN BROTHERS LTD,01050500,176.61,H G WELLS - H G WELLS - CATERING,PROVISIONS-FOOD,G440,PROVISIONS-FOOD,H G WELLS,CATERING
http://statistics.data.gov.uk/id/local-authority/43UM,WOKING BOROUGH COUNCIL,17/03/2018,11/04/2018,0000422037/001,CHEESMAN BROTHERS LTD,01050500,15.40,H G WELLS - H G WELLS - CATERING,PROVISIONS-FOOD,G440,PROVISIONS-FOOD,H G WELLS,CATERING
http://statistics.data.gov.uk/id/local-authority/43UM,WOKING BOROUGH COUNCIL,17/03/2018,11/04/2018,0000422038/001,CHEESMAN BROTHERS LTD,01050500,21.50,H G WELLS - H G WELLS - CATERING,PROVISIONS-FOOD,G440,PROVISIONS-FOOD,H G WELLS,CATERING
http://statistics.data.gov.uk/id/local-authority/43UM,WOKING BOROUGH COUNCIL,17/03/2018,11/04/2018,0000422039/001,CHEESMAN BROTHERS LTD,01050500,67.05,H G WELLS - H G WELLS - CATERING,PROVISIONS-FOOD,G440,PROVISIONS-FOOD,H G WELLS,CATERING
http://statistics.data.gov.uk/id/local-authority/43UM,WOKING BOROUGH COUNCIL,16/03/2018,11/04/2018,0000422040/001,CHEESMAN BROTHERS LTD,01050500,101.40,H G WELLS - H G WELLS - CATERING,PROVISIONS-FOOD,G440,PROVISIONS-FOOD,H G WELLS,CATERING
http://statistics.data.gov.uk/id/local-authority/43UM,WOKING BOROUGH COUNCIL,19/03/2018,11/04/2018,0000422174/001,CHEESMAN BROTHERS LTD,01050500,30.00,H G WELLS - H G WELLS - CATERING,PROVISIONS-FOOD,G440,PROVISIONS-FOOD,H G WELLS,CATERING
http://statistics.data.gov.uk/id/local-authority/43UM,WOKING BOROUGH COUNCIL,22/03/2018,11/04/2018,0000422175/001,CHEESMAN BROTHERS LTD,01050500,10.45,H G WELLS - H G WELLS - CATERING,PROVISIONS-FOOD,G440,PROVISIONS-FOOD,H G WELLS,CATERING
http://statistics.data.gov.uk/id/local-authority/43UM,WOKING BOROUGH COUNCIL,20/03/2018,11/04/2018,0000422176/001,CHEESMAN BROTHERS LTD,01050500,28.59,H G WELLS - H G WELLS - CATERING,PROVISIONS-FOOD,G440,PROVISIONS-FOOD,H G WELLS,CATERING
http://statistics.data.gov.uk/id/local-authority/43UM,WOKING BOROUGH COUNCIL,27/03/2018,11/04/2018,0000422554/001,CHEESMAN BROTHERS LTD,01050500,13.91,H G WELLS - H G WELLS - CATERING,PROVISIONS-FOOD,G440,PROVISIONS-FOOD,H G WELLS,CATERING
http://statistics.data.gov.uk/id/local-authority/43UM,WOKING BOROUGH COUNCIL,28/03/2018,11/04/2018,0000422555/001,CHEESMAN BROTHERS LTD,01050500,28.06,H G WELLS - H G WELLS - CATERING,PROVISIONS-FOOD,G440,PROVISIONS-FOOD,H G WELLS,CATERING
http://statistics.data.gov.uk/id/local-authority/43UM,WOKING BOROUGH COUNCIL,26/03/2018,11/04/2018,0000422556/001,CHEESMAN BROTHERS LTD,01050500,8.96,H G WELLS - H G WELLS - CATERING,PROVISIONS-FOOD,G440,PROVISIONS-FOOD,H G WELLS,CATERING
http://statistics.data.gov.uk/id/local-authority/43UM,WOKING BOROUGH COUNCIL,16/03/2018,11/04/2018,0000421835/003,CHEESMAN BROTHERS LTD,01050500,68.28,INDEPENDENT LIVING SERVICES - MEALS SERVICE - BROCKHILL,PROVISIONS,G410,PROVISIONS,INDEPENDENT LIVING SERVICES,CATERING
http://statistics.data.gov.uk/id/local-authority/43UM,WOKING BOROUGH COUNCIL,16/03/2018,11/04/2018,0000421835/004,CHEESMAN BROTHERS LTD,01050500,28.82,INDEPENDENT LIVING SERVICES - MEALS SERVICE - BROCKHILL,PROVISIONS,G410,PROVISIONS,INDEPENDENT LIVING SERVICES,CATERING
http://statistics.data.gov.uk/id/local-authority/43UM,WOKING BOROUGH COUNCIL,23/03/2018,11/04/2018,0000422110/002,CHEESMAN BROTHERS LTD,01050500,69.05,INDEPENDENT LIVING SERVICES - MEALS SERVICE - BROCKHILL,PROVISIONS,G410,PROVISIONS,INDEPENDENT LIVING SERVICES,CATERING
http://statistics.data.gov.uk/id/local-authority/43UM,WOKING BOROUGH COUNCIL,16/03/2018,11/04/2018,0000421835/001,CHEESMAN BROTHERS LTD,01050500,21.65,INDEPENDENT LIVING SERVICES - MEALS SERVICE - ST MARYS,PROVISIONS,G410,PROVISIONS,INDEPENDENT LIVING SERVICES,CATERING
http://statistics.data.gov.uk/id/local-authority/43UM,WOKING BOROUGH COUNCIL,16/03/2018,11/04/2018,0000421835/002,CHEESMAN BROTHERS LTD,01050500,30.17,INDEPENDENT LIVING SERVICES - MEALS SERVICE - ST MARYS,PROVISIONS,G410,PROVISIONS,INDEPENDENT LIVING SERVICES,CATERING
http://statistics.data.gov.uk/id/local-authority/43UM,WOKING BOROUGH COUNCIL,23/03/2018,11/04/2018,0000422110/001,CHEESMAN BROTHERS LTD,01050500,37.20,INDEPENDENT LIVING SERVICES - MEALS SERVICE-MOORCROFT,PROVISIONS,G410,PROVISIONS,INDEPENDENT LIVING SERVICES,CATERING
http://statistics.data.gov.uk/id/local-authority/43UM,WOKING BOROUGH COUNCIL,23/03/2018,11/04/2018,0000422110/003,CHEESMAN BROTHERS LTD,01050500,24.54,INDEPENDENT LIVING SERVICES - MEALS SERVICE -THE VYNE,PROVISIONS,G410,PROVISIONS,INDEPENDENT LIVING SERVICES,CATERING
http://statistics.data.gov.uk/id/local-authority/43UM,WOKING BOROUGH COUNCIL,01/03/2018,11/04/2018,0000421443/001,SOUTHERN ELECTRIC,01079500,292.55,ASSET MANAGEMENT - WOLSEY PLACE,ELECTRICITY,D400,ELECTRICITY,ASSET MANAGEMENT,UTILITIES
http://statistics.data.gov.uk/id/local-authority/43UM,WOKING BOROUGH COUNCIL,06/03/2018,11/04/2018,0000422069/001,SOUTHERN ELECTRIC,01079500,91.83,ASSET MANAGEMENT - WOLSEY PLACE,GAS,D420,GAS,ASSET MANAGEMENT,UTILITIES
http://statistics.data.gov.uk/id/local-authority/43UM,WOKING BOROUGH COUNCIL,22/03/2018,11/04/2018,0000422512/001,SOUTHERN ELECTRIC,01079500,1954.31,HOUSING SERVICES - ENERGY,GAS,D420,GAS,HOUSING SERVICES,UTILITIES
http://statistics.data.gov.uk/id/local-authority/43UM,WOKING BOROUGH COUNCIL,13/03/2018,11/04/2018,0000421982/001,SOUTHERN ELECTRIC,01079500,39.73,HOUSING SERVICES - ENERGY,TEL ELECTRICITY,D480,TEL ELECTRICITY,HOUSING SERVICES,UTILITIES
http://statistics.data.gov.uk/id/local-authority/43UM,WOKING BOROUGH COUNCIL,19/02/2018,11/04/2018,0000420952/001,SOUTHERN ELECTRIC,01079500,-324.17,HOUSING SERVICES - DISABLED FACILITIES GRANTS,ELECTRICITY,D400,ELECTRICITY,HOUSING SERVICES,UTILITIES
http://statistics.data.gov.uk/id/local-authority/43UM,WOKING BOROUGH COUNCIL,19/02/2018,11/04/2018,0000420953/001,SOUTHERN ELECTRIC,01079500,-596.40,HOUSING SERVICES - DISABLED FACILITIES GRANTS,ELECTRICITY,D400,ELECTRICITY,HOUSING SERVICES,UTILITIES
http://statistics.data.gov.uk/id/local-authority/43UM,WOKING BOROUGH COUNCIL,19/02/2018,11/04/2018,0000420954/001,SOUTHERN ELECTRIC,01079500,-571.60,HOUSING SERVICES - DISABLED FACILITIES GRANTS,ELECTRICITY,D400,ELECTRICITY,HOUSING SERVICES,UTILITIES
http://statistics.data.gov.uk/id/local-authority/43UM,WOKING BOROUGH COUNCIL,19/02/2018,11/04/2018,0000420955/001,SOUTHERN ELECTRIC,01079500,-571.60,HOUSING SERVICES - DISABLED FACILITIES GRANTS,ELECTRICITY,D400,ELECTRICITY,HOUSING SERVICES,UTILITIES
http://statistics.data.gov.uk/id/local-authority/43UM,WOKING BOROUGH COUNCIL,19/02/2018,11/04/2018,0000420956/001,SOUTHERN ELECTRIC,01079500,-557.43,HOUSING SERVICES - DISABLED FACILITIES GRANTS,ELECTRICITY,D400,ELECTRICITY,HOUSING SERVICES,UTILITIES
http://statistics.data.gov.uk/id/local-authority/43UM,WOKING BOROUGH COUNCIL,19/02/2018,11/04/2018,0000420957/001,SOUTHERN ELECTRIC,01079500,203.10,HOUSING SERVICES - DISABLED FACILITIES GRANTS,ELECTRICITY,D400,ELECTRICITY,HOUSING SERVICES,UTILITIES
http://statistics.data.gov.uk/id/local-authority/43UM,WOKING BOROUGH COUNCIL,19/02/2018,11/04/2018,0000420958/001,SOUTHERN ELECTRIC,01079500,399.31,HOUSING SERVICES - DISABLED FACILITIES GRANTS,ELECTRICITY,D400,ELECTRICITY,HOUSING SERVICES,UTILITIES
http://statistics.data.gov.uk/id/local-authority/43UM,WOKING BOROUGH COUNCIL,19/02/2018,11/04/2018,0000420959/001,SOUTHERN ELECTRIC,01079500,365.46,HOUSING SERVICES - DISABLED FACILITIES GRANTS,ELECTRICITY,D400,ELECTRICITY,HOUSING SERVICES,UTILITIES
http://statistics.data.gov.uk/id/local-authority/43UM,WOKING BOROUGH COUNCIL,19/02/2018,11/04/2018,0000420960/001,SOUTHERN ELECTRIC,01079500,392.09,HOUSING SERVICES - DISABLED FACILITIES GRANTS,ELECTRICITY,D400,ELECTRICITY,HOUSING SERVICES,UTILITIES
http://statistics.data.gov.uk/id/local-authority/43UM,WOKING BOROUGH COUNCIL,19/02/2018,11/04/2018,0000420961/001,SOUTHERN ELECTRIC,01079500,350.08,HOUSING SERVICES - DISABLED FACILITIES GRANTS,ELECTRICITY,D400,ELECTRICITY,HOUSING SERVICES,UTILITIES
http://statistics.data.gov.uk/id/local-authority/43UM,WOKING BOROUGH COUNCIL,19/02/2018,11/04/2018,0000420962/001,SOUTHERN ELECTRIC,01079500,361.70,HOUSING SERVICES - DISABLED FACILITIES GRANTS,ELECTRICITY,D400,ELECTRICITY,HOUSING SERVICES,UTILITIES
http://statistics.data.gov.uk/id/local-authority/43UM,WOKING BOROUGH COUNCIL,19/02/2018,11/04/2018,0000420952/002,SOUTHERN ELECTRIC,01079500,-16.88,HOUSING SERVICES - DISABLED FACILITIES GRANTS,CLIMATE CHANGE LEVY,D430,CLIMATE CHANGE LEVY,HOUSING SERVICES,UTILITIES
http://statistics.data.gov.uk/id/local-authority/43UM,WOKING BOROUGH COUNCIL,19/02/2018,11/04/2018,0000420953/002,SOUTHERN ELECTRIC,01079500,-31.08,HOUSING SERVICES - DISABLED FACILITIES GRANTS,CLIMATE CHANGE LEVY,D430,CLIMATE CHANGE LEVY,HOUSING SERVICES,UTILITIES
http://statistics.data.gov.uk/id/local-authority/43UM,WOKING BOROUGH COUNCIL,19/02/2018,11/04/2018,0000420954/002,SOUTHERN ELECTRIC,01079500,-29.92,HOUSING SERVICES - DISABLED FACILITIES GRANTS,CLIMATE CHANGE LEVY,D430,CLIMATE CHANGE LEVY,HOUSING SERVICES,UTILITIES
http://statistics.data.gov.uk/id/local-authority/43UM,WOKING BOROUGH COUNCIL,19/02/2018,11/04/2018,0000420955/002,SOUTHERN ELECTRIC,01079500,-30.20,HOUSING SERVICES - DISABLED FACILITIES GRANTS,CLIMATE CHANGE LEVY,D430,CLIMATE CHANGE LEVY,HOUSING SERVICES,UTILITIES
http://statistics.data.gov.uk/id/local-authority/43UM,WOKING BOROUGH COUNCIL,19/02/2018,11/04/2018,0000420956/002,SOUTHERN ELECTRIC,01079500,-29.41,HOUSING SERVICES - DISABLED FACILITIES GRANTS,CLIMATE CHANGE LEVY,D430,CLIMATE CHANGE LEVY,HOUSING SERVICES,UTILITIES
http://statistics.data.gov.uk/id/local-authority/43UM,WOKING BOROUGH COUNCIL,19/02/2018,11/04/2018,0000420957/002,SOUTHERN ELECTRIC,01079500,9.98,HOUSING SERVICES - DISABLED FACILITIES GRANTS,CLIMATE CHANGE LEVY,D430,CLIMATE CHANGE LEVY,HOUSING SERVICES,UTILITIES
http://statistics.data.gov.uk/id/local-authority/43UM,WOKING BOROUGH COUNCIL,19/02/2018,11/04/2018,0000420958/002,SOUTHERN ELECTRIC,01079500,20.31,HOUSING SERVICES - DISABLED FACILITIES GRANTS,CLIMATE CHANGE LEVY,D430,CLIMATE CHANGE LEVY,HOUSING SERVICES,UTILITIES
http://statistics.data.gov.uk/id/local-authority/43UM,WOKING BOROUGH COUNCIL,19/02/2018,11/04/2018,0000420959/002,SOUTHERN ELECTRIC,01079500,18.07,HOUSING SERVICES - DISABLED FACILITIES GRANTS,CLIMATE CHANGE LEVY,D430,CLIMATE CHANGE LEVY,HOUSING SERVICES,UTILITIES
http://statistics.data.gov.uk/id/local-authority/43UM,WOKING BOROUGH COUNCIL,19/02/2018,11/04/2018,0000420960/002,SOUTHERN ELECTRIC,01079500,19.69,HOUSING SERVICES - DISABLED FACILITIES GRANTS,CLIMATE CHANGE LEVY,D430,CLIMATE CHANGE LEVY,HOUSING SERVICES,UTILITIES
http://statistics.data.gov.uk/id/local-authority/43UM,WOKING BOROUGH COUNCIL,19/02/2018,11/04/2018,0000420961/002,SOUTHERN ELECTRIC,01079500,17.41,HOUSING SERVICES - DISABLED FACILITIES GRANTS,CLIMATE CHANGE LEVY,D430,CLIMATE CHANGE LEVY,HOUSING SERVICES,UTILITIES
http://statistics.data.gov.uk/id/local-authority/43UM,WOKING BOROUGH COUNCIL,19/02/2018,11/04/2018,0000420962/002,SOUTHERN ELECTRIC,01079500,18.04,HOUSING SERVICES - DISABLED FACILITIES GRANTS,CLIMATE CHANGE LEVY,D430,CLIMATE CHANGE LEVY,HOUSING SERVICES,UTILITIES
http://statistics.data.gov.uk/id/local-authority/43UM,WOKING BOROUGH COUNCIL,03/04/2018,11/04/2018,0000422506/001,CAMEO,01136200,60.00,CORPORATE STRATEGY - GRANTS TO ORGANISATION,GRANTS,H100,GRANTS,CORPORATE STRATEGY,FINANCIAL SERVICES
http://statistics.data.gov.uk/id/local-authority/43UM,WOKING BOROUGH COUNCIL,28/03/2018,11/04/2018,0000422464/024,THAMESWEY ENERGY LIMITED,01142300,98.41,ASSET MANAGEMENT - PROVINCIAL HOUSE,GAS,D420,GAS,ASSET MANAGEMENT,UTILITIES
http://statistics.data.gov.uk/id/local-authority/43UM,WOKING BOROUGH COUNCIL,28/03/2018,11/04/2018,0000422465/024,THAMESWEY ENERGY LIMITED,01142300,101.69,ASSET MANAGEMENT - PROVINCIAL HOUSE,GAS,D420,GAS,ASSET MANAGEMENT,UTILITIES
http://statistics.data.gov.uk/id/local-authority/43UM,WOKING BOROUGH COUNCIL,28/03/2018,11/04/2018,0000422467/025,THAMESWEY ENERGY LIMITED,01142300,98.41,ASSET MANAGEMENT - PROVINCIAL HOUSE,GAS,D420,GAS,ASSET MANAGEMENT,UTILITIES
http://statistics.data.gov.uk/id/local-authority/43UM,WOKING BOROUGH COUNCIL,28/03/2018,11/04/2018,0000422470/025,THAMESWEY ENERGY LIMITED,01142300,101.69,ASSET MANAGEMENT - PROVINCIAL HOUSE,GAS,D420,GAS,ASSET MANAGEMENT,UTILITIES
http://statistics.data.gov.uk/id/local-authority/43UM,WOKING BOROUGH COUNCIL,28/03/2018,11/04/2018,0000422471/024,THAMESWEY ENERGY LIMITED,01142300,101.69,ASSET MANAGEMENT - PROVINCIAL HOUSE,GAS,D420,GAS,ASSET MANAGEMENT,UTILITIES
http://statistics.data.gov.uk/id/local-authority/43UM,WOKING BOROUGH COUNCIL,28/03/2018,11/04/2018,0000422475/024,THAMESWEY ENERGY LIMITED,01142300,91.85,ASSET MANAGEMENT - PROVINCIAL HOUSE,GAS,D420,GAS,ASSET MANAGEMENT,UTILITIES
http://statistics.data.gov.uk/id/local-authority/43UM,WOKING BOROUGH COUNCIL,31/01/2018,11/04/2018,0000422606/001,THAMESWEY ENERGY LIMITED,01142300,126.36,ASSET MANAGEMENT - ALBION SQUARE CANOPY,TEL ELECTRICITY,D480,TEL ELECTRICITY,ASSET MANAGEMENT,UTILITIES
http://statistics.data.gov.uk/id/local-authority/43UM,WOKING BOROUGH COUNCIL,28/03/2018,11/04/2018,0000422464/064,THAMESWEY ENERGY LIMITED,01142300,88.09,ASSET MANAGEMENT - TOWN CENTRE LEISURE,GAS,D420,GAS,ASSET MANAGEMENT,UTILITIES
http://statistics.data.gov.uk/id/local-authority/43UM,WOKING BOROUGH COUNCIL,28/03/2018,11/04/2018,0000422465/066,THAMESWEY ENERGY LIMITED,01142300,91.39,ASSET MANAGEMENT - TOWN CENTRE LEISURE,GAS,D420,GAS,ASSET MANAGEMENT,UTILITIES
http://statistics.data.gov.uk/id/local-authority/43UM,WOKING BOROUGH COUNCIL,28/03/2018,11/04/2018,0000422467/067,THAMESWEY ENERGY LIMITED,01142300,154.09,ASSET MANAGEMENT - TOWN CENTRE LEISURE,GAS,D420,GAS,ASSET MANAGEMENT,UTILITIES
http://statistics.data.gov.uk/id/local-authority/43UM,WOKING BOROUGH COUNCIL,28/03/2018,11/04/2018,0000422470/067,THAMESWEY ENERGY LIMITED,01142300,174.22,ASSET MANAGEMENT - TOWN CENTRE LEISURE,GAS,D420,GAS,ASSET MANAGEMENT,UTILITIES
http://statistics.data.gov.uk/id/local-authority/43UM,WOKING BOROUGH COUNCIL,28/03/2018,11/04/2018,0000422471/066,THAMESWEY ENERGY LIMITED,01142300,160.77,ASSET MANAGEMENT - TOWN CENTRE LEISURE,GAS,D420,GAS,ASSET MANAGEMENT,UTILITIES
http://statistics.data.gov.uk/id/local-authority/43UM,WOKING BOROUGH COUNCIL,28/03/2018,11/04/2018,0000422475/066,THAMESWEY ENERGY LIMITED,01142300,151.58,ASSET MANAGEMENT - TOWN CENTRE LEISURE,GAS,D420,GAS,ASSET MANAGEMENT,UTILITIES
